Workbook

Sheet شيت
T6: عدد مواد الرسوب
A8: رقم الجلوس | B8: اسم الطالب | C8: الصف | D8: الرياضيات | E8: الدراسات الاجتماعية | F8: الحوسبة وتكنولوجيا المعلومات | G8: الكيمياء | H8: الفيزياء | I8: الأحياء | J8: التربية الإسلامية | K8: اللغة العربية | L8: اللغة الإنجليزية | M8: المجموع الكلي | N8: نتيجة الطالب | O8: النسبة المئوية | P8: التقدير العام للطالب | Q8: الترتيب | R8: مواد الدور الثاني | T8: =COUNTIF(T11:T60,"x") -> 6 | U8: 3 | V8: 3 | W8: 6 | X8: 3 | Y8: 5 | Z8: 3 | AA8: 2 | AB8: 3 | AP8: ترتيب الأوائل | AV8: العشر الأوائل
T9: الرياضيات | U9: الدراسات الاجتماعية | V9: الحوسبة وتكنولوجيا المعلومات | W9: الكيمياء | X9: الفيزياء | Y9: الأحياء | Z9: التربية الإسلامية | AA9: اللغة العربية | AB9: اللغة الإنجليزية | AF9: الرياضيات | AG9: الدراسات الاجتماعية | AH9: الحوسبة وتكنولوجيا المعلومات | AI9: الكيمياء | AJ9: الفيزياء | AK9: الأحياء | AL9: التربية الإسلامية | AM9: اللغة العربية | AN9: اللغة الإنجليزية
D10: 30 | E10: 30 | F10: 30 | G10: 30 | H10: 30 | I10: 30 | J10: 30 | K10: 30 | L10: 30 | M10: =SUM(D10:L10) -> 270 | AP10: رقم الجلوس | AQ10: اسم الطالب | AR10: المجموع | AS10: الترتيب | AT10: النتيجة | AV10: م | AW10: رقم الجلوس | AX10: اسم التلميذ | AY10: المجموع | AZ10: الترتيب | BA10: مجموع | BB10: المركز
A11: =ROW()-10 -> 1 | B11: احمد حسن احمد سليمان الهيل | C11: 10 - 1 | D11: 22 | E11: 19 | F11: 22 | G11: 19 | H11: 19 | I11: 19 | J11: 19 | K11: 22 | L11: 25 | M11: =IF(B11="","",IF(AND(D11="غ",E11="غ",F11="غ",G11="غ",H11="غ",I11="غ",J11="غ",K11="غ",L11="غ"),"غ",SUM(D11,E11,F11,G11,H11,I11,J11,K11,L11))) -> 186 | N11: =IF(B11="","",AE11) -> ناجح | O11: =IF(B11="","",IF(M11="غ","غ",M11/$M$10*100/100)) -> 0.6888888889 | P11: =IF(M11="","",IF(M11="غ","غ",IF(M11=0,"دون المستوى",IF(M11/$M$10*100>=85,"ممتاز",IF(M11/$M$10*100>=75,"جيد جدا",IF(M11/$M$10*100>=65,"جيد",IF(M11/$M$10*100>=50,"مقبول",IF(M11/$M$10*100<50,"دون المستوى")))))))) -> جيد | R11: =CONCATENATE(AF11,AG11,AH11,AI11,AJ11,AK11,AL11) ->  | T11: =IF($B11="","",IF(OR(D11<15,D11="",D11="غ",D11="صفر"=""),"x","")) ->  | U11: =IF($B11="","",IF(OR(E11<15,E11="",E11="غ",E11="صفر"=""),"x","")) ->  | AC11: =IF(B11="","",COUNTBLANK(T11:Z11)) -> 7 | AD11: =IF(B11="","",COUNTIF(T11:Z11,"x")) -> 0 | AE11: =IF(B11="","",IF(AC11=7,"ناجح","دور ثانى")) -> ناجح | AF11: =IF(T11="x","الرياضيات / ","") ->  | AG11: =IF(U11="x","الدراسات الاجتماعية / ","") ->  | AH11: =IF(V11="x","الحوسبة وتكنولوجيا المعلومات / ","") ->  | AI11: =IF(W11="x","الكيمياء / ","") ->  | AJ11: =IF(X11="x","الفيزياء / ","") ->  | AK11: =IF(Y11="x","الأحياء / ","") ->  | AL11: =IF(Z11="x","التربية الإسلامية / ","") ->  | AM11: =IF(AA11="x","اللغة العربية / ","") ->  | AN11: =IF(AB11="x","اللغة الإنجليزية / ","") ->  | AP11: =A11 -> 1 | AQ11: =B11 -> احمد حسن احمد سليمان الهيل | AR11: =IF(M11="","",IF(M11="غ","غ",M11+1/ROW()*0.001)) -> 186.0000909 | AS11: =IF(M11=" "," ",IF(M11="غ","غ",RANK(M11,$M$11:$M$60))) -> 43 | AV11: 1 | AW11: =INDEX($AP$11:$AP$60,MATCH(BA11,$AR$11:$AR$60,0)) -> 6 | AX11: =INDEX($AQ$11:$AQ$60,MATCH(BA11,$AR$11:$AR$60,0)) -> خالد مصعب خضر عبدالله تايه | AY11: =IF(BA11=" "," ",ROUNDDOWN(BA11,1)) -> 267 | AZ11: =RANK(AY11,$AY$11:$AY$20) -> 1 | BA11: =IF(AR11=" "," ",LARGE($AR$11:$AR$60,AV11)) -> 267.0000625 | BB11: =IF(AZ11=1,"الأول"," ") -> الأول
A12: =ROW()-10 -> 2 | B12: احمد عبداللاه احمد يحيى عبدالاله | C12: 10 - 1 | D12: 24.5 | E12: 24.5 | F12: 26 | G12: 22.5 | H12: 29 | I12: 16 | J12: 30 | K12: 29 | L12: 22.5 | M12: 224 | N12: ناجح | O12: 0.8296296296 | P12: =IF(M12="","",IF(M12="غ","غ",IF(M12=0,"دون المستوى",IF(M12/$M$10*100>=85,"ممتاز",IF(M12/$M$10*100>=75,"جيد جدا",IF(M12/$M$10*100>=65,"جيد",IF(M12/$M$10*100>=50,"مقبول",IF(M12/$M$10*100<50,"دون المستوى")))))))) -> جيد جدا | R12: =CONCATENATE(AF12,AG12,AH12,AI12,AJ12,AK12,AL12) ->  | T12: =IF($B12="","",IF(OR(D12<15,D12="",D12="غ",D12="صفر"=""),"x","")) ->  | U12: =IF($B12="","",IF(OR(E12<15,E12="",E12="غ",E12="صفر"=""),"x","")) ->  | V12: =IF($B12="","",IF(OR(F12<15,F12="",F12="غ",F12="صفر"=""),"x","")) ->  | W12: =IF($B12="","",IF(OR(G12<15,G12="",G12="غ",G12="صفر"=""),"x","")) ->  | X12: =IF($B12="","",IF(OR(H12<15,H12="",H12="غ",H12="صفر"=""),"x","")) ->  | Y12: =IF($B12="","",IF(OR(I12<15,I12="",I12="غ",I12="صفر"=""),"x","")) ->  | Z12: =IF($B12="","",IF(OR(J12<15,J12="",J12="غ",J12="صفر"=""),"x","")) ->  | AA12: =IF($B12="","",IF(OR(K12<15,K12="",K12="غ",K12="صفر"=""),"x","")) ->  | AB12: =IF($B12="","",IF(OR(L12<15,L12="",L12="غ",L12="صفر"=""),"x","")) ->  | AC12: 7 | AD12: 0 | AE12: ناجح | AF12: =IF(T12="x","الرياضيات / ","") ->  | AG12: =IF(U12="x","الدراسات الاجتماعية / ","") ->  | AH12: =IF(V12="x","الحوسبة وتكنولوجيا المعلومات / ","") ->  | AI12: =IF(W12="x","الكيمياء / ","") ->  | AJ12: =IF(X12="x","الفيزياء / ","") ->  | AK12: =IF(Y12="x","الأحياء / ","") ->  | AL12: =IF(Z12="x","التربية الإسلامية / ","") ->  | AM12: =IF(AA12="x","اللغة العربية / ","") ->  | AN12: =IF(AB12="x","اللغة الإنجليزية / ","") ->  | AP12: 2 | AQ12: احمد عبداللاه احمد يحيى عبدالاله | AR12: 224.0000833 | AS12: 33 | AV12: 2 | AW12: 29 | AX12: محمود عادل عبدالمحسن محمد | AY12: 260 | AZ12: 2 | BA12: 260.0000256 | BB12: =IF(AZ12=AZ11,BB11&" مكرر ",IF(AZ12=2," الثاني "," ")) -> الثاني
A13: 3 | B13: احمد محمود احمد عبدالسميع عثمان | C13: 10 - 1 | D13: 28 | E13: 30 | F13: 29.5 | G13: 29 | H13: 28 | I13: 28 | J13: 29 | K13: 26 | L13: 25.5 | M13: 253 | N13: ناجح | O13: 0.937037037 | P13: ممتاز | AC13: 7 | AD13: 0 | AE13: ناجح | AP13: 3 | AQ13: احمد محمود احمد عبدالسميع عثمان | AR13: 253.0000769 | AS13: 9 | AV13: 3 | AW13: 19 | AX13: عمر هشام على بحيرى ابوالخير | AY13: 259.5 | AZ13: 3 | BA13: 259.5000345 | BB13: =IF(AZ13=AZ12,BB12&" مكرر ",IF(AZ13=3," الثالث "," ")) -> الثالث
A14: 4 | B14: جمال عبدالغفار كمال على | C14: 10 - 1 | D14: 24.5 | E14: 27 | F14: 27 | G14: 22.5 | H14: 25 | I14: 23 | J14: 27.5 | K14: 29 | L14: 22.5 | M14: 228 | N14: ناجح | O14: 0.8444444444 | P14: جيد جدا | AC14: 7 | AD14: 0 | AE14: ناجح | AP14: 4 | AQ14: جمال عبدالغفار كمال على | AR14: 228.0000714 | AS14: 29 | AV14: 4 | AW14: 36 | AX14: أحمد اقبال ابواصبع | AY14: 258.5 | AZ14: 4 | BA14: 258.5000217 | BB14: =IF(AZ14=AZ13,BB13&" "&" مكرر",IF(AZ14=4," الرابع "," ")) -> الرابع
A15: 5 | B15: حسن محمد العبود الصالح | C15: 10 - 1 | D15: 25.5 | E15: 30 | F15: 27 | G15: 27 | H15: 30 | I15: 27 | J15: 30 | K15: 28 | L15: 18.5 | M15: 243 | N15: ناجح | O15: 0.9 | P15: ممتاز | AC15: 7 | AD15: 0 | AE15: ناجح | AP15: 5 | AQ15: حسن محمد العبود الصالح | AR15: 243.0000667 | AS15: 14 | AV15: 5 | AW15: 26 | AX15: محمد عمر عبدالرحيم على | AY15: 257.5 | AZ15: 5 | BA15: 257.5000278 | BB15: =IF(AZ15=AZ14,BB14&" "&" مكرر",IF(AZ15=5," الخامس "," ")) -> الخامس
A16: 6 | B16: خالد مصعب خضر عبدالله تايه | C16: 10 - 1 | D16: 29.5 | E16: 30 | F16: 29 | G16: 30 | H16: 30 | I16: 30 | J16: 30 | K16: 29 | L16: 29.5 | M16: 267 | N16: ناجح | O16: 0.9888888889 | P16: ممتاز | AC16: 7 | AD16: 0 | AE16: ناجح | AP16: 6 | AQ16: خالد مصعب خضر عبدالله تايه | AR16: 267.0000625 | AS16: 1 | AV16: 6 | AW16: 27 | AX16: محمد عمر فتحى عبدالتواب عبدالمقصود | AY16: 257.5 | AZ16: 5 | BA16: 257.500027 | BB16: =IF(AZ16=AZ15,BB15&" "&" مكرر",IF(AZ16=6," السادس "," ")) -> الخامس مكرر
A17: 7 | B17: سيف سعيد احمد عبدالمجيد عبدالرحيم | C17: 10 - 1 | D17: 27.5 | E17: 28 | F17: 24.5 | G17: 28 | H17: 28 | I17: 24 | J17: 28 | K17: 27 | L17: 25.5 | M17: 240.5 | N17: ناجح | O17: 0.8907407407 | P17: ممتاز | AC17: 7 | AD17: 0 | AE17: ناجح | AP17: 7 | AQ17: سيف سعيد احمد عبدالمجيد عبدالرحيم | AR17: 240.5000588 | AS17: 18 | AV17: 7 | AW17: 23 | AX17: محمد عبدالله السيد بيومي حسن | AY17: 256 | AZ17: 7 | BA17: 256.0000303 | BB17: =IF(AZ17=AZ16,BB16&" "&" مكرر",IF(AZ17=7," السابع "," ")) -> السابع
A18: 8 | B18: شعيب خالد شعيب جاب الله | C18: 10 - 1 | D18: 22 | E18: 28 | F18: 29 | G18: 21 | H18: 30 | I18: 28 | J18: 29 | K18: 26 | L18: 28.5 | M18: 241.5 | N18: ناجح | O18: 0.8944444444 | P18: ممتاز | AC18: 7 | AD18: 0 | AE18: ناجح | AP18: 8 | AQ18: شعيب خالد شعيب جاب الله | AR18: 241.5000556 | AS18: 16 | AV18: 8 | AW18: 20 | AX18: فادي عدنان احمد عبدالجليل | AY18: 255 | AZ18: 8 | BA18: 255.0000333 | BB18: =IF(AZ18=AZ17,BB17&"مكرر",IF(AZ18=8,"الثامن"," ")) -> الثامن
A19: 9 | B19: عادل سعيد فتحي مصطفى عوض الله | C19: 10 - 1 | D19: 27 | E19: 30 | F19: 27 | G19: 23.5 | H19: 28 | I19: 19 | J19: 30 | K19: 30 | L19: 24 | M19: 238.5 | N19: ناجح | O19: 0.8833333333 | P19: ممتاز | AC19: 7 | AD19: 0 | AE19: ناجح | AP19: 9 | AQ19: عادل سعيد فتحي مصطفى عوض الله | AR19: 238.5000526 | AS19: 19 | AV19: 9 | AW19: 3 | AX19: احمد محمود احمد عبدالسميع عثمان | AY19: 253 | AZ19: 9 | BA19: 253.0000769 | BB19: =IF(AZ19=AZ18,BB18&" مكرر",IF(AZ19=9,"التاسع"," ")) -> التاسع
A20: 10 | B20: عامر محمد عمر عجيز | C20: 10 - 1 | D20: 23 | E20: 19.5 | F20: 29 | G20: 19.5 | H20: 30 | I20: 26 | J20: 30 | K20: 27 | L20: 24 | M20: 228 | N20: ناجح | O20: 0.8444444444 | P20: جيد جدا | AC20: 7 | AD20: 0 | AE20: ناجح | AP20: 10 | AQ20: عامر محمد عمر عجيز | AR20: 228.00005 | AS20: 29 | AV20: 10 | AW20: 28 | AX20: محمود حبيب الله | AY20: 253 | AZ20: 9 | BA20: 253.0000263 | BB20: =IF(AZ20=AZ19,BB19&" مكرر",IF(AZ20=10,"العاشر"," ")) -> التاسع مكرر
A21: 11 | B21: عبدالرحمن خالد محمد سليمان الشيخ | C21: 10 - 1 | D21: 26.5 | E21: 27 | F21: 20 | G21: 28 | H21: 30 | I21: 29 | J21: 30 | K21: 29 | L21: 29.5 | M21: 249 | N21: ناجح | O21: 0.9222222222 | P21: ممتاز | AC21: 7 | AD21: 0 | AE21: ناجح | AP21: 11 | AQ21: عبدالرحمن خالد محمد سليمان الشيخ | AR21: 249.0000476 | AS21: 12
A22: 12 | B22: عبدالرحمن قارى محمد اقبال | C22: 10 - 1 | D22: 27 | E22: 25 | F22: 20.5 | G22: 29 | H22: 30 | I22: 22 | J22: 28 | K22: 30 | L22: 26.5 | M22: 238 | N22: ناجح | O22: 0.8814814815 | P22: ممتاز | AC22: 7 | AD22: 0 | AE22: ناجح | AP22: 12 | AQ22: عبدالرحمن قارى محمد اقبال | AR22: 238.0000455 | AS22: 20
A23: 13 | B23: عبدالله فتحي سيد محمد جمعه | C23: 10 - 1 | D23: 3 | E23: 30 | F23: 30 | G23: 26.5 | H23: 30 | I23: 28 | J23: 30 | K23: 30 | L23: 24.5 | M23: 232 | N23: دور ثانى | O23: 0.8592592593 | P23: ممتاز | R23: الرياضيات / | T23: x | AC23: 6 | AD23: 1 | AE23: دور ثانى | AF23: الرياضيات / | AP23: 13 | AQ23: عبدالله فتحي سيد محمد جمعه | AR23: 232.0000435 | AS23: 24
A24: 14 | B24: عدنان محمد رضا كرار سليمان | C24: 10 - 1 | D24: 30 | E24: 27 | F24: 20.5 | G24: 24 | H24: 24 | I24: 21 | J24: 28.5 | K24: 30 | L24: 23.5 | M24: 228.5 | N24: ناجح | O24: 0.8462962963 | P24: جيد جدا | AC24: 7 | AD24: 0 | AE24: ناجح | AP24: 14 | AQ24: عدنان محمد رضا كرار سليمان | AR24: 228.5000417 | AS24: 28
A25: 15 | B25: على هصام حامد على الحبابى | C25: 10 - 1 | D25: 26 | E25: 21 | F25: 26 | G25: 25 | H25: 25 | I25: 25 | J25: 24 | K25: 20 | L25: 19 | M25: 211 | N25: ناجح | O25: 0.7814814815 | P25: جيد جدا | AC25: 7 | AD25: 0 | AE25: ناجح | AP25: 15 | AQ25: على هصام حامد على الحبابى | AR25: 211.00004 | AS25: 37
A26: 16 | B26: عمر عبدالباسط ابراهيم محمد | C26: 10 - 1 | D26: 26.5 | E26: 23.5 | F26: 28.5 | G26: 25 | H26: 30 | I26: 14.5 | J26: 26.5 | K26: 27 | L26: 29.5 | M26: 231 | N26: دور ثانى | O26: 0.8555555556 | P26: ممتاز | R26: الأحياء / | Y26: x | AC26: 6 | AD26: 1 | AE26: دور ثانى | AK26: الأحياء / | AP26: 16 | AQ26: عمر عبدالباسط ابراهيم محمد | AR26: 231.0000385 | AS26: 26
A27: 17 | B27: عمر فؤاد اسماعيل ثابت | C27: 10 - 1 | D27: 24.5 | E27: 24 | F27: 27 | G27: 26 | H27: 27 | I27: 22.5 | J27: 26 | K27: 30 | L27: 25.5 | M27: 232.5 | N27: ناجح | O27: 0.8611111111 | P27: ممتاز | AC27: 7 | AD27: 0 | AE27: ناجح | AP27: 17 | AQ27: عمر فؤاد اسماعيل ثابت | AR27: 232.500037 | AS27: 23
A28: 18 | B28: عمر مصطفى محمد عوه | C28: 10 - 1 | D28: 26 | E28: 29 | F28: 22.5 | G28: 30 | H28: 27 | I28: 22.5 | J28: 30 | K28: 28 | L28: 27.5 | M28: 242.5 | N28: ناجح | O28: 0.8981481481 | P28: ممتاز | AC28: 7 | AD28: 0 | AE28: ناجح | AP28: 18 | AQ28: عمر مصطفى محمد عوه | AR28: 242.5000357 | AS28: 15
A29: 19 | B29: عمر هشام على بحيرى ابوالخير | C29: 10 - 1 | D29: 30 | E29: 30 | F29: 27 | G29: 28 | H29: 30 | I29: 28 | J29: 30 | K29: 29 | L29: 27.5 | M29: 259.5 | N29: ناجح | O29: 0.9611111111 | P29: ممتاز | AC29: 7 | AD29: 0 | AE29: ناجح | AP29: 19 | AQ29: عمر هشام على بحيرى ابوالخير | AR29: 259.5000345 | AS29: 3
A30: 20 | B30: فادي عدنان احمد عبدالجليل | C30: 10 - 1 | D30: 29 | E30: 30 | F30: 28.5 | G30: 27 | H30: 28 | I30: 29 | J30: 30 | K30: 25 | L30: 28.5 | M30: 255 | N30: ناجح | O30: 0.9444444444 | P30: ممتاز | AC30: 7 | AD30: 0 | AE30: ناجح | AP30: 20 | AQ30: فادي عدنان احمد عبدالجليل | AR30: 255.0000333 | AS30: 8
A31: 21 | B31: مازن محمود السيد عبدالله عبدالوهاب | C31: 10 - 1 | D31: 28 | E31: 29 | F31: 29.5 | G31: 25 | H31: 24 | I31: 26 | J31: 30 | K31: 25 | L31: 19 | M31: 235.5 | N31: ناجح | O31: 0.8722222222 | P31: ممتاز | AC31: 7 | AD31: 0 | AE31: ناجح | AP31: 21 | AQ31: مازن محمود السيد عبدالله عبدالوهاب | AR31: 235.5000323 | AS31: 21
A32: 22 | B32: محمد احمد محمود شناق | C32: 10 - 1 | D32: 27.5 | E32: 27 | F32: 26 | G32: 27 | H32: 28 | I32: 26 | J32: 29 | K32: 26 | L32: 29.5 | M32: 246 | N32: ناجح | O32: 0.9111111111 | P32: ممتاز | AC32: 7 | AD32: 0 | AE32: ناجح | AP32: 22 | AQ32: محمد احمد محمود شناق | AR32: 246.0000313 | AS32: 13
A33: 23 | B33: محمد عبدالله السيد بيومي حسن | C33: 10 - 1 | D33: 30 | E33: 26 | F33: 26.5 | G33: 30 | H33: 30 | I33: 29 | J33: 30 | K33: 27 | L33: 27.5 | M33: 256 | N33: ناجح | O33: 0.9481481481 | P33: ممتاز | AC33: 7 | AD33: 0 | AE33: ناجح | AP33: 23 | AQ33: محمد عبدالله السيد بيومي حسن | AR33: 256.0000303 | AS33: 7
A34: 24 | B34: محمد عقيل عدنان سيد احمد | C34: 10 - 1 | D34: 23.5 | E34: 30 | F34: 26.5 | G34: 26 | H34: 30 | I34: 26 | J34: 25.5 | K34: 27 | L34: 26.5 | M34: 241 | N34: ناجح | O34: 0.8925925926 | P34: ممتاز | AC34: 7 | AD34: 0 | AE34: ناجح | AP34: 24 | AQ34: محمد عقيل عدنان سيد احمد | AR34: 241.0000294 | AS34: 17
A35: 25 | B35: محمد علي عطيت الله ابراهيم عبداللاه | C35: 10 - 1 | D35: 24 | E35: 30 | F35: 23.5 | G35: 24 | H35: 30 | I35: 25 | J35: 29 | K35: 27 | L35: 19.5 | M35: 232 | N35: ناجح | O35: 0.8592592593 | P35: ممتاز | AC35: 7 | AD35: 0 | AE35: ناجح | AP35: 25 | AQ35: محمد علي عطيت الله ابراهيم عبداللاه | AR35: 232.0000286 | AS35: 24
A36: 26 | B36: محمد عمر عبدالرحيم على | C36: 10 - 1 | D36: 30 | E36: 30 | F36: 29.5 | G36: 29 | H36: 30 | I36: 24.5 | J36: 28 | K36: 30 | L36: 26.5 | M36: 257.5 | N36: ناجح | O36: 0.9537037037 | P36: ممتاز | AC36: 7 | AD36: 0 | AE36: ناجح | AP36: 26 | AQ36: محمد عمر عبدالرحيم على | AR36: 257.5000278 | AS36: 5
A37: 27 | B37: محمد عمر فتحى عبدالتواب عبدالمقصود | C37: 10 - 1 | D37: 30 | E37: 30 | F37: 28 | G37: 28 | H37: 28 | I37: 27 | J37: 29 | K37: 30 | L37: 27.5 | M37: 257.5 | N37: ناجح | O37: 0.9537037037 | P37: ممتاز | AC37: 7 | AD37: 0 | AE37: ناجح | AP37: 27 | AQ37: محمد عمر فتحى عبدالتواب عبدالمقصود | AR37: 257.500027 | AS37: 5
A38: 28 | B38: محمود حبيب الله | C38: 10 - 1 | D38: 28 | E38: 30 | F38: 27 | G38: 22.5 | H38: 28 | I38: 28 | J38: 30 | K38: 30 | L38: 29.5 | M38: 253 | N38: ناجح | O38: 0.937037037 | P38: ممتاز | AC38: 7 | AD38: 0 | AE38: ناجح | AP38: 28 | AQ38: محمود حبيب الله | AR38: 253.0000263 | AS38: 9
A39: 29 | B39: محمود عادل عبدالمحسن محمد | C39: 10 - 1 | D39: 28.5 | E39: 30 | F39: 29.5 | G39: 30 | H39: 30 | I39: 27 | J39: 29.5 | K39: 27 | L39: 28.5 | M39: 260 | N39: ناجح | O39: 0.962962963 | P39: ممتاز | AC39: 7 | AD39: 0 | AE39: ناجح | AP39: 29 | AQ39: محمود عادل عبدالمحسن محمد | AR39: 260.0000256 | AS39: 2
A40: 30 | B40: معتز احمد كامل على خوالده | C40: 10 - 1 | D40: 30 | E40: 30 | F40: 28 | H40: 28 | I40: 26 | J40: 29 | K40: 29 | L40: 25 | M40: 225 | N40: دور ثانى | O40: 0.8333333333 | P40: جيد جدا | R40: الكيمياء / | W40: x | AC40: 6 | AD40: 1 | AE40: دور ثانى | AI40: الكيمياء / | AP40: 30 | AQ40: معتز احمد كامل على خوالده | AR40: 225.000025 | AS40: 31
A41: 31 | B41: مهنا احمد محمد سيف النعيمى | C41: 10 - 1 | E41: 12 | G41: 8 | H41: 8 | I41: 8 | K41: 17 | L41: 18 | M41: 71 | N41: دور ثانى | O41: 0.262962963 | P41: دون المستوى | R41: الرياضيات / الدراسات الاجتماعية / الحوسبة وتكنولوجيا المعلومات / الكيمياء / الفيزياء / الأحياء / التربية الإسلامية / | T41: x | U41: x | V41: x | W41: x | X41: x | Y41: x | Z41: x | AC41: 0 | AD41: 7 | AE41: دور ثانى | AF41: الرياضيات / | AG41: الدراسات الاجتماعية / | AH41: الحوسبة وتكنولوجيا المعلومات / | AI41: الكيمياء / | AJ41: الفيزياء / | AK41: الأحياء / | AL41: التربية الإسلامية / | AP41: 31 | AQ41: مهنا احمد محمد سيف النعيمى | AR41: 71.00002439 | AS41: 48
A42: 32 | B42: مؤمن شريف محمد التاج | C42: 10 - 1 | D42: 29.5 | E42: 30 | F42: 29.5 | H42: 28 | I42: 29 | J42: 30 | K42: 30 | L42: 24.5 | M42: 230.5 | N42: دور ثانى | O42: 0.8537037037 | P42: ممتاز | R42: الكيمياء / | W42: x | AC42: 6 | AD42: 1 | AE42: دور ثانى | AI42: الكيمياء / | AP42: 32 | AQ42: مؤمن شريف محمد التاج | AR42: 230.5000238 | AS42: 27
A43: 33 | B43: ياسين احمد صلاح عبداللطيف | C43: 10 - 1 | M43: 0 | N43: دور ثانى | O43: 0 | P43: دون المستوى | R43: الرياضيات / الدراسات الاجتماعية / الحوسبة وتكنولوجيا المعلومات / الكيمياء / الفيزياء / الأحياء / التربية الإسلامية / | T43: x | U43: x | V43: x | W43: x | X43: x | Y43: x | Z43: x | AA43: x | AB43: x | AC43: 0 | AD43: 7 | AE43: دور ثانى | AF43: الرياضيات / | AG43: الدراسات الاجتماعية / | AH43: الحوسبة وتكنولوجيا المعلومات / | AI43: الكيمياء / | AJ43: الفيزياء / | AK43: الأحياء / | AL43: التربية الإسلامية / | AM43: اللغة العربية / | AN43: اللغة الإنجليزية / | AP43: =A43 -> 33 | AQ43: =B43 -> ياسين احمد صلاح عبداللطيف | AR43: =IF(M43="","",IF(M43="غ","غ",M43+1/ROW()*0.001)) -> 2.325581395e-05 | AS43: =IF(M43=" "," ",IF(M43="غ","غ",RANK(M43,$M$11:$M$60))) -> 49
A44: 34 | B44: يوسف محمد سليمان موسى عامر | C44: 10 - 1 | D44: 26.5 | E44: 30 | F44: 30 | G44: 27 | H44: 28 | I44: 22 | J44: 29 | K44: 30 | L44: 27 | M44: 249.5 | N44: ناجح | O44: 0.9240740741 | P44: ممتاز | AC44: 7 | AD44: 0 | AE44: ناجح | AP44: 34 | AQ44: يوسف محمد سليمان موسى عامر | AR44: 249.5000227 | AS44: 11
A45: 35 | B45: احمد اسامه جميل ابوالعلا | C45: 10 - 2 | D45: 29 | E45: 24.5 | F45: 26.5 | G45: 25 | H45: 30 | I45: 26 | J45: 26 | K45: 24.5 | L45: 23 | M45: 234.5 | N45: ناجح | O45: 0.8685185185 | P45: ممتاز | AC45: 7 | AD45: 0 | AE45: ناجح | AP45: 35 | AQ45: احمد اسامه جميل ابوالعلا | AR45: 234.5000222 | AS45: 22
A46: 36 | B46: أحمد اقبال ابواصبع | C46: 10 - 2 | D46: 29 | E46: 30 | F46: 28.5 | G46: 28 | H46: 30 | I46: 29 | J46: 28 | K46: 28.5 | L46: 27.5 | M46: 258.5 | N46: ناجح | O46: 0.9574074074 | P46: ممتاز | AC46: 7 | AD46: 0 | AE46: ناجح | AP46: 36 | AQ46: أحمد اقبال ابواصبع | AR46: 258.5000217 | AS46: 4
A47: 37 | B47: احمد شريف ابراهيم الدسوقى عوض | C47: 10 - 2 | D47: 25 | E47: 21 | F47: 28.5 | G47: 17 | H47: 29 | I47: 23 | J47: 26.5 | K47: 26.5 | L47: 28 | M47: 224.5 | N47: ناجح | O47: 0.8314814815 | P47: جيد جدا | AC47: 7 | AD47: 0 | AE47: ناجح | AP47: 37 | AQ47: احمد شريف ابراهيم الدسوقى عوض | AR47: 224.5000213 | AS47: 32
A48: 38 | B48: امين بن المنذر بن عثمان | C48: 10 - 2 | D48: 19 | E48: 19 | F48: 20 | G48: 18 | H48: 18 | I48: 18 | J48: 19 | K48: 20 | L48: 24 | M48: 175 | N48: ناجح | O48: 0.6481481481 | P48: مقبول | AC48: 7 | AD48: 0 | AE48: ناجح | AP48: 38 | AQ48: امين بن المنذر بن عثمان | AR48: 175.0000208 | AS48: 45
A49: 39 | B49: براء اشرف سعيد زكي السيد | C49: 10 - 2 | D49: 29 | E49: 22 | F49: 19.5 | G49: 22 | H49: 26 | I49: 19.5 | J49: 23 | K49: 22 | L49: 27 | M49: 210 | N49: ناجح | O49: 0.7777777778 | P49: جيد جدا | AC49: 7 | AD49: 0 | AE49: ناجح | AP49: 39 | AQ49: براء اشرف سعيد زكي السيد | AR49: 210.0000204 | AS49: 39
A50: 40 | B50: بريك سالم دغش الجربوعى المرى | C50: 10 - 2 | D50: 18 | E50: 24 | F50: 17 | G50: 14.5 | H50: 23 | I50: 21 | J50: 18 | K50: 17 | L50: 22 | M50: 174.5 | N50: دور ثانى | O50: 0.6462962963 | P50: مقبول | R50: الكيمياء / | W50: x | AC50: 6 | AD50: 1 | AE50: دور ثانى | AI50: الكيمياء / | AP50: 40 | AQ50: بريك سالم دغش الجربوعى المرى | AR50: 174.50002 | AS50: 46
A51: 41 | B51: جوين عماد عبدالحليم داود | C51: 10 - 2 | D51: 21.5 | E51: 16 | F51: 22 | G51: 21.5 | H51: 28 | I51: 18.5 | J51: 21 | K51: 19 | L51: 25 | M51: 192.5 | N51: ناجح | O51: 0.712962963 | P51: جيد | AC51: 7 | AD51: 0 | AE51: ناجح | AP51: 41 | AQ51: جوين عماد عبدالحليم داود | AR51: 192.5000196 | AS51: 42
A52: 42 | B52: حمد ناجى مسعد احمد الطيرى | C52: 10 - 2 | D52: 28.5 | E52: 21 | F52: 27.5 | G52: 27.5 | H52: 30 | I52: 20 | J52: 23 | K52: 23 | L52: 19 | M52: 219.5 | N52: ناجح | O52: 0.812962963 | P52: جيد جدا | AC52: 7 | AD52: 0 | AE52: ناجح | AP52: 42 | AQ52: حمد ناجى مسعد احمد الطيرى | AR52: 219.5000192 | AS52: 35
A53: 43 | B53: خالد طارق عبدالرحمن فوزي رامون | C53: 10 - 2 | M53: 0 | N53: دور ثانى | O53: 0 | P53: دون المستوى | R53: الرياضيات / الدراسات الاجتماعية / الحوسبة وتكنولوجيا المعلومات / الكيمياء / الفيزياء / الأحياء / التربية الإسلامية / | T53: x | U53: x | V53: x | W53: x | X53: x | Y53: x | Z53: x | AA53: x | AB53: x | AC53: 0 | AD53: 7 | AE53: دور ثانى | AF53: الرياضيات / | AG53: الدراسات الاجتماعية / | AH53: الحوسبة وتكنولوجيا المعلومات / | AI53: الكيمياء / | AJ53: الفيزياء / | AK53: الأحياء / | AL53: التربية الإسلامية / | AM53: اللغة العربية / | AN53: اللغة الإنجليزية / | AP53: 43 | AQ53: خالد طارق عبدالرحمن فوزي رامون | AR53: 1.886792453e-05 | AS53: 49
A54: 44 | B54: خالد ناصر محمد ناصر الدهيمى | C54: 10 - 2 | D54: 14 | E54: 27 | F54: 19.5 | G54: 19.5 | H54: 23 | I54: 25 | J54: 25 | K54: 24.5 | L54: 26 | M54: 203.5 | N54: دور ثانى | O54: 0.7537037037 | P54: جيد جدا | R54: الرياضيات / | T54: x | AC54: 6 | AD54: 1 | AE54: دور ثانى | AF54: الرياضيات / | AP54: 44 | AQ54: خالد ناصر محمد ناصر الدهيمى | AR54: 203.5000185 | AS54: 40
A55: 45 | B55: راشد حمد على البكرى اليافعى | C55: 10 - 2 | D55: 23 | E55: 24 | F55: 20 | G55: 19.5 | H55: 23 | I55: 17.5 | J55: 22.5 | K55: 23.5 | L55: 21 | M55: 194 | N55: ناجح | O55: 0.7185185185 | P55: جيد | AC55: 7 | AD55: 0 | AE55: ناجح | AP55: 45 | AQ55: راشد حمد على البكرى اليافعى | AR55: 194.0000182 | AS55: 41
A56: 46 | B56: رامي سعد فراج فرج علي | C56: 10 - 2 | D56: 18 | E56: 24 | F56: 27.5 | G56: 23 | H56: 25 | I56: 23.5 | J56: 26 | K56: 28 | L56: 26 | M56: 221 | N56: ناجح | O56: 0.8185185185 | P56: جيد جدا | AC56: 7 | AD56: 0 | AE56: ناجح | AP56: 46 | AQ56: رامي سعد فراج فرج علي | AR56: 221.0000179 | AS56: 34
A57: 47 | B57: زكي واءلئ شحده عطيه ابوعيده | C57: 10 - 2 | D57: 24.5 | E57: 28 | F57: 27 | G57: 20 | H57: 26 | I57: 20 | J57: 19.5 | K57: 20 | L57: 26 | M57: 211 | N57: ناجح | O57: 0.7814814815 | P57: جيد جدا | AC57: 7 | AD57: 0 | AE57: ناجح | AP57: 47 | AQ57: زكي واءلئ شحده عطيه ابوعيده | AR57: 211.0000175 | AS57: 37
A58: 48 | B58: زيد محمود احمد خشان | C58: 10 - 2 | D58: 23.5 | E58: 29 | F58: 21 | G58: 20.5 | H58: 29 | I58: 14 | J58: 29 | K58: 25.5 | L58: 24 | M58: 215.5 | N58: دور ثانى | O58: 0.7981481481 | P58: جيد جدا | R58: الأحياء / | Y58: x | AC58: 6 | AD58: 1 | AE58: دور ثانى | AK58: الأحياء / | AP58: 48 | AQ58: زيد محمود احمد خشان | AR58: 215.5000172 | AS58: 36
A59: 49 | B59: سالم محمد سالم البطى الكعبى | C59: 10 - 2 | D59: 8 | E59: 27 | F59: 21 | G59: 16 | H59: 22 | I59: 19 | J59: 19.5 | K59: 20 | L59: 14 | M59: 166.5 | N59: دور ثانى | O59: 0.6166666667 | P59: مقبول | R59: الرياضيات / | T59: x | AB59: x | AC59: 6 | AD59: 1 | AE59: دور ثانى | AF59: الرياضيات / | AN59: اللغة الإنجليزية / | AP59: 49 | AQ59: سالم محمد سالم البطى الكعبى | AR59: 166.5000169 | AS59: 47
A60: 50 | B60: سلمان محمد اسلام ناصر احمد | C60: 10 - 2 | D60: 17 | E60: 16 | F60: 25.5 | G60: 15.5 | H60: 24 | I60: 25 | J60: 22 | K60: 20 | L60: 18 | M60: 183 | N60: ناجح | O60: 0.6777777778 | P60: جيد | AC60: 7 | AD60: 0 | AE60: ناجح | AP60: 50 | AQ60: سلمان محمد اسلام ناصر احمد | AR60: 183.0000167 | AS60: 44
A61: 51 | B61: سيف فهد موسى حسن على | C61: 10 - 2 | D61: 14.5 | E61: 24 | F61: 24 | G61: 17.5 | H61: 17 | I61: 22 | J61: 21.5 | K61: 15.5 | L61: 18 | M61: 174 | N61: دور ثانى | O61: 0.6444444444 | P61: مقبول | R61: =CONCATENATE(AF61,AG61,AH61,AI61,AJ61,AK61,AL61) -> الرياضيات / | T61: x | AC61: 6 | AD61: 1 | AE61: دور ثانى | AF61: الرياضيات / | AP61: 51 | AQ61: =B61 -> سيف فهد موسى حسن على | AR61: =IF(M61="","",IF(M61="غ","غ",M61+1/ROW()*0.001)) -> 174.0000164
A62: 52 | B62: عبدالرحمن اشرف فتحى سالم نصار | C62: 10 - 2 | M62: 0 | N62: دور ثانى | O62: 0 | P62: دون المستوى | R62: الرياضيات / الدراسات الاجتماعية / الحوسبة وتكنولوجيا المعلومات / الكيمياء / الفيزياء / الأحياء / التربية الإسلامية / | T62: x | U62: x | V62: x | W62: x | X62: x | Y62: x | Z62: x | AA62: x | AB62: x | AC62: 0 | AD62: 7 | AE62: دور ثانى | AF62: الرياضيات / | AG62: الدراسات الاجتماعية / | AH62: الحوسبة وتكنولوجيا المعلومات / | AI62: الكيمياء / | AJ62: الفيزياء / | AK62: الأحياء / | AL62: التربية الإسلامية / | AM62: اللغة العربية / | AN62: اللغة الإنجليزية / | AP62: 52 | AQ62: عبدالرحمن اشرف فتحى سالم نصار | AR62: 1.612903226e-05 | AS62: 49
A63: 53 | B63: عبدالرحمن جمال على صالح سيد | C63: 10 - 2 | D63: 23.5 | E63: 28 | F63: 18 | G63: 13.5 | H63: 27 | I63: 22 | J63: 24.5 | K63: 21 | L63: 25 | M63: 202.5 | N63: دور ثانى | O63: 0.75 | P63: جيد جدا | R63: الكيمياء / | W63: x | AC63: 6 | AD63: 1 | AE63: دور ثانى | AI63: الكيمياء / | AP63: 53 | AQ63: عبدالرحمن جمال على صالح سيد | AR63: 202.5000159
A64: 54 | B64: عبدالرحمن محمد محسن البكري | C64: 10 - 2 | D64: 21.5 | E64: 26.5 | F64: 22 | G64: 18 | H64: 24 | I64: 19 | J64: 26.5 | K64: 18 | L64: 21 | M64: 196.5 | N64: ناجح | O64: 0.7277777778 | P64: جيد | AC64: 7 | AD64: 0 | AE64: ناجح | AP64: 54 | AQ64: عبدالرحمن محمد محسن البكري | AR64: 196.5000156
A65: 55 | B65: عبدالرحمن هيثم اديب ابودلو | C65: 10 - 2 | D65: 28 | E65: 26 | F65: 27.5 | G65: 22.5 | H65: 28 | I65: 24 | J65: 26 | K65: 24 | L65: 19 | M65: 225 | N65: ناجح | O65: 0.8333333333 | P65: جيد جدا | AC65: 7 | AD65: 0 | AE65: ناجح | AP65: 55 | AQ65: عبدالرحمن هيثم اديب ابودلو | AR65: 225.0000154 | AS65: 31
A66: 56 | B66: عبدالرحيم محمد رشيد الديرشوى | C66: 10 - 2 | D66: 13.5 | E66: 26 | F66: 20 | G66: 22 | H66: 25 | I66: 27.5 | J66: 24.5 | K66: 23.5 | L66: 18 | M66: 200 | N66: دور ثانى | O66: 0.7407407407 | P66: جيد | R66: الرياضيات / | T66: x | AC66: 6 | AD66: 1 | AE66: دور ثانى | AF66: الرياضيات / | AP66: 56 | AQ66: عبدالرحيم محمد رشيد الديرشوى | AR66: 200.0000152
A67: 57 | B67: عبدالعزيز عوض احمد محمد اليافعى | C67: 10 - 2 | D67: 17 | E67: 23 | F67: 16 | G67: 11 | H67: 25 | I67: 14.5 | J67: 25.5 | K67: 21 | L67: 19 | M67: 172 | N67: دور ثانى | O67: 0.637037037 | P67: مقبول | R67: الكيمياء / الأحياء / | W67: x | Y67: x | AC67: 5 | AD67: 2 | AE67: دور ثانى | AI67: الكيمياء / | AK67: الأحياء / | AP67: 57 | AQ67: عبدالعزيز عوض احمد محمد اليافعى | AR67: 172.0000149
A68: 58 | B68: على عبدالحافظ على منصر منيف | C68: 10 - 2 | D68: 27 | E68: 25 | F68: 25.5 | G68: 20 | H68: 28 | I68: 19 | J68: 29 | K68: 24 | L68: 17 | M68: 214.5 | N68: ناجح | O68: 0.7944444444 | P68: جيد جدا | AC68: 7 | AD68: 0 | AE68: ناجح | AP68: 58 | AQ68: على عبدالحافظ على منصر منيف | AR68: 214.5000147
A69: 59 | B69: على نائل محمد عبدالله الخالدى | C69: 10 - 2 | D69: 20 | E69: 20.5 | G69: 6 | H69: 10.5 | I69: 17 | J69: 16.5 | K69: 13 | L69: 24 | M69: 127.5 | N69: دور ثانى | O69: 0.4722222222 | P69: دون المستوى | R69: الحوسبة وتكنولوجيا المعلومات / الكيمياء / الفيزياء / | V69: x | W69: x | X69: x | AA69: x | AC69: 4 | AD69: 3 | AE69: دور ثانى | AH69: الحوسبة وتكنولوجيا المعلومات / | AI69: الكيمياء / | AJ69: الفيزياء / | AM69: اللغة العربية / | AP69: 59 | AQ69: على نائل محمد عبدالله الخالدى | AR69: 127.5000145
A70: 60 | B70: فيصل محمد راشد جخدب الهميمى | C70: 10 - 2 | D70: 25.5 | E70: 28 | F70: 29.5 | G70: 29 | H70: 27 | I70: 21.5 | J70: 24 | K70: 23.5 | L70: 24 | M70: 232 | N70: ناجح | O70: 0.8592592593 | P70: ممتاز | AC70: 7 | AD70: 0 | AE70: ناجح | AP70: 60 | AQ70: فيصل محمد راشد جخدب الهميمى | AR70: 232.0000143 | AS70: 24
A71: 61 | B71: قيس محمد داود ابراهيم ابوديه | C71: 10 - 2 | D71: 25.5 | E71: 29 | F71: 26.5 | G71: 29 | H71: 30 | I71: 28 | J71: 30 | K71: 27 | L71: 27 | M71: 252 | N71: ناجح | O71: 0.9333333333 | P71: ممتاز | AC71: 7 | AD71: 0 | AE71: ناجح | AP71: 61 | AQ71: قيس محمد داود ابراهيم ابوديه | AR71: 252.0000141
A72: 62 | B72: لؤي ايهاب محمد احمد محمد | C72: 10 - 2 | D72: 24 | E72: 26.5 | F72: 18.5 | G72: 27 | H72: 27 | I72: 25 | J72: 24 | K72: 22 | L72: 27 | M72: 221 | N72: ناجح | O72: 0.8185185185 | P72: جيد جدا | AC72: 7 | AD72: 0 | AE72: ناجح | AP72: 62 | AQ72: لؤي ايهاب محمد احمد محمد | AR72: 221.0000139 | AS72: 34
A73: 63 | B73: محمد على راشد محمد انديله | C73: 10 - 2 | D73: 26 | E73: 22 | F73: 27 | G73: 20 | H73: 24 | I73: 20 | J73: 23 | K73: 19 | L73: 23 | M73: 204 | N73: ناجح | O73: 0.7555555556 | P73: جيد جدا | AC73: 7 | AD73: 0 | AE73: ناجح | AP73: 63 | AQ73: محمد على راشد محمد انديله | AR73: 204.0000137
A74: 64 | B74: محمد محمود فاروق العبد | C74: 10 - 2 | D74: 17.5 | E74: 25 | F74: 26 | G74: 14.5 | H74: 20 | I74: 17 | J74: 25 | K74: 22.5 | L74: 26 | M74: 193.5 | N74: دور ثانى | O74: 0.7166666667 | P74: جيد | R74: الكيمياء / | W74: x | AC74: 6 | AD74: 1 | AE74: دور ثانى | AI74: الكيمياء / | AP74: 64 | AQ74: محمد محمود فاروق العبد | AR74: 193.5000135
A75: 65 | B75: محمدخير حسين رغفان | C75: 10 - 2 | D75: 25 | E75: 28 | F75: 24.5 | G75: 21 | H75: 27 | I75: 24 | J75: 27 | K75: 20 | L75: 27 | M75: =IF(B75="","",IF(AND(D75="غ",E75="غ",F75="غ",G75="غ",H75="غ",I75="غ",J75="غ",K75="غ",L75="غ"),"غ",SUM(D75,E75,F75,G75,H75,I75,J75,K75,L75))) -> 223.5 | N75: =IF(B75="","",AE75) -> ناجح | O75: =IF(B75="","",IF(M75="غ","غ",M75/$M$10*100/100)) -> 0.8277777778 | P75: جيد جدا | AC75: =IF(B75="","",COUNTBLANK(T75:Z75)) -> 7 | AD75: =IF(B75="","",COUNTIF(T75:Z75,"x")) -> 0 | AE75: =IF(B75="","",IF(AC75=7,"ناجح","دور ثانى")) -> ناجح | AP75: 65 | AQ75: محمدخير حسين رغفان | AR75: 223.5000133
A76: =ROW()-10 -> 66 | B76: وليد الامين عثمان | C76: 10 - 2 | D76: 22.5 | E76: 20.5 | F76: 27.5 | G76: 18 | H76: 27 | I76: 24 | J76: 25 | K76: 21 | L76: 23 | M76: 208.5 | N76: ناجح | O76: 0.7722222222 | P76: =IF(M76="","",IF(M76="غ","غ",IF(M76=0,"دون المستوى",IF(M76/$M$10*100>=85,"ممتاز",IF(M76/$M$10*100>=75,"جيد جدا",IF(M76/$M$10*100>=65,"جيد",IF(M76/$M$10*100>=50,"مقبول",IF(M76/$M$10*100<50,"دون المستوى")))))))) -> جيد جدا | T76: =IF($B76="","",IF(OR(D76<15,D76="",D76="غ",D76="صفر"=""),"x","")) ->  | U76: =IF($B76="","",IF(OR(E76<15,E76="",E76="غ",E76="صفر"=""),"x","")) ->  | V76: =IF($B76="","",IF(OR(F76<15,F76="",F76="غ",F76="صفر"=""),"x","")) ->  | W76: =IF($B76="","",IF(OR(G76<15,G76="",G76="غ",G76="صفر"=""),"x","")) ->  | X76: =IF($B76="","",IF(OR(H76<15,H76="",H76="غ",H76="صفر"=""),"x","")) ->  | Y76: =IF($B76="","",IF(OR(I76<15,I76="",I76="غ",I76="صفر"=""),"x","")) ->  | Z76: =IF($B76="","",IF(OR(J76<15,J76="",J76="غ",J76="صفر"=""),"x","")) ->  | AA76: =IF($B76="","",IF(OR(K76<15,K76="",K76="غ",K76="صفر"=""),"x","")) ->  | AB76: =IF($B76="","",IF(OR(L76<15,L76="",L76="غ",L76="صفر"=""),"x","")) ->  | AC76: 7 | AD76: 0 | AE76: ناجح | AF76: =IF(T76="x","الرياضيات / ","") ->  | AG76: =IF(U76="x","الدراسات الاجتماعية / ","") ->  | AH76: =IF(V76="x","الحوسبة وتكنولوجيا المعلومات / ","") ->  | AI76: =IF(W76="x","الكيمياء / ","") ->  | AJ76: =IF(X76="x","الفيزياء / ","") ->  | AK76: =IF(Y76="x","الأحياء / ","") ->  | AL76: =IF(Z76="x","التربية الإسلامية / ","") ->  | AM76: =IF(AA76="x","اللغة العربية / ","") ->  | AN76: =IF(AB76="x","اللغة الإنجليزية / ","") ->  | AP76: 66 | AQ76: وليد الامين عثمان | AR76: 208.5000132
A77: 67 | B77: يزيد سامح حسنى محيسن | C77: 10 - 2 | D77: 30 | E77: 30 | F77: 27.5 | G77: 30 | H77: 30 | I77: 29 | J77: 26 | K77: 26 | L77: 22 | M77: 250.5 | N77: ناجح | O77: 0.9277777778 | P77: ممتاز | AC77: 7 | AD77: 0 | AE77: ناجح | AP77: 67 | AQ77: يزيد سامح حسنى محيسن | AR77: 250.500013
A78: 68 | B78: يوسف محمد عطيه عطيه حسن | C78: 10 - 2 | D78: 29 | E78: 27 | F78: 28 | G78: 30 | H78: 29 | I78: 30 | J78: 23 | K78: 27 | L78: 26 | M78: 249 | N78: ناجح | O78: 0.9222222222 | P78: ممتاز | AC78: 7 | AD78: 0 | AE78: ناجح | AP78: 68 | AQ78: يوسف محمد عطيه عطيه حسن | AR78: 249.0000128 | AS78: 12
A79: 69 | B79: احمد حافظ محمد ابوالكلام كبيرالدين | C79: 10 - 3 | D79: 9.5 | E79: 18.5 | F79: 20.5 | G79: 12 | H79: 16 | I79: 11 | J79: 20 | K79: 15 | L79: 17 | M79: 139.5 | N79: دور ثانى | O79: 0.5166666667 | P79: مقبول | R79: الرياضيات / الكيمياء / الأحياء / | T79: x | W79: x | Y79: x | AC79: 4 | AD79: 3 | AE79: دور ثانى | AF79: الرياضيات / | AI79: الكيمياء / | AK79: الأحياء / | AP79: 69 | AQ79: احمد حافظ محمد ابوالكلام كبيرالدين | AR79: 139.5000127
A80: 70 | B80: احمد محمد احمد قنبر بلال | C80: 10 - 3 | D80: 16 | E80: 24 | F80: 22.5 | G80: 11 | H80: 16 | I80: 14 | J80: 17.5 | K80: 8 | L80: 12.5 | M80: 141.5 | N80: دور ثانى | O80: 0.5240740741 | P80: مقبول | R80: الكيمياء / الأحياء / | W80: x | Y80: x | AA80: x | AB80: x | AC80: 5 | AD80: 2 | AE80: دور ثانى | AI80: الكيمياء / | AK80: الأحياء / | AM80: اللغة العربية / | AN80: اللغة الإنجليزية / | AP80: 70 | AQ80: احمد محمد احمد قنبر بلال | AR80: 141.5000125
A81: 71 | B81: امان رشيد خان جول جنان | C81: 10 - 3 | D81: 12.5 | E81: 15.5 | F81: 21.5 | G81: 11 | H81: 10.5 | I81: 14 | J81: 13 | K81: 13 | L81: 15 | M81: 126 | N81: دور ثانى | O81: 0.4666666667 | P81: دون المستوى | R81: الرياضيات / الكيمياء / الفيزياء / الأحياء / التربية الإسلامية / | T81: x | W81: x | X81: x | Y81: x | Z81: x | AA81: x | AC81: 2 | AD81: 5 | AE81: دور ثانى | AF81: الرياضيات / | AI81: الكيمياء / | AJ81: الفيزياء / | AK81: الأحياء / | AL81: التربية الإسلامية / | AM81: اللغة العربية / | AP81: 71 | AQ81: امان رشيد خان جول جنان | AR81: 126.0000123
A82: 72 | B82: ايسر جهاد عبدالفتاح كراز | C82: 10 - 3 | D82: 5 | E82: 18.5 | F82: 24.5 | G82: 15 | H82: 10.5 | I82: 14 | J82: 16 | K82: 15 | L82: 8 | M82: 126.5 | N82: دور ثانى | O82: 0.4685185185 | P82: دون المستوى | R82: الرياضيات / الفيزياء / الأحياء / | T82: x | X82: x | Y82: x | AB82: x | AC82: 4 | AD82: 3 | AE82: دور ثانى | AF82: الرياضيات / | AJ82: الفيزياء / | AK82: الأحياء / | AN82: اللغة الإنجليزية / | AP82: 72 | AQ82: ايسر جهاد عبدالفتاح كراز | AR82: 126.5000122
A83: 73 | B83: بخيت مبخوت سالم سعيد خوار | C83: 10 - 3 | D83: 22.5 | E83: 16 | F83: 25.5 | G83: 17.5 | H83: 21 | I83: 13 | J83: 14 | K83: 17 | L83: 14.5 | M83: 161 | N83: دور ثانى | O83: 0.5962962963 | P83: مقبول | R83: الأحياء / التربية الإسلامية / | Y83: x | Z83: x | AB83: x | AC83: 5 | AD83: 2 | AE83: دور ثانى | AK83: الأحياء / | AL83: التربية الإسلامية / | AN83: اللغة الإنجليزية / | AP83: 73 | AQ83: بخيت مبخوت سالم سعيد خوار | AR83: 161.000012
A84: 74 | B84: تميم محمد ابراهيم محمد فلامرزى | C84: 10 - 3 | D84: 10.5 | E84: 8 | F84: 19.5 | G84: 14 | H84: 15 | I84: 7.5 | J84: 11 | K84: 13 | L84: 12 | M84: 110.5 | N84: دور ثانى | O84: 0.4092592593 | P84: دون المستوى | R84: الرياضيات / الدراسات الاجتماعية / الكيمياء / الأحياء / التربية الإسلامية / | T84: x | U84: x | W84: x | Y84: x | Z84: x | AA84: x | AB84: x | AC84: 2 | AD84: 5 | AE84: دور ثانى | AF84: الرياضيات / | AG84: الدراسات الاجتماعية / | AI84: الكيمياء / | AK84: الأحياء / | AL84: التربية الإسلامية / | AM84: اللغة العربية / | AN84: اللغة الإنجليزية / | AP84: 74 | AQ84: تميم محمد ابراهيم محمد فلامرزى | AR84: 110.5000119
A85: 75 | B85: جابر سعد سالم النابت المرى | C85: 10 - 3 | D85: 11 | E85: 19 | F85: 18.5 | G85: 13 | H85: 15.5 | I85: 6.5 | J85: 14 | K85: 15 | L85: 9.5 | M85: 122 | N85: دور ثانى | O85: 0.4518518519 | P85: دون المستوى | R85: الرياضيات / الكيمياء / الأحياء / التربية الإسلامية / | T85: x | W85: x | Y85: x | Z85: x | AB85: x | AC85: 3 | AD85: 4 | AE85: دور ثانى | AF85: الرياضيات / | AI85: الكيمياء / | AK85: الأحياء / | AL85: التربية الإسلامية / | AN85: اللغة الإنجليزية / | AP85: 75 | AQ85: جابر سعد سالم النابت المرى | AR85: 122.0000118
A86: 76 | B86: جاسم عبدالله خالد عبدالله الكثيرى | C86: 10 - 3 | D86: 19 | E86: 17.5 | F86: 18 | G86: 9.5 | H86: 15 | I86: 13 | J86: 15.5 | K86: 16 | L86: 6 | M86: 129.5 | N86: دور ثانى | O86: 0.4796296296 | P86: دون المستوى | R86: الكيمياء / الأحياء / | W86: x | Y86: x | AB86: x | AC86: 5 | AD86: 2 | AE86: دور ثانى | AI86: الكيمياء / | AK86: الأحياء / | AN86: اللغة الإنجليزية / | AP86: 76 | AQ86: جاسم عبدالله خالد عبدالله الكثيرى | AR86: 129.5000116
A87: 77 | B87: حمد راشد حمد ال شابل المرى | C87: 10 - 3 | D87: 20 | E87: 16 | F87: 16 | G87: 12 | H87: 19 | I87: 11 | J87: 20 | K87: 18.5 | L87: 8.5 | M87: 141 | N87: دور ثانى | O87: 0.5222222222 | P87: مقبول | R87: الكيمياء / الأحياء / | W87: x | Y87: x | AB87: x | AC87: 5 | AD87: 2 | AE87: دور ثانى | AI87: الكيمياء / | AK87: الأحياء / | AN87: اللغة الإنجليزية / | AP87: 77 | AQ87: حمد راشد حمد ال شابل المرى | AR87: 141.0000115
A88: 78 | B88: خالد حسين بلوج زنى | C88: 10 - 3 | D88: 7.5 | E88: 5.5 | F88: 20.5 | G88: 6 | H88: 11 | I88: 8 | J88: 14.5 | K88: 14 | L88: 14 | M88: 101 | N88: دور ثانى | O88: 0.3740740741 | P88: دون المستوى | R88: الرياضيات / الدراسات الاجتماعية / الكيمياء / الفيزياء / الأحياء / التربية الإسلامية / | T88: x | U88: x | W88: x | X88: x | Y88: x | Z88: x | AA88: x | AB88: x | AC88: 1 | AD88: 6 | AE88: دور ثانى | AF88: الرياضيات / | AG88: الدراسات الاجتماعية / | AI88: الكيمياء / | AJ88: الفيزياء / | AK88: الأحياء / | AL88: التربية الإسلامية / | AM88: اللغة العربية / | AN88: اللغة الإنجليزية / | AP88: 78 | AQ88: خالد حسين بلوج زنى | AR88: 101.0000114
A89: 79 | B89: خلف فرحان عقيل الرويلى العنزى | C89: 10 - 3 | D89: 13 | E89: 13.5 | F89: 21.5 | G89: 7 | H89: 14.5 | I89: 11 | J89: 12 | K89: 9 | L89: 10 | M89: 111.5 | N89: دور ثانى | O89: 0.412962963 | P89: دون المستوى | R89: الرياضيات / الدراسات الاجتماعية / الكيمياء / الفيزياء / الأحياء / التربية الإسلامية / | T89: x | U89: x | W89: x | X89: x | Y89: x | Z89: x | AA89: x | AB89: x | AC89: 1 | AD89: 6 | AE89: دور ثانى | AF89: الرياضيات / | AG89: الدراسات الاجتماعية / | AI89: الكيمياء / | AJ89: الفيزياء / | AK89: الأحياء / | AL89: التربية الإسلامية / | AM89: اللغة العربية / | AN89: اللغة الإنجليزية / | AP89: 79 | AQ89: خلف فرحان عقيل الرويلى العنزى | AR89: 111.5000112
A90: 80 | B90: راشد خالد على محمد النديله | C90: 10 - 3 | D90: 24 | E90: 12 | F90: 21 | G90: 17.5 | H90: 23 | I90: 18 | J90: 19 | K90: 20 | L90: 16.5 | M90: 171 | N90: دور ثانى | O90: 0.6333333333 | P90: مقبول | R90: الدراسات الاجتماعية / | U90: x | AC90: 6 | AD90: 1 | AE90: دور ثانى | AG90: الدراسات الاجتماعية / | AP90: 80 | AQ90: راشد خالد على محمد النديله | AR90: 171.0000111
A91: 81 | B91: سالم سعد سالم النابت المرى | C91: 10 - 3 | D91: 4.5 | E91: 15 | F91: 19 | G91: 13 | H91: 18.5 | I91: 11.5 | J91: 11 | K91: 12 | L91: 6.5 | M91: 111 | N91: دور ثانى | O91: 0.4111111111 | P91: دون المستوى | R91: الرياضيات / الكيمياء / الأحياء / التربية الإسلامية / | T91: x | W91: x | Y91: x | Z91: x | AA91: x | AB91: x | AC91: 3 | AD91: 4 | AE91: دور ثانى | AF91: الرياضيات / | AI91: الكيمياء / | AK91: الأحياء / | AL91: التربية الإسلامية / | AM91: اللغة العربية / | AN91: اللغة الإنجليزية / | AP91: 81 | AQ91: سالم سعد سالم النابت المرى | AR91: 111.000011
A92: 82 | B92: سالم على محمد سالم خوار | C92: 10 - 3 | D92: 10 | E92: 15 | F92: 20.5 | G92: 9 | H92: 17 | I92: 8 | J92: 13.5 | K92: 14 | M92: 107 | N92: دور ثانى | O92: 0.3962962963 | P92: دون المستوى | R92: الرياضيات / الكيمياء / الأحياء / التربية الإسلامية / | T92: x | W92: x | Y92: x | Z92: x | AA92: x | AB92: x | AC92: 3 | AD92: 4 | AE92: دور ثانى | AF92: الرياضيات / | AI92: الكيمياء / | AK92: الأحياء / | AL92: التربية الإسلامية / | AM92: اللغة العربية / | AN92: اللغة الإنجليزية / | AP92: 82 | AQ92: سالم على محمد سالم خوار | AR92: 107.0000109
A93: 83 | B93: سعيد حسين ناصر ال شافعه المرى | C93: 10 - 3 | D93: 16.5 | E93: 13.5 | F93: 21.5 | G93: 9 | H93: 16 | I93: 12 | J93: 18.5 | K93: 16 | L93: 16 | M93: 139 | N93: دور ثانى | O93: 0.5148148148 | P93: مقبول | R93: الدراسات الاجتماعية / الكيمياء / الأحياء / | U93: x | W93: x | Y93: x | AC93: 4 | AD93: 3 | AE93: دور ثانى | AG93: الدراسات الاجتماعية / | AI93: الكيمياء / | AK93: الأحياء / | AP93: 83 | AQ93: =B93 -> سعيد حسين ناصر ال شافعه المرى | AR93: 139.0000108
A94: 84 | B94: شاهين علي | C94: 10 - 3 | D94: 20 | E94: 10 | F94: 22 | G94: 8 | H94: 13 | I94: 10 | J94: 12 | K94: 11 | L94: 24.5 | M94: 130.5 | N94: دور ثانى | O94: 0.4833333333 | P94: دون المستوى | R94: الدراسات الاجتماعية / الكيمياء / الفيزياء / الأحياء / التربية الإسلامية / | U94: x | W94: x | X94: x | Y94: x | Z94: x | AA94: x | AC94: 2 | AD94: 5 | AE94: دور ثانى | AG94: الدراسات الاجتماعية / | AI94: الكيمياء / | AJ94: الفيزياء / | AK94: الأحياء / | AL94: التربية الإسلامية / | AM94: اللغة العربية / | AP94: 84 | AQ94: شاهين علي | AR94: 130.5000106
A95: 85 | B95: عبدالرحمن فرج محمد المشعلى القحطانى | C95: 10 - 3 | D95: 15.5 | E95: 12.5 | F95: 21 | G95: 12 | H95: 26 | I95: 13 | J95: 26.5 | K95: 18 | L95: 17.5 | M95: 162 | N95: دور ثانى | O95: 0.6 | P95: مقبول | R95: الدراسات الاجتماعية / الكيمياء / الأحياء / | U95: x | W95: x | Y95: x | AC95: 4 | AD95: 3 | AE95: دور ثانى | AG95: الدراسات الاجتماعية / | AI95: الكيمياء / | AK95: الأحياء / | AP95: 85 | AQ95: عبدالرحمن فرج محمد المشعلى القحطانى | AR95: 162.0000105
A96: 86 | B96: عبدالرشيد حسين عبدي | C96: 10 - 3 | D96: 12 | E96: 16.5 | F96: 22 | G96: 7 | H96: 16 | I96: 7.5 | J96: 12 | K96: 15 | L96: 8 | M96: 116 | N96: دور ثانى | O96: 0.4296296296 | P96: دون المستوى | R96: الرياضيات / الكيمياء / الأحياء / التربية الإسلامية / | T96: x | W96: x | Y96: x | Z96: x | AB96: x | AC96: 3 | AD96: 4 | AE96: دور ثانى | AF96: الرياضيات / | AI96: الكيمياء / | AK96: الأحياء / | AL96: التربية الإسلامية / | AN96: اللغة الإنجليزية / | AP96: 86 | AQ96: عبدالرشيد حسين عبدي | AR96: 116.0000104
A97: 87 | B97: عبدالله سعيد بخيت سعيد خوار | C97: 10 - 3 | D97: 15 | E97: 11.5 | F97: 14 | G97: 13.5 | H97: 20 | I97: 13.5 | J97: 18.5 | K97: 22 | L97: 15.5 | M97: 143.5 | N97: دور ثانى | O97: 0.5314814815 | P97: مقبول | R97: الدراسات الاجتماعية / الحوسبة وتكنولوجيا المعلومات / الكيمياء / الأحياء / | U97: x | V97: x | W97: x | Y97: x | AC97: 3 | AD97: 4 | AE97: دور ثانى | AG97: الدراسات الاجتماعية / | AH97: الحوسبة وتكنولوجيا المعلومات / | AI97: الكيمياء / | AK97: الأحياء / | AP97: 87 | AQ97: عبدالله سعيد بخيت سعيد خوار | AR97: 143.5000103
A98: 88 | B98: عبدالله سعيد عبدالله آل نابت المرى | C98: 10 - 3 | D98: 22.5 | E98: 15.5 | F98: 15 | G98: 15.5 | H98: 22.5 | I98: 11 | J98: 14 | K98: 14 | L98: 16.5 | M98: 146.5 | N98: دور ثانى | O98: 0.5425925926 | P98: مقبول | R98: الأحياء / التربية الإسلامية / | Y98: x | Z98: x | AA98: x | AC98: 5 | AD98: 2 | AE98: دور ثانى | AK98: الأحياء / | AL98: التربية الإسلامية / | AM98: اللغة العربية / | AP98: 88 | AQ98: عبدالله سعيد عبدالله آل نابت المرى | AR98: 146.5000102
A99: 89 | B99: عبدالله عادل خصيف | C99: 10 - 3 | M99: 0 | N99: دور ثانى | O99: 0 | P99: دون المستوى | R99: الرياضيات / الدراسات الاجتماعية / الحوسبة وتكنولوجيا المعلومات / الكيمياء / الفيزياء / الأحياء / التربية الإسلامية / | T99: x | U99: x | V99: x | W99: x | X99: x | Y99: x | Z99: x | AA99: x | AB99: x | AC99: 0 | AD99: 7 | AE99: دور ثانى | AF99: الرياضيات / | AG99: الدراسات الاجتماعية / | AH99: الحوسبة وتكنولوجيا المعلومات / | AI99: الكيمياء / | AJ99: الفيزياء / | AK99: الأحياء / | AL99: التربية الإسلامية / | AM99: اللغة العربية / | AN99: اللغة الإنجليزية / | AP99: 89 | AQ99: عبدالله عادل خصيف | AR99: 1.01010101e-05 | AS99: 49
A100: 90 | B100: عبدالله مبارك سالم بطى الكعبى | C100: 10 - 3 | D100: 20.5 | E100: 21 | F100: 18 | G100: 16.5 | H100: 29 | I100: 13 | J100: 16 | K100: 17.5 | L100: 19 | M100: 170.5 | N100: دور ثانى | O100: 0.6314814815 | P100: مقبول | R100: الأحياء / | Y100: x | AC100: 6 | AD100: 1 | AE100: دور ثانى | AK100: الأحياء / | AP100: 90 | AQ100: عبدالله مبارك سالم بطى الكعبى | AR100: 170.50001
A101: 91 | B101: على عجيم على عجيم الحبابى | C101: 10 - 3 | D101: 15 | E101: 26.5 | F101: 21 | G101: 19 | H101: 19 | I101: 11.5 | J101: 12 | K101: 15 | L101: 19 | M101: 158 | N101: دور ثانى | O101: 0.5851851852 | P101: مقبول | R101: الأحياء / التربية الإسلامية / | Y101: x | Z101: x | AC101: 5 | AD101: 2 | AE101: دور ثانى | AK101: الأحياء / | AL101: التربية الإسلامية / | AP101: 91 | AQ101: على عجيم على عجيم الحبابى | AR101: 158.0000099
A102: 92 | B102: على فهد على احمد محمد | C102: 10 - 3 | D102: 15 | E102: 10.5 | F102: 15 | G102: 9 | H102: 18 | I102: 9 | J102: 17 | K102: 19 | L102: 16.5 | M102: 129 | N102: دور ثانى | O102: 0.4777777778 | P102: دون المستوى | R102: الدراسات الاجتماعية / الكيمياء / الأحياء / | U102: x | W102: x | Y102: x | AC102: 4 | AD102: 3 | AE102: دور ثانى | AG102: الدراسات الاجتماعية / | AI102: الكيمياء / | AK102: الأحياء / | AP102: 92 | AQ102: على فهد على احمد محمد | AR102: 129.0000098
A103: 93 | B103: عمر عبيدالله روح الامين مريضا | C103: 10 - 3 | D103: 11 | E103: 8.5 | F103: 19.5 | G103: 10 | H103: 9 | I103: 10.5 | J103: 18.5 | K103: 13 | L103: 25.5 | M103: 125.5 | N103: دور ثانى | O103: 0.4648148148 | P103: دون المستوى | R103: الرياضيات / الدراسات الاجتماعية / الكيمياء / الفيزياء / الأحياء / | T103: x | U103: x | W103: x | X103: x | Y103: x | AA103: x | AC103: 2 | AD103: 5 | AE103: دور ثانى | AF103: الرياضيات / | AG103: الدراسات الاجتماعية / | AI103: الكيمياء / | AJ103: الفيزياء / | AK103: الأحياء / | AM103: اللغة العربية / | AP103: 93 | AQ103: عمر عبيدالله روح الامين مريضا | AR103: 125.5000097
A104: 94 | B104: ماجد صلاح خميس يوسف ابراهيم | C104: 10 - 3 | I104: 6 | J104: 11 | L104: 5 | M104: 22 | N104: دور ثانى | O104: 0.08148148148 | P104: دون المستوى | R104: الرياضيات / الدراسات الاجتماعية / الحوسبة وتكنولوجيا المعلومات / الكيمياء / الفيزياء / الأحياء / التربية الإسلامية / | T104: x | U104: x | V104: x | W104: x | X104: x | Y104: x | Z104: x | AA104: x | AB104: x | AC104: 0 | AD104: 7 | AE104: دور ثانى | AF104: الرياضيات / | AG104: الدراسات الاجتماعية / | AH104: الحوسبة وتكنولوجيا المعلومات / | AI104: الكيمياء / | AJ104: الفيزياء / | AK104: الأحياء / | AL104: التربية الإسلامية / | AM104: اللغة العربية / | AN104: اللغة الإنجليزية / | AP104: 94 | AQ104: ماجد صلاح خميس يوسف ابراهيم | AR104: 22.00000962
A105: 95 | B105: محمد عبدالله عبدالله ابراهيم الخليفى | C105: 10 - 3 | D105: 19.5 | E105: 14.5 | F105: 23 | G105: 15.5 | H105: 13 | I105: 5 | J105: 13 | K105: 12 | L105: 15.5 | M105: 131 | N105: دور ثانى | O105: 0.4851851852 | P105: دون المستوى | R105: الدراسات الاجتماعية / الفيزياء / الأحياء / التربية الإسلامية / | U105: x | X105: x | Y105: x | Z105: x | AA105: x | AC105: 3 | AD105: 4 | AE105: دور ثانى | AG105: الدراسات الاجتماعية / | AJ105: الفيزياء / | AK105: الأحياء / | AL105: التربية الإسلامية / | AM105: اللغة العربية / | AP105: 95 | AQ105: محمد عبدالله عبدالله ابراهيم الخليفى | AR105: 131.0000095
A106: 96 | B106: محمد عبدالله محمد جاسم السويدى | C106: 10 - 3 | D106: 22.5 | E106: 13 | F106: 17 | G106: 19 | H106: 11 | I106: 0 | J106: 14.5 | K106: 17 | L106: 16.5 | M106: 130.5 | N106: دور ثانى | O106: 0.4833333333 | P106: دون المستوى | R106: الدراسات الاجتماعية / الفيزياء / الأحياء / التربية الإسلامية / | U106: x | X106: x | Y106: x | Z106: x | AC106: 3 | AD106: 4 | AE106: دور ثانى | AG106: الدراسات الاجتماعية / | AJ106: الفيزياء / | AK106: الأحياء / | AL106: التربية الإسلامية / | AP106: 96 | AQ106: محمد عبدالله محمد جاسم السويدى | AR106: 130.5000094
A107: 97 | B107: محمدزين عبدالحميد المبارك على | C107: 10 - 3 | D107: 12 | E107: 14.5 | F107: 13 | G107: 16 | H107: 15 | I107: 8 | J107: 12 | K107: 17 | L107: 14.5 | M107: 122 | N107: دور ثانى | O107: 0.4518518519 | P107: دون المستوى | R107: الرياضيات / الدراسات الاجتماعية / الحوسبة وتكنولوجيا المعلومات / الأحياء / التربية الإسلامية / | T107: x | U107: x | V107: x | Y107: x | Z107: x | AB107: x | AC107: 2 | AD107: 5 | AE107: دور ثانى | AF107: الرياضيات / | AG107: الدراسات الاجتماعية / | AH107: الحوسبة وتكنولوجيا المعلومات / | AK107: الأحياء / | AL107: التربية الإسلامية / | AN107: اللغة الإنجليزية / | AP107: =A107 -> 97 | AQ107: محمدزين عبدالحميد المبارك على | AR107: 122.0000093 | AS107: =IF(M107=" "," ",IF(M107="غ","غ",RANK(M107,$M$11:$M$60))) -> 
A108: 98 | B108: محمود اسعد الحاج الخلف | C108: 10 - 3 | D108: 10.5 | E108: 17.5 | F108: 16 | G108: 7 | H108: 19 | I108: 12 | J108: 17.5 | K108: 17.5 | L108: 18 | M108: 135 | N108: دور ثانى | O108: 0.5 | P108: مقبول | R108: الرياضيات / الكيمياء / الأحياء / | T108: x | W108: x | Y108: x | AC108: 4 | AD108: 3 | AE108: دور ثانى | AF108: الرياضيات / | AI108: الكيمياء / | AK108: الأحياء / | AP108: 98 | AQ108: محمود اسعد الحاج الخلف | AR108: 135.0000093
A109: 99 | B109: مسفر سعد محمد ذفال الحبابى | C109: 10 - 3 | I109: 12 | J109: 13 | L109: 13 | M109: 38 | N109: دور ثانى | O109: 0.1407407407 | P109: دون المستوى | R109: الرياضيات / الدراسات الاجتماعية / الحوسبة وتكنولوجيا المعلومات / الكيمياء / الفيزياء / الأحياء / التربية الإسلامية / | T109: x | U109: x | V109: x | W109: x | X109: x | Y109: x | Z109: x | AA109: x | AB109: x | AC109: 0 | AD109: 7 | AE109: دور ثانى | AF109: الرياضيات / | AG109: الدراسات الاجتماعية / | AH109: الحوسبة وتكنولوجيا المعلومات / | AI109: الكيمياء / | AJ109: الفيزياء / | AK109: الأحياء / | AL109: التربية الإسلامية / | AM109: اللغة العربية / | AN109: اللغة الإنجليزية / | AP109: 99 | AQ109: مسفر سعد محمد ذفال الحبابى | AR109: 38.00000917
A110: 100 | B110: ناصر جهان بخش مرادك درزاده | C110: 10 - 3 | D110: 7.5 | E110: 7 | F110: 20 | G110: 15 | H110: 11 | I110: 13.5 | J110: 15.5 | K110: 17.5 | L110: 14 | M110: 121 | N110: دور ثانى | O110: 0.4481481481 | P110: دون المستوى | R110: الرياضيات / الدراسات الاجتماعية / الفيزياء / الأحياء / | T110: x | U110: x | X110: x | Y110: x | AB110: x | AC110: 3 | AD110: 4 | AE110: دور ثانى | AF110: الرياضيات / | AG110: الدراسات الاجتماعية / | AJ110: الفيزياء / | AK110: الأحياء / | AN110: اللغة الإنجليزية / | AP110: 100 | AQ110: ناصر جهان بخش مرادك درزاده | AR110: 121.0000091
A111: 101 | B111: ناصر محمد خالد احمد الغانم | C111: 10 - 3 | D111: 8 | E111: 10 | F111: 20 | G111: 11 | H111: 20 | I111: 9.5 | J111: 17 | K111: 14 | L111: 12 | M111: 121.5 | N111: دور ثانى | O111: 0.45 | P111: دون المستوى | R111: الرياضيات / الدراسات الاجتماعية / الكيمياء / الأحياء / | T111: x | U111: x | W111: x | Y111: x | AA111: x | AB111: x | AC111: 3 | AD111: 4 | AE111: دور ثانى | AF111: الرياضيات / | AG111: الدراسات الاجتماعية / | AI111: الكيمياء / | AK111: الأحياء / | AM111: اللغة العربية / | AN111: اللغة الإنجليزية / | AP111: 101 | AQ111: ناصر محمد خالد احمد الغانم | AR111: 121.500009
A112: 102 | B112: يوسف صالح على عبدالعزيز على | C112: 10 - 3 | D112: 23 | E112: 10 | F112: 18.5 | G112: 16.5 | H112: 23 | I112: 15.5 | J112: 10 | K112: 16 | L112: 23.5 | M112: 156 | N112: دور ثانى | O112: 0.5777777778 | P112: مقبول | R112: الدراسات الاجتماعية / التربية الإسلامية / | U112: x | Z112: x | AC112: 5 | AD112: 2 | AE112: دور ثانى | AG112: الدراسات الاجتماعية / | AL112: التربية الإسلامية / | AP112: 102 | AQ112: يوسف صالح على عبدالعزيز على | AR112: 156.0000089
A113: 103 | B113: احمد رائد سليمان المومني | C113: 10 - 4 | D113: 11.5 | E113: 21 | F113: 27 | G113: 11.5 | H113: 20 | I113: 10.5 | J113: 22 | K113: 22 | L113: 18.5 | M113: 164 | N113: دور ثانى | O113: 0.6074074074 | P113: مقبول | R113: الرياضيات / الكيمياء / الأحياء / | T113: x | W113: x | Y113: x | AC113: 4 | AD113: 3 | AE113: دور ثانى | AF113: الرياضيات / | AI113: الكيمياء / | AK113: الأحياء / | AP113: 103 | AQ113: احمد رائد سليمان المومني | AR113: 164.0000088
A114: 104 | B114: أحمد نافذ حماده حموده | C114: 10 - 4 | D114: 12 | E114: 22 | F114: 18 | G114: 20.5 | H114: 17 | I114: 12 | J114: 23 | K114: 17.5 | L114: 18 | M114: 160 | N114: دور ثانى | O114: 0.5925925926 | P114: مقبول | R114: الرياضيات / الأحياء / | T114: x | Y114: x | AC114: 5 | AD114: 2 | AE114: دور ثانى | AF114: الرياضيات / | AK114: الأحياء / | AP114: 104 | AQ114: أحمد نافذ حماده حموده | AR114: 160.0000088
A115: 105 | B115: أحمد يوسف خالد يوسف شراب | C115: 10 - 4 | D115: 16.5 | E115: 20 | F115: 16 | G115: 19.5 | H115: 18 | I115: 15 | J115: 22 | K115: 19.5 | L115: 17.5 | M115: 164 | N115: ناجح | O115: 0.6074074074 | P115: مقبول | AC115: 7 | AD115: 0 | AE115: ناجح | AP115: 105 | AQ115: أحمد يوسف خالد يوسف شراب | AR115: 164.0000087
A116: 106 | B116: تميم سالم راشد الصعاق المرى | C116: 10 - 4 | D116: 14 | E116: 11 | F116: 17 | G116: 13.5 | H116: 20 | I116: 6 | J116: 17 | K116: 14.5 | L116: 6.5 | M116: 119.5 | N116: دور ثانى | O116: 0.4425925926 | P116: دون المستوى | R116: الرياضيات / الدراسات الاجتماعية / الكيمياء / الأحياء / | T116: x | U116: x | W116: x | Y116: x | AA116: x | AB116: x | AC116: 3 | AD116: 4 | AE116: دور ثانى | AF116: الرياضيات / | AG116: الدراسات الاجتماعية / | AI116: الكيمياء / | AK116: الأحياء / | AM116: اللغة العربية / | AN116: اللغة الإنجليزية / | AP116: 106 | AQ116: تميم سالم راشد الصعاق المرى | AR116: 119.5000086
A117: 107 | B117: جابر سعيد جابر سالم اليربوعى | C117: 10 - 4 | D117: 13.5 | E117: 12.5 | F117: 19 | G117: 17 | H117: 7 | I117: 8 | J117: 15 | K117: 15 | M117: 107 | N117: دور ثانى | O117: 0.3962962963 | P117: دون المستوى | R117: الرياضيات / الدراسات الاجتماعية / الفيزياء / الأحياء / | T117: x | U117: x | X117: x | Y117: x | AB117: x | AC117: 3 | AD117: 4 | AE117: دور ثانى | AF117: الرياضيات / | AG117: الدراسات الاجتماعية / | AJ117: الفيزياء / | AK117: الأحياء / | AN117: اللغة الإنجليزية / | AP117: 107 | AQ117: جابر سعيد جابر سالم اليربوعى | AR117: 107.0000085
A118: 108 | B118: جاسم محمود محمد عبداللهي | C118: 10 - 4 | D118: 20.5 | E118: 26 | F118: 16 | G118: 20 | H118: 20 | I118: 14 | J118: 24 | K118: 23.5 | L118: 18 | M118: 182 | N118: دور ثانى | O118: 0.6740740741 | P118: جيد | R118: الأحياء / | Y118: x | AC118: 6 | AD118: 1 | AE118: دور ثانى | AK118: الأحياء / | AP118: 108 | AQ118: جاسم محمود محمد عبداللهي | AR118: 182.0000085
A119: 109 | B119: جاسم ناصر جاسم محمد المفتاح | C119: 10 - 4 | D119: 23.5 | E119: 19.5 | F119: 17.5 | G119: 17 | H119: 26 | I119: 19.5 | J119: 17.5 | K119: 21 | L119: 29.5 | M119: 191 | N119: ناجح | O119: 0.7074074074 | P119: جيد | AC119: 7 | AD119: 0 | AE119: ناجح | AP119: 109 | AQ119: جاسم ناصر جاسم محمد المفتاح | AR119: 191.0000084
A120: 110 | B120: حمد محمد بخيت تويم المرى | C120: 10 - 4 | D120: 19 | E120: 15.5 | F120: 11 | G120: 12 | H120: 20 | I120: 7 | J120: 20.5 | K120: 18 | L120: 16.5 | M120: 139.5 | N120: دور ثانى | O120: 0.5166666667 | P120: مقبول | R120: الحوسبة وتكنولوجيا المعلومات / الكيمياء / الأحياء / | V120: x | W120: x | Y120: x | AC120: 4 | AD120: 3 | AE120: دور ثانى | AH120: الحوسبة وتكنولوجيا المعلومات / | AI120: الكيمياء / | AK120: الأحياء / | AP120: 110 | AQ120: حمد محمد بخيت تويم المرى | AR120: 139.5000083
A121: 111 | B121: خالد سعيد محمد البريكان المرى | C121: 10 - 4 | D121: 14 | E121: 24 | F121: 18.5 | G121: 22 | H121: 22 | I121: 21 | J121: 24 | K121: 23 | L121: 15.5 | M121: 184 | N121: دور ثانى | O121: 0.6814814815 | P121: جيد | R121: الرياضيات / | T121: x | AC121: 6 | AD121: 1 | AE121: دور ثانى | AF121: الرياضيات / | AP121: 111 | AQ121: خالد سعيد محمد البريكان المرى | AR121: 184.0000083
A122: 112 | B122: خميس محمد سيف خميس الريامي | C122: 10 - 4 | D122: 18 | E122: 19.5 | F122: 21.5 | G122: 17 | H122: 15 | I122: 11.5 | J122: 24.5 | K122: 15 | L122: 12.5 | M122: 154.5 | N122: دور ثانى | O122: 0.5722222222 | P122: مقبول | R122: الأحياء / | Y122: x | AB122: x | AC122: 6 | AD122: 1 | AE122: دور ثانى | AK122: الأحياء / | AN122: اللغة الإنجليزية / | AP122: 112 | AQ122: خميس محمد سيف خميس الريامي | AR122: 154.5000082
A123: 113 | B123: راشد حمد راشد سالم خادم | C123: 10 - 4 | D123: 14.5 | E123: 9.5 | F123: 19 | G123: 7.5 | H123: 13 | I123: 8.5 | J123: 13 | K123: 8 | M123: 93 | N123: دور ثانى | O123: 0.3444444444 | P123: دون المستوى | R123: الرياضيات / الدراسات الاجتماعية / الكيمياء / الفيزياء / الأحياء / التربية الإسلامية / | T123: x | U123: x | W123: x | X123: x | Y123: x | Z123: x | AA123: x | AB123: x | AC123: 1 | AD123: 6 | AE123: دور ثانى | AF123: الرياضيات / | AG123: الدراسات الاجتماعية / | AI123: الكيمياء / | AJ123: الفيزياء / | AK123: الأحياء / | AL123: التربية الإسلامية / | AM123: اللغة العربية / | AN123: اللغة الإنجليزية / | AP123: 113 | AQ123: راشد حمد راشد سالم خادم | AR123: 93.00000813
A124: 114 | B124: سالم حمد سالم اليربوعى المرى | C124: 10 - 4 | M124: 0 | N124: دور ثانى | O124: 0 | P124: دون المستوى | R124: الرياضيات / الدراسات الاجتماعية / الحوسبة وتكنولوجيا المعلومات / الكيمياء / الفيزياء / الأحياء / التربية الإسلامية / | T124: x | U124: x | V124: x | W124: x | X124: x | Y124: x | Z124: x | AA124: x | AB124: x | AC124: 0 | AD124: 7 | AE124: دور ثانى | AF124: الرياضيات / | AG124: الدراسات الاجتماعية / | AH124: الحوسبة وتكنولوجيا المعلومات / | AI124: الكيمياء / | AJ124: الفيزياء / | AK124: الأحياء / | AL124: التربية الإسلامية / | AM124: اللغة العربية / | AN124: اللغة الإنجليزية / | AP124: 114 | AQ124: سالم حمد سالم اليربوعى المرى | AR124: 8.064516129e-06 | AS124: 49
A125: 115 | B125: سليمان حسن علي سليمان موسى | C125: 10 - 4 | D125: 17.5 | E125: 16 | F125: 19.5 | G125: 16 | H125: 18.5 | I125: 13.5 | J125: 26 | K125: 19 | L125: 15.5 | M125: 161.5 | N125: دور ثانى | O125: 0.5981481481 | P125: مقبول | R125: =CONCATENATE(AF125,AG125,AH125,AI125,AJ125,AK125,AL125) -> الأحياء / | Y125: x | AC125: 6 | AD125: 1 | AE125: دور ثانى | AK125: الأحياء / | AP125: 115 | AQ125: =B125 -> سليمان حسن علي سليمان موسى | AR125: =IF(M125="","",IF(M125="غ","غ",M125+1/ROW()*0.001)) -> 161.500008
A126: 116 | B126: شعيب عبدي قرني قلديد | C126: 10 - 4 | D126: 10 | E126: 11.5 | F126: 17 | G126: 13 | H126: 19 | I126: 11.5 | J126: 20 | K126: 17.5 | L126: 9.5 | M126: 129 | N126: دور ثانى | O126: 0.4777777778 | P126: دون المستوى | R126: الرياضيات / الدراسات الاجتماعية / الكيمياء / الأحياء / | T126: x | U126: x | W126: x | Y126: x | AB126: x | AC126: 3 | AD126: 4 | AE126: دور ثانى | AF126: الرياضيات / | AG126: الدراسات الاجتماعية / | AI126: الكيمياء / | AK126: الأحياء / | AN126: اللغة الإنجليزية / | AP126: 116 | AQ126: شعيب عبدي قرني قلديد | AR126: 129.0000079
A127: 117 | B127: عابدين حافظ عابدين موسى | C127: 10 - 4 | D127: 10 | E127: 18.5 | F127: 20.5 | G127: 15 | H127: 19 | I127: 11.5 | J127: 18 | K127: 17.5 | L127: 18.5 | M127: 148.5 | N127: دور ثانى | O127: 0.55 | P127: مقبول | R127: الرياضيات / الأحياء / | T127: x | Y127: x | AC127: 5 | AD127: 2 | AE127: دور ثانى | AF127: الرياضيات / | AK127: الأحياء / | AP127: 117 | AQ127: عابدين حافظ عابدين موسى | AR127: 148.5000079
A128: 118 | B128: عبدالرحمن صبرى عثمان محسن اليهرى | C128: 10 - 4 | D128: 17.5 | E128: 24 | F128: 21 | G128: 15.5 | H128: 22 | I128: 12.5 | J128: 21 | K128: 17.5 | L128: 12 | M128: 163 | N128: دور ثانى | O128: 0.6037037037 | P128: مقبول | R128: الأحياء / | Y128: x | AB128: x | AC128: 6 | AD128: 1 | AE128: دور ثانى | AK128: الأحياء / | AN128: اللغة الإنجليزية / | AP128: 118 | AQ128: عبدالرحمن صبرى عثمان محسن اليهرى | AR128: 163.0000078
A129: 119 | B129: عبدالله سالم محمد سالم خوار | C129: 10 - 4 | D129: 9 | E129: 17 | F129: 20.5 | G129: 24 | H129: 13.5 | I129: 8 | J129: 14 | K129: 9 | M129: 115 | N129: دور ثانى | O129: 0.4259259259 | P129: دون المستوى | R129: الرياضيات / الفيزياء / الأحياء / التربية الإسلامية / | T129: x | X129: x | Y129: x | Z129: x | AA129: x | AB129: x | AC129: 3 | AD129: 4 | AE129: دور ثانى | AF129: الرياضيات / | AJ129: الفيزياء / | AK129: الأحياء / | AL129: التربية الإسلامية / | AM129: اللغة العربية / | AN129: اللغة الإنجليزية / | AP129: 119 | AQ129: عبدالله سالم محمد سالم خوار | AR129: 115.0000078
A130: 120 | B130: عبدالله ضيف الله برمان الدوسري | C130: 10 - 4 | D130: 25 | E130: 26.5 | F130: 23 | G130: 26 | H130: 23 | I130: 24.5 | J130: 27 | K130: 21 | L130: 23.5 | M130: 219.5 | N130: ناجح | O130: 0.812962963 | P130: جيد جدا | AC130: 7 | AD130: 0 | AE130: ناجح | AP130: 120 | AQ130: عبدالله ضيف الله برمان الدوسري | AR130: 219.5000077 | AS130: 35
A131: 121 | B131: عدي فريد احمد حسين | C131: 10 - 4 | D131: 22 | E131: 27 | F131: 26 | G131: 22.5 | H131: 18.5 | I131: 19 | J131: 20.5 | K131: 25 | L131: 19.5 | M131: 200 | N131: ناجح | O131: 0.7407407407 | P131: جيد | AC131: 7 | AD131: 0 | AE131: ناجح | AP131: 121 | AQ131: عدي فريد احمد حسين | AR131: 200.0000076
A132: 122 | B132: عزيز خالد سالم ابو شنار | C132: 10 - 4 | D132: 18 | E132: 20.5 | F132: 20.5 | G132: 26.5 | H132: 20 | I132: 20 | J132: 24.5 | K132: 27 | L132: 24 | M132: 201 | N132: ناجح | O132: 0.7444444444 | P132: جيد | AC132: 7 | AD132: 0 | AE132: ناجح | AP132: 122 | AQ132: عزيز خالد سالم ابو شنار | AR132: 201.0000076
A133: 123 | B133: على محمد عويض الصقور المرى | C133: 10 - 4 | D133: 12 | E133: 13 | F133: 15.5 | G133: 16 | H133: 10.5 | I133: 11 | J133: 17 | K133: 18 | L133: 17.5 | M133: 130.5 | N133: دور ثانى | O133: 0.4833333333 | P133: دون المستوى | R133: الرياضيات / الدراسات الاجتماعية / الفيزياء / الأحياء / | T133: x | U133: x | X133: x | Y133: x | AC133: 3 | AD133: 4 | AE133: دور ثانى | AF133: الرياضيات / | AG133: الدراسات الاجتماعية / | AJ133: الفيزياء / | AK133: الأحياء / | AP133: 123 | AQ133: على محمد عويض الصقور المرى | AR133: 130.5000075
A134: 124 | B134: علي عاطف سالم ابراهيم سالم | C134: 10 - 4 | D134: 11.5 | E134: 19 | F134: 20 | G134: 16 | H134: 7 | I134: 13 | J134: 24 | K134: 21 | L134: 24 | M134: 155.5 | N134: دور ثانى | O134: 0.5759259259 | P134: مقبول | R134: الرياضيات / الفيزياء / الأحياء / | T134: x | X134: x | Y134: x | AC134: 4 | AD134: 3 | AE134: دور ثانى | AF134: الرياضيات / | AJ134: الفيزياء / | AK134: الأحياء / | AP134: 124 | AQ134: علي عاطف سالم ابراهيم سالم | AR134: 155.5000075
A135: 125 | B135: علي محمد عبدالله احمد شمس | C135: 10 - 4 | D135: 20.5 | E135: 12 | F135: 17.5 | G135: 24 | H135: 18 | I135: 16 | J135: 21 | K135: 21.5 | L135: 17.5 | M135: 168 | N135: دور ثانى | O135: 0.6222222222 | P135: مقبول | R135: الدراسات الاجتماعية / | U135: x | AC135: 6 | AD135: 1 | AE135: دور ثانى | AG135: الدراسات الاجتماعية / | AP135: 125 | AQ135: علي محمد عبدالله احمد شمس | AR135: 168.0000074
A136: 126 | B136: عمر محمد محمود ابوزاهر | C136: 10 - 4 | D136: 30 | E136: 29 | F136: 26 | G136: 30 | H136: 30 | I136: 29 | J136: 29 | K136: 29 | L136: 22.5 | M136: 254.5 | N136: ناجح | O136: 0.9425925926 | P136: ممتاز | AC136: 7 | AD136: 0 | AE136: ناجح | AP136: 126 | AQ136: عمر محمد محمود ابوزاهر | AR136: 254.5000074
A137: 127 | B137: فهد سويد سلطان محمد الخوار | C137: 10 - 4 | D137: 10 | E137: 19 | F137: 18 | G137: 10.5 | H137: 12 | I137: 7.5 | J137: 20 | K137: 15 | L137: 17.5 | M137: 129.5 | N137: دور ثانى | O137: 0.4796296296 | P137: دون المستوى | R137: الرياضيات / الكيمياء / الفيزياء / الأحياء / | T137: x | W137: x | X137: x | Y137: x | AC137: 3 | AD137: 4 | AE137: دور ثانى | AF137: الرياضيات / | AI137: الكيمياء / | AJ137: الفيزياء / | AK137: الأحياء / | AP137: 127 | AQ137: فهد سويد سلطان محمد الخوار | AR137: 129.5000073
A138: 128 | B138: محمد حافظ محمد ابوالكلام كبيرالدين | C138: 10 - 4 | D138: 8 | E138: 24 | F138: 22 | G138: 12 | H138: 16 | I138: 16 | J138: 20 | K138: 20.5 | L138: 21.5 | M138: 160 | N138: دور ثانى | O138: 0.5925925926 | P138: مقبول | R138: الرياضيات / الكيمياء / | T138: x | W138: x | AC138: 5 | AD138: 2 | AE138: دور ثانى | AF138: الرياضيات / | AI138: الكيمياء / | AP138: 128 | AQ138: محمد حافظ محمد ابوالكلام كبيرالدين | AR138: 160.0000072
A139: 129 | B139: محمد حسن حسن ناجى الجدره | C139: 10 - 4 | D139: 17 | E139: 20.5 | F139: 19 | G139: 12 | H139: 14 | I139: 14 | J139: 22.5 | K139: 19.5 | L139: 16 | M139: =IF(B139="","",IF(AND(D139="غ",E139="غ",F139="غ",G139="غ",H139="غ",I139="غ",J139="غ",K139="غ",L139="غ"),"غ",SUM(D139,E139,F139,G139,H139,I139,J139,K139,L139))) -> 154.5 | N139: =IF(B139="","",AE139) -> دور ثانى | O139: =IF(B139="","",IF(M139="غ","غ",M139/$M$10*100/100)) -> 0.5722222222 | P139: مقبول | R139: الكيمياء / الفيزياء / الأحياء / | W139: x | X139: x | Y139: x | AC139: =IF(B139="","",COUNTBLANK(T139:Z139)) -> 4 | AD139: =IF(B139="","",COUNTIF(T139:Z139,"x")) -> 3 | AE139: =IF(B139="","",IF(AC139=7,"ناجح","دور ثانى")) -> دور ثانى | AI139: الكيمياء / | AJ139: الفيزياء / | AK139: الأحياء / | AP139: 129 | AQ139: محمد حسن حسن ناجى الجدره | AR139: 154.5000072
A140: =ROW()-10 -> 130 | B140: محمد حمد محمد صالح الصرامى | C140: 10 - 4 | D140: 12 | E140: 10 | F140: 19.5 | G140: 14 | H140: 24 | I140: 10 | J140: 24 | K140: 20 | L140: 21 | M140: 154.5 | N140: دور ثانى | O140: 0.5722222222 | P140: =IF(M140="","",IF(M140="غ","غ",IF(M140=0,"دون المستوى",IF(M140/$M$10*100>=85,"ممتاز",IF(M140/$M$10*100>=75,"جيد جدا",IF(M140/$M$10*100>=65,"جيد",IF(M140/$M$10*100>=50,"مقبول",IF(M140/$M$10*100<50,"دون المستوى")))))))) -> مقبول | R140: الرياضيات / الدراسات الاجتماعية / الكيمياء / الأحياء / | T140: =IF($B140="","",IF(OR(D140<15,D140="",D140="غ",D140="صفر"=""),"x","")) -> x | U140: =IF($B140="","",IF(OR(E140<15,E140="",E140="غ",E140="صفر"=""),"x","")) -> x | V140: =IF($B140="","",IF(OR(F140<15,F140="",F140="غ",F140="صفر"=""),"x","")) ->  | W140: =IF($B140="","",IF(OR(G140<15,G140="",G140="غ",G140="صفر"=""),"x","")) -> x | X140: =IF($B140="","",IF(OR(H140<15,H140="",H140="غ",H140="صفر"=""),"x","")) ->  | Y140: =IF($B140="","",IF(OR(I140<15,I140="",I140="غ",I140="صفر"=""),"x","")) -> x | Z140: =IF($B140="","",IF(OR(J140<15,J140="",J140="غ",J140="صفر"=""),"x","")) ->  | AA140: =IF($B140="","",IF(OR(K140<15,K140="",K140="غ",K140="صفر"=""),"x","")) ->  | AB140: =IF($B140="","",IF(OR(L140<15,L140="",L140="غ",L140="صفر"=""),"x","")) ->  | AC140: 3 | AD140: 4 | AE140: دور ثانى | AF140: =IF(T140="x","الرياضيات / ","") -> الرياضيات / | AG140: =IF(U140="x","الدراسات الاجتماعية / ","") -> الدراسات الاجتماعية / | AH140: =IF(V140="x","الحوسبة وتكنولوجيا المعلومات / ","") ->  | AI140: =IF(W140="x","الكيمياء / ","") -> الكيمياء / | AJ140: =IF(X140="x","الفيزياء / ","") ->  | AK140: =IF(Y140="x","الأحياء / ","") -> الأحياء / | AL140: =IF(Z140="x","التربية الإسلامية / ","") ->  | AM140: =IF(AA140="x","اللغة العربية / ","") ->  | AN140: =IF(AB140="x","اللغة الإنجليزية / ","") ->  | AP140: 130 | AQ140: محمد حمد محمد صالح الصرامى | AR140: 154.5000071
A141: 131 | B141: محمد عبدالعزيز عبدالكريم يحى يعقوب | C141: 10 - 4 | D141: 22.5 | E141: 19.5 | F141: 23 | G141: 25.5 | H141: 24 | I141: 24 | J141: 24 | K141: 20 | L141: 26.5 | M141: 209 | N141: ناجح | O141: 0.7740740741 | P141: جيد جدا | AC141: 7 | AD141: 0 | AE141: ناجح | AP141: 131 | AQ141: محمد عبدالعزيز عبدالكريم يحى يعقوب | AR141: 209.0000071
A142: 132 | B142: محمد عبدالله بخيت محمد المهيري | C142: 10 - 4 | D142: 26.5 | E142: 28 | F142: 16 | G142: 24.5 | H142: 17 | I142: 26 | J142: 24.5 | K142: 22 | L142: 25.5 | M142: 210 | N142: ناجح | O142: 0.7777777778 | P142: جيد جدا | AC142: 7 | AD142: 0 | AE142: ناجح | AP142: 132 | AQ142: محمد عبدالله بخيت محمد المهيري | AR142: 210.000007 | AS142: 39
A143: 133 | B143: محمد هشام حامد على ابوخطيطه | C143: 10 - 4 | D143: 29.5 | E143: 25 | F143: 26.5 | G143: 29.5 | H143: 30 | I143: 29 | J143: 26 | K143: 27.5 | L143: 27 | M143: 250 | N143: ناجح | O143: 0.9259259259 | P143: ممتاز | AC143: 7 | AD143: 0 | AE143: ناجح | AP143: 133 | AQ143: محمد هشام حامد على ابوخطيطه | AR143: 250.000007
A144: 134 | B144: محمد يوسف محمد ابراهيم محمد | C144: 10 - 4 | D144: 5 | E144: 16.5 | F144: 15 | G144: 10.5 | H144: 11.5 | I144: 10 | J144: 17 | K144: 16 | L144: 11.5 | M144: 113 | N144: دور ثانى | O144: 0.4185185185 | P144: دون المستوى | R144: الرياضيات / الكيمياء / الفيزياء / الأحياء / | T144: x | W144: x | X144: x | Y144: x | AB144: x | AC144: 3 | AD144: 4 | AE144: دور ثانى | AF144: الرياضيات / | AI144: الكيمياء / | AJ144: الفيزياء / | AK144: الأحياء / | AN144: اللغة الإنجليزية / | AP144: 134 | AQ144: محمد يوسف محمد ابراهيم محمد | AR144: 113.0000069
A145: 135 | B145: محمد يونس محمد زحمت كش | C145: 10 - 4 | D145: 11.5 | E145: 17.5 | F145: 15 | G145: 17.5 | H145: 21 | I145: 13 | J145: 21.5 | K145: 15 | L145: 14.5 | M145: 146.5 | N145: دور ثانى | O145: 0.5425925926 | P145: مقبول | R145: الرياضيات / الأحياء / | T145: x | Y145: x | AB145: x | AC145: 5 | AD145: 2 | AE145: دور ثانى | AF145: الرياضيات / | AK145: الأحياء / | AN145: اللغة الإنجليزية / | AP145: 135 | AQ145: محمد يونس محمد زحمت كش | AR145: 146.5000069
A146: 136 | B146: بدر ناصر جابر سهل المرى | C146: 10 - 5 | D146: 20.5 | E146: 11 | F146: 16 | G146: 13 | H146: 18 | I146: 17 | J146: 12 | K146: 16 | L146: 16 | M146: 139.5 | N146: دور ثانى | O146: 0.5166666667 | P146: مقبول | R146: الدراسات الاجتماعية / الكيمياء / التربية الإسلامية / | U146: x | W146: x | Z146: x | AC146: 4 | AD146: 3 | AE146: دور ثانى | AG146: الدراسات الاجتماعية / | AI146: الكيمياء / | AL146: التربية الإسلامية / | AP146: 136 | AQ146: بدر ناصر جابر سهل المرى | AR146: 139.5000068
A147: 137 | B147: حزام زيد راشد المري | C147: 10 - 5 | D147: 12 | E147: 16 | F147: 10.5 | G147: 16 | H147: 19 | I147: 19.5 | J147: 14 | K147: 14 | L147: 15 | M147: 136 | N147: دور ثانى | O147: 0.5037037037 | P147: مقبول | R147: الرياضيات / الحوسبة وتكنولوجيا المعلومات / التربية الإسلامية / | T147: x | V147: x | Z147: x | AA147: x | AC147: 4 | AD147: 3 | AE147: دور ثانى | AF147: الرياضيات / | AH147: الحوسبة وتكنولوجيا المعلومات / | AL147: التربية الإسلامية / | AM147: اللغة العربية / | AP147: 137 | AQ147: حزام زيد راشد المري | AR147: 136.0000068
A148: 138 | B148: حسن محمود ابراهيم علي البنا | C148: 10 - 5 | D148: 29 | E148: 28 | F148: 28.5 | G148: 29 | H148: 28 | I148: 27 | J148: 29 | K148: 26.5 | L148: 22 | M148: 247 | N148: ناجح | O148: 0.9148148148 | P148: ممتاز | AC148: 7 | AD148: 0 | AE148: ناجح | AP148: 138 | AQ148: حسن محمود ابراهيم علي البنا | AR148: 247.0000068
A149: 139 | B149: حمد سعيد سويلم سعد الخوار | C149: 10 - 5 | D149: 15 | E149: 9 | F149: 6.5 | G149: 8 | H149: 15 | I149: 2 | J149: 13.5 | K149: 12.5 | L149: 15.5 | M149: 97 | N149: دور ثانى | O149: 0.3592592593 | P149: دون المستوى | R149: الدراسات الاجتماعية / الحوسبة وتكنولوجيا المعلومات / الكيمياء / الأحياء / التربية الإسلامية / | U149: x | V149: x | W149: x | Y149: x | Z149: x | AA149: x | AC149: 2 | AD149: 5 | AE149: دور ثانى | AG149: الدراسات الاجتماعية / | AH149: الحوسبة وتكنولوجيا المعلومات / | AI149: الكيمياء / | AK149: الأحياء / | AL149: التربية الإسلامية / | AM149: اللغة العربية / | AP149: 139 | AQ149: حمد سعيد سويلم سعد الخوار | AR149: 97.00000671
A150: 140 | B150: حمد مبارك مفتاح فرج العبدالله | C150: 10 - 5 | D150: 9 | E150: 8 | F150: 14.5 | G150: 13 | H150: 11 | I150: 9.5 | J150: 16 | K150: 12 | L150: 8 | M150: 101 | N150: دور ثانى | O150: 0.3740740741 | P150: دون المستوى | R150: الرياضيات / الدراسات الاجتماعية / الحوسبة وتكنولوجيا المعلومات / الكيمياء / الفيزياء / الأحياء / | T150: x | U150: x | V150: x | W150: x | X150: x | Y150: x | AA150: x | AB150: x | AC150: 1 | AD150: 6 | AE150: دور ثانى | AF150: الرياضيات / | AG150: الدراسات الاجتماعية / | AH150: الحوسبة وتكنولوجيا المعلومات / | AI150: الكيمياء / | AJ150: الفيزياء / | AK150: الأحياء / | AM150: اللغة العربية / | AN150: اللغة الإنجليزية / | AP150: 140 | AQ150: حمد مبارك مفتاح فرج العبدالله | AR150: 101.0000067
A151: 141 | B151: خالد عزيز حسن عبدربه حسن | C151: 10 - 5 | D151: 20 | E151: 17 | F151: 15 | G151: 9 | H151: 21 | I151: 20.5 | J151: 23 | K151: 21.5 | L151: 18 | M151: 165 | N151: دور ثانى | O151: 0.6111111111 | P151: مقبول | R151: الكيمياء / | W151: x | AC151: 6 | AD151: 1 | AE151: دور ثانى | AI151: الكيمياء / | AP151: 141 | AQ151: خالد عزيز حسن عبدربه حسن | AR151: 165.0000066
A152: 142 | B152: دغش بريك دغش الجربوعى المرى | C152: 10 - 5 | D152: 12.5 | E152: 19 | F152: 21 | G152: 22 | H152: 17 | I152: 18.5 | J152: 16 | K152: 18.5 | L152: 15 | M152: 159.5 | N152: دور ثانى | O152: 0.5907407407 | P152: مقبول | R152: الرياضيات / | T152: x | AC152: 6 | AD152: 1 | AE152: دور ثانى | AF152: الرياضيات / | AP152: 142 | AQ152: دغش بريك دغش الجربوعى المرى | AR152: 159.5000066
A153: 143 | B153: راشد حمد ناصر المري | C153: 10 - 5 | D153: 8 | E153: 18 | F153: 17 | G153: 15.5 | H153: 22 | I153: 13.5 | J153: 19.5 | K153: 17 | L153: 20 | M153: 150.5 | N153: دور ثانى | O153: 0.5574074074 | P153: مقبول | R153: الرياضيات / الأحياء / | T153: x | Y153: x | AC153: 5 | AD153: 2 | AE153: دور ثانى | AF153: الرياضيات / | AK153: الأحياء / | AP153: 143 | AQ153: راشد حمد ناصر المري | AR153: 150.5000065
A154: 144 | B154: راشد شريف خان عيسى خان | C154: 10 - 5 | D154: 19 | E154: 16 | F154: 8.5 | G154: 16 | H154: 19 | I154: 16 | J154: 17 | K154: 16 | L154: 23 | M154: 150.5 | N154: دور ثانى | O154: 0.5574074074 | P154: مقبول | R154: الحوسبة وتكنولوجيا المعلومات / | V154: x | AC154: 6 | AD154: 1 | AE154: دور ثانى | AH154: الحوسبة وتكنولوجيا المعلومات / | AP154: 144 | AQ154: راشد شريف خان عيسى خان | AR154: 150.5000065
A155: 145 | B155: زياد مصطفى كامل محمد ابوالبها | C155: 10 - 5 | D155: 29.5 | E155: 25.5 | F155: 22 | G155: 20 | H155: 28 | I155: 23 | J155: 20 | K155: 23.5 | L155: 25.5 | M155: 217 | N155: ناجح | O155: 0.8037037037 | P155: جيد جدا | AC155: 7 | AD155: 0 | AE155: ناجح | AP155: 145 | AQ155: زياد مصطفى كامل محمد ابوالبها | AR155: 217.0000065
A156: 146 | B156: سالم محمد راشد طفله الفهيده | C156: 10 - 5 | D156: 8.5 | E156: 11 | F156: 18.5 | G156: 8 | H156: 13 | I156: 5 | J156: 16 | K156: 10 | L156: 10 | M156: 100 | N156: دور ثانى | O156: 0.3703703704 | P156: دون المستوى | R156: الرياضيات / الدراسات الاجتماعية / الكيمياء / الفيزياء / الأحياء / | T156: x | U156: x | W156: x | X156: x | Y156: x | AA156: x | AB156: x | AC156: 2 | AD156: 5 | AE156: دور ثانى | AF156: الرياضيات / | AG156: الدراسات الاجتماعية / | AI156: الكيمياء / | AJ156: الفيزياء / | AK156: الأحياء / | AM156: اللغة العربية / | AN156: اللغة الإنجليزية / | AP156: 146 | AQ156: سالم محمد راشد طفله الفهيده | AR156: 100.0000064
A157: 147 | B157: سعد حمد سعد البويصم المرى | C157: 10 - 5 | D157: 16 | E157: 15 | F157: 13.5 | G157: 15 | H157: 20 | I157: 13.5 | J157: 19 | K157: 20.5 | L157: 16 | M157: 148.5 | N157: دور ثانى | O157: 0.55 | P157: مقبول | R157: الحوسبة وتكنولوجيا المعلومات / الأحياء / | V157: x | Y157: x | AC157: 5 | AD157: 2 | AE157: دور ثانى | AH157: الحوسبة وتكنولوجيا المعلومات / | AK157: الأحياء / | AP157: 147 | AQ157: =B157 -> سعد حمد سعد البويصم المرى | AR157: 148.5000064
A158: 148 | B158: سعيد محمد سالم عمار خوار | C158: 10 - 5 | D158: 23 | E158: 21 | F158: 22 | G158: 21.5 | H158: 26 | I158: 26.5 | J158: 25 | K158: 21.5 | L158: 20.5 | M158: 207 | N158: ناجح | O158: 0.7666666667 | P158: جيد جدا | AC158: 7 | AD158: 0 | AE158: ناجح | AP158: 148 | AQ158: سعيد محمد سالم عمار خوار | AR158: 207.0000063
A159: 149 | B159: صلاح عارف احمد عبده جمن | C159: 10 - 5 | D159: 15 | E159: 18 | F159: 15 | G159: 13.5 | H159: 21 | I159: 20 | J159: 19 | K159: 20 | L159: 23 | M159: 164.5 | N159: دور ثانى | O159: 0.6092592593 | P159: مقبول | R159: الكيمياء / | W159: x | AC159: 6 | AD159: 1 | AE159: دور ثانى | AI159: الكيمياء / | AP159: 149 | AQ159: صلاح عارف احمد عبده جمن | AR159: 164.5000063
A160: 150 | B160: عبدالعزيز نايف عبدالله نايف | C160: 10 - 5 | D160: 17 | E160: 22 | F160: 26.5 | G160: 21 | H160: 26 | I160: 20 | J160: 26.5 | K160: 26 | L160: 13 | M160: 198 | N160: ناجح | O160: 0.7333333333 | P160: جيد | AB160: x | AC160: 7 | AD160: 0 | AE160: ناجح | AN160: اللغة الإنجليزية / | AP160: 150 | AQ160: عبدالعزيز نايف عبدالله نايف | AR160: 198.0000063
A161: 151 | B161: عبدالله عبدالرحمن | C161: 10 - 5 | D161: 15.5 | E161: 15 | F161: 14.5 | G161: 16.5 | H161: 22 | I161: 12 | J161: 15 | K161: 20 | L161: 20 | M161: 150.5 | N161: دور ثانى | O161: 0.5574074074 | P161: مقبول | R161: الحوسبة وتكنولوجيا المعلومات / الأحياء / | V161: x | Y161: x | AC161: 5 | AD161: 2 | AE161: دور ثانى | AH161: الحوسبة وتكنولوجيا المعلومات / | AK161: الأحياء / | AP161: 151 | AQ161: عبدالله عبدالرحمن | AR161: 150.5000062
A162: 152 | B162: عبدالله فهد عبدالله عبدالعزيز الرميحى | C162: 10 - 5 | D162: 22 | E162: 24 | F162: 20 | G162: 20 | H162: 24 | I162: 21.5 | J162: 25.5 | K162: 23 | L162: 23 | M162: 203 | N162: ناجح | O162: 0.7518518519 | P162: جيد جدا | AC162: 7 | AD162: 0 | AE162: ناجح | AP162: 152 | AQ162: عبدالله فهد عبدالله عبدالعزيز الرميحى | AR162: 203.0000062
A163: 153 | B163: عبدالله فؤاد حازم شريف | C163: 10 - 5 | D163: 26.5 | E163: 21.5 | F163: 20.5 | G163: 24 | H163: 24 | I163: 26 | J163: 24 | K163: 21.5 | L163: 20.5 | M163: 208.5 | N163: ناجح | O163: 0.7722222222 | P163: جيد جدا | AC163: 7 | AD163: 0 | AE163: ناجح | AP163: 153 | AQ163: عبدالله فؤاد حازم شريف | AR163: 208.5000061
A164: 154 | B164: عبدالمحسن عادل عبدالمحسن محمد الدهنيم | C164: 10 - 5 | D164: 14 | E164: 19 | F164: 14.5 | G164: 15 | H164: 18.5 | I164: 18 | J164: 17 | K164: 17 | L164: 18 | M164: 151 | N164: دور ثانى | O164: 0.5592592593 | P164: مقبول | R164: الرياضيات / الحوسبة وتكنولوجيا المعلومات / | T164: x | V164: x | AC164: 5 | AD164: 2 | AE164: دور ثانى | AF164: الرياضيات / | AH164: الحوسبة وتكنولوجيا المعلومات / | AP164: 154 | AQ164: عبدالمحسن عادل عبدالمحسن محمد الدهنيم | AR164: 151.0000061
A165: 155 | B165: على حسن مبخوت سعيد الراشدى | C165: 10 - 5 | D165: 16 | E165: 10.5 | F165: 8.5 | G165: 14 | H165: 17.5 | I165: 12 | J165: 9.5 | K165: 16 | L165: 11 | M165: 115 | N165: دور ثانى | O165: 0.4259259259 | P165: دون المستوى | R165: الدراسات الاجتماعية / الحوسبة وتكنولوجيا المعلومات / الكيمياء / الأحياء / التربية الإسلامية / | U165: x | V165: x | W165: x | Y165: x | Z165: x | AB165: x | AC165: 2 | AD165: 5 | AE165: دور ثانى | AG165: الدراسات الاجتماعية / | AH165: الحوسبة وتكنولوجيا المعلومات / | AI165: الكيمياء / | AK165: الأحياء / | AL165: التربية الإسلامية / | AN165: اللغة الإنجليزية / | AP165: 155 | AQ165: على حسن مبخوت سعيد الراشدى | AR165: 115.0000061
A166: 156 | B166: على سالم ظافر ال حثيث الاحبابى | C166: 10 - 5 | D166: 23 | E166: 23 | F166: 21.5 | G166: 17.5 | H166: 28 | I166: 12.5 | J166: 15.5 | K166: 19 | L166: 17.5 | M166: 177.5 | N166: دور ثانى | O166: 0.6574074074 | P166: جيد | R166: الأحياء / | Y166: x | AC166: 6 | AD166: 1 | AE166: دور ثانى | AK166: الأحياء / | AP166: 156 | AQ166: على سالم ظافر ال حثيث الاحبابى | AR166: 177.500006
A167: 157 | B167: عمر شادي نعيم زهران | C167: 10 - 5 | M167: 0 | N167: دور ثانى | O167: 0 | P167: دون المستوى | R167: الرياضيات / الدراسات الاجتماعية / الحوسبة وتكنولوجيا المعلومات / الكيمياء / الفيزياء / الأحياء / التربية الإسلامية / | T167: x | U167: x | V167: x | W167: x | X167: x | Y167: x | Z167: x | AA167: x | AB167: x | AC167: 0 | AD167: 7 | AE167: دور ثانى | AF167: الرياضيات / | AG167: الدراسات الاجتماعية / | AH167: الحوسبة وتكنولوجيا المعلومات / | AI167: الكيمياء / | AJ167: الفيزياء / | AK167: الأحياء / | AL167: التربية الإسلامية / | AM167: اللغة العربية / | AN167: اللغة الإنجليزية / | AP167: 157 | AQ167: عمر شادي نعيم زهران | AR167: 5.988023952e-06 | AS167: 49
A168: 158 | B168: غانم حمد صالح سعيد القريصى | C168: 10 - 5 | D168: 10 | E168: 7 | F168: 11.5 | G168: 9 | H168: 9 | I168: 11 | J168: 11 | K168: 9 | L168: 9 | M168: 86.5 | N168: دور ثانى | O168: 0.3203703704 | P168: دون المستوى | R168: الرياضيات / الدراسات الاجتماعية / الحوسبة وتكنولوجيا المعلومات / الكيمياء / الفيزياء / الأحياء / التربية الإسلامية / | T168: x | U168: x | V168: x | W168: x | X168: x | Y168: x | Z168: x | AA168: x | AB168: x | AC168: 0 | AD168: 7 | AE168: دور ثانى | AF168: الرياضيات / | AG168: الدراسات الاجتماعية / | AH168: الحوسبة وتكنولوجيا المعلومات / | AI168: الكيمياء / | AJ168: الفيزياء / | AK168: الأحياء / | AL168: التربية الإسلامية / | AM168: اللغة العربية / | AN168: اللغة الإنجليزية / | AP168: 158 | AQ168: غانم حمد صالح سعيد القريصى | AR168: 86.50000595
A169: 159 | B169: فهد سعد سعيد بخيت الخوار | C169: 10 - 5 | D169: 13.5 | E169: 12.5 | F169: 21.5 | G169: 10 | H169: 17 | I169: 10 | J169: 10 | K169: 13 | L169: 8.5 | M169: 116 | N169: دور ثانى | O169: 0.4296296296 | P169: دون المستوى | R169: الرياضيات / الدراسات الاجتماعية / الكيمياء / الأحياء / التربية الإسلامية / | T169: x | U169: x | W169: x | Y169: x | Z169: x | AA169: x | AB169: x | AC169: 2 | AD169: 5 | AE169: دور ثانى | AF169: الرياضيات / | AG169: الدراسات الاجتماعية / | AI169: الكيمياء / | AK169: الأحياء / | AL169: التربية الإسلامية / | AM169: اللغة العربية / | AN169: اللغة الإنجليزية / | AP169: 159 | AQ169: فهد سعد سعيد بخيت الخوار | AR169: 116.0000059
A170: 160 | B170: قصي محمد داود ابراهيم ابوديه | C170: 10 - 5 | D170: 11.5 | E170: 26.5 | F170: 18 | G170: 20 | H170: 20 | I170: 17.5 | J170: 22.5 | K170: 21 | L170: 13 | M170: 170 | N170: دور ثانى | O170: 0.6296296296 | P170: مقبول | R170: الرياضيات / | T170: x | AB170: x | AC170: 6 | AD170: 1 | AE170: دور ثانى | AF170: الرياضيات / | AN170: اللغة الإنجليزية / | AP170: 160 | AQ170: قصي محمد داود ابراهيم ابوديه | AR170: 170.0000059
A171: 161 | B171: محمد امين بن عادل قنوني | C171: 10 - 5 | D171: 15.5 | E171: 22 | F171: 14.5 | G171: 9.5 | H171: 26 | I171: 12 | J171: 18.5 | K171: 24 | L171: 15 | M171: 157 | N171: دور ثانى | O171: 0.5814814815 | P171: مقبول | R171: الحوسبة وتكنولوجيا المعلومات / الكيمياء / الأحياء / | V171: x | W171: x | Y171: x | AC171: 4 | AD171: 3 | AE171: دور ثانى | AH171: الحوسبة وتكنولوجيا المعلومات / | AI171: الكيمياء / | AK171: الأحياء / | AP171: =A171 -> 161 | AQ171: محمد امين بن عادل قنوني | AR171: 157.0000058 | AS171: =IF(M171=" "," ",IF(M171="غ","غ",RANK(M171,$M$11:$M$60))) -> 
A172: 162 | B172: محمد جابر محمد الصعاق المرى | C172: 10 - 5 | D172: 16.5 | E172: 18.5 | F172: 15 | G172: 21.5 | H172: 17 | I172: 17 | J172: 22 | K172: 22 | L172: 18 | M172: 167.5 | N172: ناجح | O172: 0.6203703704 | P172: مقبول | AC172: 7 | AD172: 0 | AE172: ناجح | AP172: 162 | AQ172: محمد جابر محمد الصعاق المرى | AR172: 167.5000058
A173: 163 | B173: محمد سعيد جابر سالم اليربوعى | C173: 10 - 5 | M173: 0 | N173: دور ثانى | O173: 0 | P173: دون المستوى | R173: الرياضيات / الدراسات الاجتماعية / الحوسبة وتكنولوجيا المعلومات / الكيمياء / الفيزياء / الأحياء / التربية الإسلامية / | T173: x | U173: x | V173: x | W173: x | X173: x | Y173: x | Z173: x | AA173: x | AB173: x | AC173: 0 | AD173: 7 | AE173: دور ثانى | AF173: الرياضيات / | AG173: الدراسات الاجتماعية / | AH173: الحوسبة وتكنولوجيا المعلومات / | AI173: الكيمياء / | AJ173: الفيزياء / | AK173: الأحياء / | AL173: التربية الإسلامية / | AM173: اللغة العربية / | AN173: اللغة الإنجليزية / | AP173: 163 | AQ173: محمد سعيد جابر سالم اليربوعى | AR173: 5.780346821e-06 | AS173: 49
A174: 164 | B174: محمد طارق الحاج | C174: 10 - 5 | D174: 20.5 | E174: 23 | F174: 18.5 | G174: 17 | H174: 21.5 | I174: 19 | J174: 20 | K174: 13 | L174: 20 | M174: 172.5 | N174: ناجح | O174: 0.6388888889 | P174: مقبول | AA174: x | AC174: 7 | AD174: 0 | AE174: ناجح | AM174: اللغة العربية / | AP174: 164 | AQ174: محمد طارق الحاج | AR174: 172.5000057
A175: 165 | B175: محمد عبدالله شيخ محمد | C175: 10 - 5 | D175: 17 | E175: 21 | F175: 13 | G175: 24 | H175: 28 | I175: 23 | J175: 24.5 | K175: 22 | L175: 22 | M175: 194.5 | N175: دور ثانى | O175: 0.7203703704 | P175: جيد | R175: الحوسبة وتكنولوجيا المعلومات / | V175: x | AC175: 6 | AD175: 1 | AE175: دور ثانى | AH175: الحوسبة وتكنولوجيا المعلومات / | AP175: 165 | AQ175: محمد عبدالله شيخ محمد | AR175: 194.5000057
A176: 166 | B176: محمد محسن محمد دخيل اليربوعى | C176: 10 - 5 | D176: 8.5 | E176: 13 | F176: 11 | G176: 5.5 | H176: 11 | I176: 8 | J176: 6 | K176: 13 | L176: 9 | M176: 85 | N176: دور ثانى | O176: 0.3148148148 | P176: دون المستوى | R176: الرياضيات / الدراسات الاجتماعية / الحوسبة وتكنولوجيا المعلومات / الكيمياء / الفيزياء / الأحياء / التربية الإسلامية / | T176: x | U176: x | V176: x | W176: x | X176: x | Y176: x | Z176: x | AA176: x | AB176: x | AC176: 0 | AD176: 7 | AE176: دور ثانى | AF176: الرياضيات / | AG176: الدراسات الاجتماعية / | AH176: الحوسبة وتكنولوجيا المعلومات / | AI176: الكيمياء / | AJ176: الفيزياء / | AK176: الأحياء / | AL176: التربية الإسلامية / | AM176: اللغة العربية / | AN176: اللغة الإنجليزية / | AP176: 166 | AQ176: محمد محسن محمد دخيل اليربوعى | AR176: 85.00000568
A177: 167 | B177: مصطفى اسامه محمد زهدي سيد | C177: 10 - 5 | D177: 24.5 | E177: 25.5 | F177: 26.5 | G177: 23.5 | H177: 26 | I177: 19 | J177: 22.5 | K177: 18.5 | L177: 26 | M177: 212 | N177: ناجح | O177: 0.7851851852 | P177: جيد جدا | AC177: 7 | AD177: 0 | AE177: ناجح | AP177: 167 | AQ177: مصطفى اسامه محمد زهدي سيد | AR177: 212.0000056
A178: 168 | B178: مهند عمر سمير كلباني | C178: 10 - 5 | D178: 23 | E178: 21.5 | F178: 21 | G178: 16.5 | H178: 27 | I178: 22 | J178: 19.5 | K178: 24 | L178: 27 | M178: 201.5 | N178: ناجح | O178: 0.7462962963 | P178: جيد | AC178: 7 | AD178: 0 | AE178: ناجح | AP178: 168 | AQ178: مهند عمر سمير كلباني | AR178: 201.5000056
A179: 169 | B179: نصر على نصر على النصر | C179: 10 - 5 | D179: 7 | E179: 16 | F179: 16 | G179: 9 | H179: 15 | I179: 12.5 | J179: 12 | K179: 14 | L179: 10 | M179: 111.5 | N179: دور ثانى | O179: 0.412962963 | P179: دون المستوى | R179: الرياضيات / الكيمياء / الأحياء / التربية الإسلامية / | T179: x | W179: x | Y179: x | Z179: x | AA179: x | AB179: x | AC179: 3 | AD179: 4 | AE179: دور ثانى | AF179: الرياضيات / | AI179: الكيمياء / | AK179: الأحياء / | AL179: التربية الإسلامية / | AM179: اللغة العربية / | AN179: اللغة الإنجليزية / | AP179: 169 | AQ179: نصر على نصر على النصر | AR179: 111.5000056
A180: 170 | B180: حمد اصغر خان نواب خان | C180: 10 - 6 | D180: 7 | E180: 6 | G180: 4 | H180: 10 | I180: 6.5 | J180: 8 | K180: 7 | L180: 19 | M180: 67.5 | N180: دور ثانى | O180: 0.25 | P180: دون المستوى | R180: الرياضيات / الدراسات الاجتماعية / الحوسبة وتكنولوجيا المعلومات / الكيمياء / الفيزياء / الأحياء / التربية الإسلامية / | T180: x | U180: x | V180: x | W180: x | X180: x | Y180: x | Z180: x | AA180: x | AC180: 0 | AD180: 7 | AE180: دور ثانى | AF180: الرياضيات / | AG180: الدراسات الاجتماعية / | AH180: الحوسبة وتكنولوجيا المعلومات / | AI180: الكيمياء / | AJ180: الفيزياء / | AK180: الأحياء / | AL180: التربية الإسلامية / | AM180: اللغة العربية / | AP180: 170 | AQ180: حمد اصغر خان نواب خان | AR180: 67.50000556
A181: 171 | B181: خالد سلطان حسن عباس الجمالى | C181: 10 - 6 | D181: 21.5 | E181: 15.5 | F181: 26 | G181: 12 | H181: 20 | I181: 14 | J181: 17 | K181: 13 | L181: 18 | M181: 157 | N181: دور ثانى | O181: 0.5814814815 | P181: مقبول | R181: الكيمياء / الأحياء / | W181: x | Y181: x | AA181: x | AC181: 5 | AD181: 2 | AE181: دور ثانى | AI181: الكيمياء / | AK181: الأحياء / | AM181: اللغة العربية / | AP181: 171 | AQ181: خالد سلطان حسن عباس الجمالى | AR181: 157.0000055
A182: 172 | B182: شفيع فهد على شفيع الفهيده | C182: 10 - 6 | D182: 28 | E182: 29 | F182: 28 | G182: 23 | H182: 30 | I182: 23 | J182: 26.5 | K182: 26 | L182: 21 | M182: 234.5 | N182: ناجح | O182: 0.8685185185 | P182: ممتاز | AC182: 7 | AD182: 0 | AE182: ناجح | AP182: 172 | AQ182: شفيع فهد على شفيع الفهيده | AR182: 234.5000055 | AS182: 22
A183: 173 | B183: عبدالرجمن يارمحمد معين خان | C183: 10 - 6 | D183: 19.5 | E183: 10 | F183: 1 | G183: 17 | H183: 24 | I183: 14 | J183: 18.5 | K183: 15 | L183: 13.5 | M183: 132.5 | N183: دور ثانى | O183: 0.4907407407 | P183: دون المستوى | R183: الدراسات الاجتماعية / الحوسبة وتكنولوجيا المعلومات / الأحياء / | U183: x | V183: x | Y183: x | AB183: x | AC183: 4 | AD183: 3 | AE183: دور ثانى | AG183: الدراسات الاجتماعية / | AH183: الحوسبة وتكنولوجيا المعلومات / | AK183: الأحياء / | AN183: اللغة الإنجليزية / | AP183: 173 | AQ183: عبدالرجمن يارمحمد معين خان | AR183: 132.5000055
A184: 174 | B184: عبدالرحمن جاسم محمد قاسم العمادى | C184: 10 - 6 | D184: 19.5 | E184: 15.5 | F184: 9 | G184: 10 | H184: 17 | I184: 14.5 | J184: 15 | K184: 13 | L184: 19.5 | M184: 133 | N184: دور ثانى | O184: 0.4925925926 | P184: دون المستوى | R184: الحوسبة وتكنولوجيا المعلومات / الكيمياء / الأحياء / | V184: x | W184: x | Y184: x | AA184: x | AC184: 4 | AD184: 3 | AE184: دور ثانى | AH184: الحوسبة وتكنولوجيا المعلومات / | AI184: الكيمياء / | AK184: الأحياء / | AM184: اللغة العربية / | AP184: 174 | AQ184: عبدالرحمن جاسم محمد قاسم العمادى | AR184: 133.0000054
A185: 175 | B185: عبدالرحمن حسين عبدي | C185: 10 - 6 | D185: 18 | E185: 7 | F185: 3 | G185: 8 | H185: 15 | I185: 9.5 | J185: 17.5 | K185: 12 | L185: 21 | M185: 111 | N185: دور ثانى | O185: 0.4111111111 | P185: دون المستوى | R185: الدراسات الاجتماعية / الحوسبة وتكنولوجيا المعلومات / الكيمياء / الأحياء / | U185: x | V185: x | W185: x | Y185: x | AA185: x | AC185: 3 | AD185: 4 | AE185: دور ثانى | AG185: الدراسات الاجتماعية / | AH185: الحوسبة وتكنولوجيا المعلومات / | AI185: الكيمياء / | AK185: الأحياء / | AM185: اللغة العربية / | AP185: 175 | AQ185: عبدالرحمن حسين عبدي | AR185: 111.0000054
A186: 176 | B186: عبدالرحمن محماس غزاى المقاطى العتيبى | C186: 10 - 6 | D186: 11.5 | E186: 10 | G186: 9 | H186: 12 | I186: 8.5 | J186: 18 | K186: 20 | L186: 9 | M186: 98 | N186: دور ثانى | O186: 0.362962963 | P186: دون المستوى | R186: الرياضيات / الدراسات الاجتماعية / الحوسبة وتكنولوجيا المعلومات / الكيمياء / الفيزياء / الأحياء / | T186: x | U186: x | V186: x | W186: x | X186: x | Y186: x | AB186: x | AC186: 1 | AD186: 6 | AE186: دور ثانى | AF186: الرياضيات / | AG186: الدراسات الاجتماعية / | AH186: الحوسبة وتكنولوجيا المعلومات / | AI186: الكيمياء / | AJ186: الفيزياء / | AK186: الأحياء / | AN186: اللغة الإنجليزية / | AP186: 176 | AQ186: عبدالرحمن محماس غزاى المقاطى العتيبى | AR186: 98.00000538
A187: 177 | B187: عبدالرحمن مرتضى عبدالعال ساتى الحسن | C187: 10 - 6 | D187: 28 | E187: 18 | F187: 26 | G187: 24 | H187: 29 | I187: 20 | J187: 19 | K187: 15.5 | L187: 24.5 | M187: 204 | N187: ناجح | O187: 0.7555555556 | P187: جيد جدا | AC187: 7 | AD187: 0 | AE187: ناجح | AP187: 177 | AQ187: عبدالرحمن مرتضى عبدالعال ساتى الحسن | AR187: 204.0000053
A188: 178 | B188: عبدالعزيز جهان بخش مرادك درزاده | C188: 10 - 6 | D188: 14 | E188: 7 | F188: 8 | G188: 10 | H188: 16 | I188: 12.5 | J188: 16.5 | K188: 11 | L188: 15 | M188: 110 | N188: دور ثانى | O188: 0.4074074074 | P188: دون المستوى | R188: الرياضيات / الدراسات الاجتماعية / الحوسبة وتكنولوجيا المعلومات / الكيمياء / الأحياء / | T188: x | U188: x | V188: x | W188: x | Y188: x | AA188: x | AC188: 2 | AD188: 5 | AE188: دور ثانى | AF188: الرياضيات / | AG188: الدراسات الاجتماعية / | AH188: الحوسبة وتكنولوجيا المعلومات / | AI188: الكيمياء / | AK188: الأحياء / | AM188: اللغة العربية / | AP188: 178 | AQ188: عبدالعزيز جهان بخش مرادك درزاده | AR188: 110.0000053
A189: 179 | B189: عبدالعزيز سلطان حسن سالم الكثيرى | C189: 10 - 6 | D189: 20.5 | E189: 16.5 | F189: 16 | G189: 21 | H189: 19 | I189: 13 | J189: 22 | K189: 17 | L189: 17.5 | M189: 162.5 | N189: دور ثانى | O189: 0.6018518519 | P189: مقبول | R189: =CONCATENATE(AF189,AG189,AH189,AI189,AJ189,AK189,AL189) -> الأحياء / | Y189: x | AC189: 6 | AD189: 1 | AE189: دور ثانى | AK189: الأحياء / | AP189: 179 | AQ189: =B189 -> عبدالعزيز سلطان حسن سالم الكثيرى | AR189: =IF(M189="","",IF(M189="غ","غ",M189+1/ROW()*0.001)) -> 162.5000053
A190: 180 | B190: عبدالغني عثمان عمر ورسمة | C190: 10 - 6 | D190: 18 | E190: 18.5 | F190: 1.5 | G190: 16 | H190: 17 | I190: 14 | J190: 18 | K190: 12 | L190: 13.5 | M190: 128.5 | N190: دور ثانى | O190: 0.4759259259 | P190: دون المستوى | R190: الحوسبة وتكنولوجيا المعلومات / الأحياء / | V190: x | Y190: x | AA190: x | AB190: x | AC190: 5 | AD190: 2 | AE190: دور ثانى | AH190: الحوسبة وتكنولوجيا المعلومات / | AK190: الأحياء / | AM190: اللغة العربية / | AN190: اللغة الإنجليزية / | AP190: 180 | AQ190: عبدالغني عثمان عمر ورسمة | AR190: 128.5000053
A191: 181 | B191: عبدالقادر انس العمر | C191: 10 - 6 | D191: 30 | E191: 30 | F191: 26 | G191: 29 | H191: 28 | I191: 30 | J191: 28 | K191: 28 | L191: 17.5 | M191: 246.5 | N191: ناجح | O191: 0.912962963 | P191: ممتاز | AC191: 7 | AD191: 0 | AE191: ناجح | AP191: 181 | AQ191: عبدالقادر انس العمر | AR191: 246.5000052
A192: 182 | B192: عبدالله جاسم على محمد القايد | C192: 10 - 6 | D192: 25.5 | E192: 17 | F192: 12.5 | G192: 15 | H192: 18 | I192: 10 | J192: 22.5 | K192: 15 | L192: 18.5 | M192: 154 | N192: دور ثانى | O192: 0.5703703704 | P192: مقبول | R192: الحوسبة وتكنولوجيا المعلومات / الأحياء / | V192: x | Y192: x | AC192: 5 | AD192: 2 | AE192: دور ثانى | AH192: الحوسبة وتكنولوجيا المعلومات / | AK192: الأحياء / | AP192: 182 | AQ192: عبدالله جاسم على محمد القايد | AR192: 154.0000052
A193: 183 | B193: عبدالله حمد سالم العيسائى اليافعى | C193: 10 - 6 | D193: 24.5 | E193: 21 | F193: 21.5 | G193: 24 | H193: 29 | I193: 21 | J193: 24 | K193: 18 | L193: 23 | M193: 206 | N193: ناجح | O193: 0.762962963 | P193: جيد جدا | AC193: 7 | AD193: 0 | AE193: ناجح | AP193: 183 | AQ193: عبدالله حمد سالم العيسائى اليافعى | AR193: 206.0000052
A194: 184 | B194: عبدالله على عبدالمحسن راشد الهميمى | C194: 10 - 6 | D194: 27.5 | E194: 20.5 | F194: 29 | G194: 28 | H194: 27 | I194: 22 | J194: 21 | K194: 20 | L194: 21.5 | M194: 216.5 | N194: ناجح | O194: 0.8018518519 | P194: جيد جدا | AC194: 7 | AD194: 0 | AE194: ناجح | AP194: 184 | AQ194: عبدالله على عبدالمحسن راشد الهميمى | AR194: 216.5000052
A195: 185 | B195: عبدالله محماس غزاى المقاطى العتيبى | C195: 10 - 6 | D195: 12.5 | E195: 11 | F195: 9.5 | G195: 21 | H195: 19 | I195: 9.5 | J195: 12 | K195: 19 | L195: 7.5 | M195: 121 | N195: دور ثانى | O195: 0.4481481481 | P195: دون المستوى | R195: الرياضيات / الدراسات الاجتماعية / الحوسبة وتكنولوجيا المعلومات / الأحياء / التربية الإسلامية / | T195: x | U195: x | V195: x | Y195: x | Z195: x | AB195: x | AC195: 2 | AD195: 5 | AE195: دور ثانى | AF195: الرياضيات / | AG195: الدراسات الاجتماعية / | AH195: الحوسبة وتكنولوجيا المعلومات / | AK195: الأحياء / | AL195: التربية الإسلامية / | AN195: اللغة الإنجليزية / | AP195: 185 | AQ195: عبدالله محماس غزاى المقاطى العتيبى | AR195: 121.0000051
A196: 186 | B196: عبدالله ناصر عبده السعدى اليافعى | C196: 10 - 6 | D196: 25 | E196: 18 | F196: 12 | G196: 19 | H196: 24 | I196: 16 | J196: 23 | K196: 17 | L196: 25 | M196: 179 | N196: دور ثانى | O196: 0.662962963 | P196: جيد | R196: الحوسبة وتكنولوجيا المعلومات / | V196: x | AC196: 6 | AD196: 1 | AE196: دور ثانى | AH196: الحوسبة وتكنولوجيا المعلومات / | AP196: 186 | AQ196: عبدالله ناصر عبده السعدى اليافعى | AR196: 179.0000051
A197: 187 | B197: على احمد عبدالله احمد العبدالله | C197: 10 - 6 | D197: 23.5 | E197: 22 | F197: 20.5 | G197: 22 | H197: 20.5 | I197: 16.5 | J197: 20 | K197: 17 | L197: 18.5 | M197: 180.5 | N197: ناجح | O197: 0.6685185185 | P197: جيد | AC197: 7 | AD197: 0 | AE197: ناجح | AP197: 187 | AQ197: على احمد عبدالله احمد العبدالله | AR197: 180.5000051
A198: 188 | B198: على فهد على شفيع الفهيده | C198: 10 - 6 | D198: 17 | E198: 28 | F198: 7 | G198: 14 | H198: 23 | I198: 18.5 | J198: 19 | K198: 19 | L198: 18 | M198: 163.5 | N198: دور ثانى | O198: 0.6055555556 | P198: مقبول | R198: الحوسبة وتكنولوجيا المعلومات / الكيمياء / | V198: x | W198: x | AC198: 5 | AD198: 2 | AE198: دور ثانى | AH198: الحوسبة وتكنولوجيا المعلومات / | AI198: الكيمياء / | AP198: 188 | AQ198: على فهد على شفيع الفهيده | AR198: 163.5000051
A199: 189 | B199: فارس وليد محي الدين | C199: 10 - 6 | D199: 15.5 | E199: 14.5 | F199: 21.5 | G199: 15 | H199: 18 | I199: 10.5 | J199: 16 | K199: 18 | L199: 25.5 | M199: 154.5 | N199: دور ثانى | O199: 0.5722222222 | P199: مقبول | R199: الدراسات الاجتماعية / الأحياء / | U199: x | Y199: x | AC199: 5 | AD199: 2 | AE199: دور ثانى | AG199: الدراسات الاجتماعية / | AK199: الأحياء / | AP199: 189 | AQ199: فارس وليد محي الدين | AR199: 154.500005
A200: 190 | B200: قطبى ياسر القطبي ادريس | C200: 10 - 6 | M200: 0 | N200: دور ثانى | O200: 0 | P200: دون المستوى | R200: الرياضيات / الدراسات الاجتماعية / الحوسبة وتكنولوجيا المعلومات / الكيمياء / الفيزياء / الأحياء / التربية الإسلامية / | T200: x | U200: x | V200: x | W200: x | X200: x | Y200: x | Z200: x | AA200: x | AB200: x | AC200: 0 | AD200: 7 | AE200: دور ثانى | AF200: الرياضيات / | AG200: الدراسات الاجتماعية / | AH200: الحوسبة وتكنولوجيا المعلومات / | AI200: الكيمياء / | AJ200: الفيزياء / | AK200: الأحياء / | AL200: التربية الإسلامية / | AM200: اللغة العربية / | AN200: اللغة الإنجليزية / | AP200: 190 | AQ200: قطبى ياسر القطبي ادريس | AR200: 5e-06 | AS200: 49
A201: 191 | B201: محمد الفاضل يوسف محمد | C201: 10 - 6 | D201: 21 | E201: 21 | F201: 17 | G201: 25 | H201: 18 | I201: 20 | J201: 25 | K201: 20 | L201: 23.5 | M201: 190.5 | N201: ناجح | O201: 0.7055555556 | P201: جيد | AC201: 7 | AD201: 0 | AE201: ناجح | AP201: 191 | AQ201: محمد الفاضل يوسف محمد | AR201: 190.500005
A202: 192 | B202: محمد جابر حسين على الجرحب | C202: 10 - 6 | D202: 18.5 | E202: 21 | F202: 24 | G202: 12 | H202: 16 | I202: 17 | J202: 18 | K202: 17 | L202: 14.5 | M202: 158 | N202: دور ثانى | O202: 0.5851851852 | P202: مقبول | R202: الكيمياء / | W202: x | AB202: x | AC202: 6 | AD202: 1 | AE202: دور ثانى | AI202: الكيمياء / | AN202: اللغة الإنجليزية / | AP202: 192 | AQ202: محمد جابر حسين على الجرحب | AR202: 158.000005
A203: 193 | B203: محمد حمد حسين بن عباس الخزاعى | C203: 10 - 6 | D203: 30 | E203: 26 | F203: 20 | G203: 25 | H203: 22 | I203: 16 | J203: 22 | K203: 20 | L203: 26.5 | M203: =IF(B203="","",IF(AND(D203="غ",E203="غ",F203="غ",G203="غ",H203="غ",I203="غ",J203="غ",K203="غ",L203="غ"),"غ",SUM(D203,E203,F203,G203,H203,I203,J203,K203,L203))) -> 207.5 | N203: =IF(B203="","",AE203) -> ناجح | O203: =IF(B203="","",IF(M203="غ","غ",M203/$M$10*100/100)) -> 0.7685185185 | P203: جيد جدا | AC203: =IF(B203="","",COUNTBLANK(T203:Z203)) -> 7 | AD203: =IF(B203="","",COUNTIF(T203:Z203,"x")) -> 0 | AE203: =IF(B203="","",IF(AC203=7,"ناجح","دور ثانى")) -> ناجح | AP203: 193 | AQ203: محمد حمد حسين بن عباس الخزاعى | AR203: 207.5000049
A204: =ROW()-10 -> 194 | B204: محمد على سالم حمد جبران | C204: 10 - 6 | D204: 5.5 | E204: 13 | F204: 7 | G204: 3 | H204: 16 | I204: 12 | J204: 17 | K204: 13.5 | L204: 12.5 | M204: 99.5 | N204: دور ثانى | O204: 0.3685185185 | P204: =IF(M204="","",IF(M204="غ","غ",IF(M204=0,"دون المستوى",IF(M204/$M$10*100>=85,"ممتاز",IF(M204/$M$10*100>=75,"جيد جدا",IF(M204/$M$10*100>=65,"جيد",IF(M204/$M$10*100>=50,"مقبول",IF(M204/$M$10*100<50,"دون المستوى")))))))) -> دون المستوى | R204: الرياضيات / الدراسات الاجتماعية / الحوسبة وتكنولوجيا المعلومات / الكيمياء / الأحياء / | T204: =IF($B204="","",IF(OR(D204<15,D204="",D204="غ",D204="صفر"=""),"x","")) -> x | U204: =IF($B204="","",IF(OR(E204<15,E204="",E204="غ",E204="صفر"=""),"x","")) -> x | V204: =IF($B204="","",IF(OR(F204<15,F204="",F204="غ",F204="صفر"=""),"x","")) -> x | W204: =IF($B204="","",IF(OR(G204<15,G204="",G204="غ",G204="صفر"=""),"x","")) -> x | X204: =IF($B204="","",IF(OR(H204<15,H204="",H204="غ",H204="صفر"=""),"x","")) ->  | Y204: =IF($B204="","",IF(OR(I204<15,I204="",I204="غ",I204="صفر"=""),"x","")) -> x | Z204: =IF($B204="","",IF(OR(J204<15,J204="",J204="غ",J204="صفر"=""),"x","")) ->  | AA204: =IF($B204="","",IF(OR(K204<15,K204="",K204="غ",K204="صفر"=""),"x","")) -> x | AB204: =IF($B204="","",IF(OR(L204<15,L204="",L204="غ",L204="صفر"=""),"x","")) -> x | AC204: 2 | AD204: 5 | AE204: دور ثانى | AF204: =IF(T204="x","الرياضيات / ","") -> الرياضيات / | AG204: =IF(U204="x","الدراسات الاجتماعية / ","") -> الدراسات الاجتماعية / | AH204: =IF(V204="x","الحوسبة وتكنولوجيا المعلومات / ","") -> الحوسبة وتكنولوجيا المعلومات / | AI204: =IF(W204="x","الكيمياء / ","") -> الكيمياء / | AJ204: =IF(X204="x","الفيزياء / ","") ->  | AK204: =IF(Y204="x","الأحياء / ","") -> الأحياء / | AL204: =IF(Z204="x","التربية الإسلامية / ","") ->  | AM204: =IF(AA204="x","اللغة العربية / ","") -> اللغة العربية / | AN204: =IF(AB204="x","اللغة الإنجليزية / ","") -> اللغة الإنجليزية / | AP204: 194 | AQ204: محمد على سالم حمد جبران | AR204: 99.5000049
A205: 195 | B205: محمد محمود صلاح الدين محمود محمد | C205: 10 - 6 | D205: 29 | E205: 19 | F205: 28.5 | G205: 20.5 | H205: 22 | I205: 21 | J205: 23 | K205: 19 | L205: 18.5 | M205: 200.5 | N205: ناجح | O205: 0.7425925926 | P205: جيد | AC205: 7 | AD205: 0 | AE205: ناجح | AP205: 195 | AQ205: محمد محمود صلاح الدين محمود محمد | AR205: 200.5000049
A206: 196 | B206: محمد وليد سيد حسن عبدالمجيد | C206: 10 - 6 | D206: 30 | E206: 27 | F206: 29 | G206: 27 | H206: 26 | I206: 28.5 | J206: 28 | K206: 27 | L206: 27.5 | M206: 250 | N206: ناجح | O206: 0.9259259259 | P206: ممتاز | AC206: 7 | AD206: 0 | AE206: ناجح | AP206: 196 | AQ206: محمد وليد سيد حسن عبدالمجيد | AR206: 250.0000049
... 41 more rows

Sheet ناجح

Sheet دور ثانى

Sheet كشف بالتلاميذ الناجحين
C1: 0
G6: كشف الطلاب الناجحين
G8: الصف
E9: م | F9: رقم الجلوس | G9: اسم الطالب | H9: النتيجة | I9: المجموع | J9: النسبة المئوية
D10: =C1 -> 0 | E10: =IF(G10=0,"",D10) ->  | F10: =_xlfn.SINGLE(IF(G10=0,"",INDEX(ناجح!#REF!,$D10,2))) ->  | G10: =_xlfn.SINGLE(INDEX(ناجح!#REF!,$D10,3)) ->  | H10: =_xlfn.SINGLE(IF(G10=0,"",INDEX(ناجح!#REF!,$D10,39))) ->  | I10: =_xlfn.SINGLE(IF(G10=0,"",INDEX(ناجح!#REF!,$D10,31))) ->  | J10: =_xlfn.SINGLE(IF(G10=0,"",INDEX(ناجح!#REF!,$D10,40))) -> 
D11: =D10+1 -> 1 | E11: =IF(G11=0,"",D10+1) ->  | F11: =_xlfn.SINGLE(IF(G11=0,"",INDEX(ناجح!#REF!,$D11,2))) ->  | G11: =_xlfn.SINGLE(INDEX(ناجح!#REF!,$D11,3)) ->  | H11: =_xlfn.SINGLE(IF(G11=0,"",INDEX(ناجح!#REF!,$D11,39))) ->  | I11: =_xlfn.SINGLE(IF(G11=0,"",INDEX(ناجح!#REF!,$D11,31))) ->  | J11: =_xlfn.SINGLE(IF(G11=0,"",INDEX(ناجح!#REF!,$D11,40))) -> 
D12: =D11+1 -> 2 | E12: =IF(G12=0,"",D11+1) ->  | F12: =_xlfn.SINGLE(IF(G12=0,"",INDEX(ناجح!#REF!,$D12,2))) ->  | G12: =_xlfn.SINGLE(INDEX(ناجح!#REF!,$D12,3)) ->  | H12: =_xlfn.SINGLE(IF(G12=0,"",INDEX(ناجح!#REF!,$D12,39))) ->  | I12: =_xlfn.SINGLE(IF(G12=0,"",INDEX(ناجح!#REF!,$D12,31))) ->  | J12: =_xlfn.SINGLE(IF(G12=0,"",INDEX(ناجح!#REF!,$D12,40))) -> 
D13: 3 | F13: =_xlfn.SINGLE(IF(G13=0,"",INDEX(ناجح!#REF!,$D13,2))) ->  | G13: =_xlfn.SINGLE(INDEX(ناجح!#REF!,$D13,3)) ->  | H13: =_xlfn.SINGLE(IF(G13=0,"",INDEX(ناجح!#REF!,$D13,39))) ->  | I13: =_xlfn.SINGLE(IF(G13=0,"",INDEX(ناجح!#REF!,$D13,31))) ->  | J13: =_xlfn.SINGLE(IF(G13=0,"",INDEX(ناجح!#REF!,$D13,40))) -> 
D14: 4 | F14: =_xlfn.SINGLE(IF(G14=0,"",INDEX(ناجح!#REF!,$D14,2))) ->  | G14: =_xlfn.SINGLE(INDEX(ناجح!#REF!,$D14,3)) ->  | H14: =_xlfn.SINGLE(IF(G14=0,"",INDEX(ناجح!#REF!,$D14,39))) ->  | I14: =_xlfn.SINGLE(IF(G14=0,"",INDEX(ناجح!#REF!,$D14,31))) ->  | J14: =_xlfn.SINGLE(IF(G14=0,"",INDEX(ناجح!#REF!,$D14,40))) -> 
D15: 5 | F15: =_xlfn.SINGLE(IF(G15=0,"",INDEX(ناجح!#REF!,$D15,2))) ->  | G15: =_xlfn.SINGLE(INDEX(ناجح!#REF!,$D15,3)) ->  | H15: =_xlfn.SINGLE(IF(G15=0,"",INDEX(ناجح!#REF!,$D15,39))) ->  | I15: =_xlfn.SINGLE(IF(G15=0,"",INDEX(ناجح!#REF!,$D15,31))) ->  | J15: =_xlfn.SINGLE(IF(G15=0,"",INDEX(ناجح!#REF!,$D15,40))) -> 
D16: 6 | F16: =_xlfn.SINGLE(IF(G16=0,"",INDEX(ناجح!#REF!,$D16,2))) ->  | G16: =_xlfn.SINGLE(INDEX(ناجح!#REF!,$D16,3)) ->  | H16: =_xlfn.SINGLE(IF(G16=0,"",INDEX(ناجح!#REF!,$D16,39))) ->  | I16: =_xlfn.SINGLE(IF(G16=0,"",INDEX(ناجح!#REF!,$D16,31))) ->  | J16: =_xlfn.SINGLE(IF(G16=0,"",INDEX(ناجح!#REF!,$D16,40))) -> 
D17: 7 | F17: =_xlfn.SINGLE(IF(G17=0,"",INDEX(ناجح!#REF!,$D17,2))) ->  | G17: =_xlfn.SINGLE(INDEX(ناجح!#REF!,$D17,3)) ->  | H17: =_xlfn.SINGLE(IF(G17=0,"",INDEX(ناجح!#REF!,$D17,39))) ->  | I17: =_xlfn.SINGLE(IF(G17=0,"",INDEX(ناجح!#REF!,$D17,31))) ->  | J17: =_xlfn.SINGLE(IF(G17=0,"",INDEX(ناجح!#REF!,$D17,40))) -> 
D18: 8 | F18: =_xlfn.SINGLE(IF(G18=0,"",INDEX(ناجح!#REF!,$D18,2))) ->  | G18: =_xlfn.SINGLE(INDEX(ناجح!#REF!,$D18,3)) ->  | H18: =_xlfn.SINGLE(IF(G18=0,"",INDEX(ناجح!#REF!,$D18,39))) ->  | I18: =_xlfn.SINGLE(IF(G18=0,"",INDEX(ناجح!#REF!,$D18,31))) ->  | J18: =_xlfn.SINGLE(IF(G18=0,"",INDEX(ناجح!#REF!,$D18,40))) -> 
D19: 9 | F19: =_xlfn.SINGLE(IF(G19=0,"",INDEX(ناجح!#REF!,$D19,2))) ->  | G19: =_xlfn.SINGLE(INDEX(ناجح!#REF!,$D19,3)) ->  | H19: =_xlfn.SINGLE(IF(G19=0,"",INDEX(ناجح!#REF!,$D19,39))) ->  | I19: =_xlfn.SINGLE(IF(G19=0,"",INDEX(ناجح!#REF!,$D19,31))) ->  | J19: =_xlfn.SINGLE(IF(G19=0,"",INDEX(ناجح!#REF!,$D19,40))) -> 
D20: 10 | F20: =_xlfn.SINGLE(IF(G20=0,"",INDEX(ناجح!#REF!,$D20,2))) ->  | G20: =_xlfn.SINGLE(INDEX(ناجح!#REF!,$D20,3)) ->  | H20: =_xlfn.SINGLE(IF(G20=0,"",INDEX(ناجح!#REF!,$D20,39))) ->  | I20: =_xlfn.SINGLE(IF(G20=0,"",INDEX(ناجح!#REF!,$D20,31))) ->  | J20: =_xlfn.SINGLE(IF(G20=0,"",INDEX(ناجح!#REF!,$D20,40))) -> 
D21: 11 | F21: =_xlfn.SINGLE(IF(G21=0,"",INDEX(ناجح!#REF!,$D21,2))) ->  | G21: =_xlfn.SINGLE(INDEX(ناجح!#REF!,$D21,3)) ->  | H21: =_xlfn.SINGLE(IF(G21=0,"",INDEX(ناجح!#REF!,$D21,39))) ->  | I21: =_xlfn.SINGLE(IF(G21=0,"",INDEX(ناجح!#REF!,$D21,31))) ->  | J21: =_xlfn.SINGLE(IF(G21=0,"",INDEX(ناجح!#REF!,$D21,40))) -> 
D22: 12 | F22: =_xlfn.SINGLE(IF(G22=0,"",INDEX(ناجح!#REF!,$D22,2))) ->  | G22: =_xlfn.SINGLE(INDEX(ناجح!#REF!,$D22,3)) ->  | H22: =_xlfn.SINGLE(IF(G22=0,"",INDEX(ناجح!#REF!,$D22,39))) ->  | I22: =_xlfn.SINGLE(IF(G22=0,"",INDEX(ناجح!#REF!,$D22,31))) ->  | J22: =_xlfn.SINGLE(IF(G22=0,"",INDEX(ناجح!#REF!,$D22,40))) -> 
D23: 13 | F23: =_xlfn.SINGLE(IF(G23=0,"",INDEX(ناجح!#REF!,$D23,2))) ->  | G23: =_xlfn.SINGLE(INDEX(ناجح!#REF!,$D23,3)) ->  | H23: =_xlfn.SINGLE(IF(G23=0,"",INDEX(ناجح!#REF!,$D23,39))) ->  | I23: =_xlfn.SINGLE(IF(G23=0,"",INDEX(ناجح!#REF!,$D23,31))) ->  | J23: =_xlfn.SINGLE(IF(G23=0,"",INDEX(ناجح!#REF!,$D23,40))) -> 
D24: 14 | F24: =_xlfn.SINGLE(IF(G24=0,"",INDEX(ناجح!#REF!,$D24,2))) ->  | G24: =_xlfn.SINGLE(INDEX(ناجح!#REF!,$D24,3)) ->  | H24: =_xlfn.SINGLE(IF(G24=0,"",INDEX(ناجح!#REF!,$D24,39))) ->  | I24: =_xlfn.SINGLE(IF(G24=0,"",INDEX(ناجح!#REF!,$D24,31))) ->  | J24: =_xlfn.SINGLE(IF(G24=0,"",INDEX(ناجح!#REF!,$D24,40))) -> 
D25: 15 | F25: =_xlfn.SINGLE(IF(G25=0,"",INDEX(ناجح!#REF!,$D25,2))) ->  | G25: =_xlfn.SINGLE(INDEX(ناجح!#REF!,$D25,3)) ->  | H25: =_xlfn.SINGLE(IF(G25=0,"",INDEX(ناجح!#REF!,$D25,39))) ->  | I25: =_xlfn.SINGLE(IF(G25=0,"",INDEX(ناجح!#REF!,$D25,31))) ->  | J25: =_xlfn.SINGLE(IF(G25=0,"",INDEX(ناجح!#REF!,$D25,40))) -> 
D26: 16 | F26: =_xlfn.SINGLE(IF(G26=0,"",INDEX(ناجح!#REF!,$D26,2))) ->  | G26: =_xlfn.SINGLE(INDEX(ناجح!#REF!,$D26,3)) ->  | H26: =_xlfn.SINGLE(IF(G26=0,"",INDEX(ناجح!#REF!,$D26,39))) ->  | I26: =_xlfn.SINGLE(IF(G26=0,"",INDEX(ناجح!#REF!,$D26,31))) ->  | J26: =_xlfn.SINGLE(IF(G26=0,"",INDEX(ناجح!#REF!,$D26,40))) -> 
D27: 17 | F27: =_xlfn.SINGLE(IF(G27=0,"",INDEX(ناجح!#REF!,$D27,2))) ->  | G27: =_xlfn.SINGLE(INDEX(ناجح!#REF!,$D27,3)) ->  | H27: =_xlfn.SINGLE(IF(G27=0,"",INDEX(ناجح!#REF!,$D27,39))) ->  | I27: =_xlfn.SINGLE(IF(G27=0,"",INDEX(ناجح!#REF!,$D27,31))) ->  | J27: =_xlfn.SINGLE(IF(G27=0,"",INDEX(ناجح!#REF!,$D27,40))) -> 
D28: 18 | F28: =_xlfn.SINGLE(IF(G28=0,"",INDEX(ناجح!#REF!,$D28,2))) ->  | G28: =_xlfn.SINGLE(INDEX(ناجح!#REF!,$D28,3)) ->  | H28: =_xlfn.SINGLE(IF(G28=0,"",INDEX(ناجح!#REF!,$D28,39))) ->  | I28: =_xlfn.SINGLE(IF(G28=0,"",INDEX(ناجح!#REF!,$D28,31))) ->  | J28: =_xlfn.SINGLE(IF(G28=0,"",INDEX(ناجح!#REF!,$D28,40))) -> 
D29: 19 | F29: =_xlfn.SINGLE(IF(G29=0,"",INDEX(ناجح!#REF!,$D29,2))) ->  | G29: =_xlfn.SINGLE(INDEX(ناجح!#REF!,$D29,3)) ->  | H29: =_xlfn.SINGLE(IF(G29=0,"",INDEX(ناجح!#REF!,$D29,39))) ->  | I29: =_xlfn.SINGLE(IF(G29=0,"",INDEX(ناجح!#REF!,$D29,31))) ->  | J29: =_xlfn.SINGLE(IF(G29=0,"",INDEX(ناجح!#REF!,$D29,40))) -> 
D30: 20 | F30: =_xlfn.SINGLE(IF(G30=0,"",INDEX(ناجح!#REF!,$D30,2))) ->  | G30: =_xlfn.SINGLE(INDEX(ناجح!#REF!,$D30,3)) ->  | H30: =_xlfn.SINGLE(IF(G30=0,"",INDEX(ناجح!#REF!,$D30,39))) ->  | I30: =_xlfn.SINGLE(IF(G30=0,"",INDEX(ناجح!#REF!,$D30,31))) ->  | J30: =_xlfn.SINGLE(IF(G30=0,"",INDEX(ناجح!#REF!,$D30,40))) -> 
D31: 21 | F31: =_xlfn.SINGLE(IF(G31=0,"",INDEX(ناجح!#REF!,$D31,2))) ->  | G31: =_xlfn.SINGLE(INDEX(ناجح!#REF!,$D31,3)) ->  | H31: =_xlfn.SINGLE(IF(G31=0,"",INDEX(ناجح!#REF!,$D31,39))) ->  | I31: =_xlfn.SINGLE(IF(G31=0,"",INDEX(ناجح!#REF!,$D31,31))) ->  | J31: =_xlfn.SINGLE(IF(G31=0,"",INDEX(ناجح!#REF!,$D31,40))) -> 
D32: 22 | F32: =_xlfn.SINGLE(IF(G32=0,"",INDEX(ناجح!#REF!,$D32,2))) ->  | G32: =_xlfn.SINGLE(INDEX(ناجح!#REF!,$D32,3)) ->  | H32: =_xlfn.SINGLE(IF(G32=0,"",INDEX(ناجح!#REF!,$D32,39))) ->  | I32: =_xlfn.SINGLE(IF(G32=0,"",INDEX(ناجح!#REF!,$D32,31))) ->  | J32: =_xlfn.SINGLE(IF(G32=0,"",INDEX(ناجح!#REF!,$D32,40))) -> 

Sheet كشف مواد الدور الثاني
C1: 0
G8: الصف | H8: =#REF! -> 
E9: م | F9: رقم الجلوس | G9: اسم الطالب | H9: مواد الدور الثانى | I9: توقيع الطالب
D10: =C1 -> 0 | E10: =IF(G10=0,"",D10) ->  | F10: =_xlfn.SINGLE(IF(G10=0,"",INDEX('دور ثانى'!#REF!,$D10,2))) ->  | G10: =_xlfn.SINGLE(INDEX('دور ثانى'!#REF!,$D10,3)) ->  | H10: =_xlfn.SINGLE(IF(G10=0,"",INDEX('دور ثانى'!#REF!,$D10,43))) -> 
D11: =D10+1 -> 1 | E11: =IF(G11=0,"",E10+1) ->  | F11: =_xlfn.SINGLE(IF(G11=0,"",INDEX('دور ثانى'!#REF!,$D11,2))) ->  | G11: =_xlfn.SINGLE(INDEX('دور ثانى'!#REF!,$D11,3)) ->  | H11: =_xlfn.SINGLE(IF(G11=0,"",INDEX('دور ثانى'!#REF!,$D11,43))) -> 
D12: =D11+1 -> 2 | E12: =IF(G12=0,"",E11+1) ->  | F12: =_xlfn.SINGLE(IF(G12=0,"",INDEX('دور ثانى'!#REF!,$D12,2))) ->  | G12: =_xlfn.SINGLE(INDEX('دور ثانى'!#REF!,$D12,3)) ->  | H12: =_xlfn.SINGLE(IF(G12=0,"",INDEX('دور ثانى'!#REF!,$D12,43))) -> 
D13: 3 | F13: =_xlfn.SINGLE(IF(G13=0,"",INDEX('دور ثانى'!#REF!,$D13,2))) ->  | G13: =_xlfn.SINGLE(INDEX('دور ثانى'!#REF!,$D13,3)) ->  | H13: =_xlfn.SINGLE(IF(G13=0,"",INDEX('دور ثانى'!#REF!,$D13,43))) -> 
D14: 4 | F14: =_xlfn.SINGLE(IF(G14=0,"",INDEX('دور ثانى'!#REF!,$D14,2))) ->  | G14: =_xlfn.SINGLE(INDEX('دور ثانى'!#REF!,$D14,3)) ->  | H14: =_xlfn.SINGLE(IF(G14=0,"",INDEX('دور ثانى'!#REF!,$D14,43))) -> 
D15: 5 | F15: =_xlfn.SINGLE(IF(G15=0,"",INDEX('دور ثانى'!#REF!,$D15,2))) ->  | G15: =_xlfn.SINGLE(INDEX('دور ثانى'!#REF!,$D15,3)) ->  | H15: =_xlfn.SINGLE(IF(G15=0,"",INDEX('دور ثانى'!#REF!,$D15,43))) -> 
D16: 6 | F16: =_xlfn.SINGLE(IF(G16=0,"",INDEX('دور ثانى'!#REF!,$D16,2))) ->  | G16: =_xlfn.SINGLE(INDEX('دور ثانى'!#REF!,$D16,3)) ->  | H16: =_xlfn.SINGLE(IF(G16=0,"",INDEX('دور ثانى'!#REF!,$D16,43))) -> 
D17: 7 | F17: =_xlfn.SINGLE(IF(G17=0,"",INDEX('دور ثانى'!#REF!,$D17,2))) ->  | G17: =_xlfn.SINGLE(INDEX('دور ثانى'!#REF!,$D17,3)) ->  | H17: =_xlfn.SINGLE(IF(G17=0,"",INDEX('دور ثانى'!#REF!,$D17,43))) -> 
D18: 8 | F18: =_xlfn.SINGLE(IF(G18=0,"",INDEX('دور ثانى'!#REF!,$D18,2))) ->  | G18: =_xlfn.SINGLE(INDEX('دور ثانى'!#REF!,$D18,3)) ->  | H18: =_xlfn.SINGLE(IF(G18=0,"",INDEX('دور ثانى'!#REF!,$D18,43))) -> 
D19: 9 | F19: =_xlfn.SINGLE(IF(G19=0,"",INDEX('دور ثانى'!#REF!,$D19,2))) ->  | G19: =_xlfn.SINGLE(INDEX('دور ثانى'!#REF!,$D19,3)) ->  | H19: =_xlfn.SINGLE(IF(G19=0,"",INDEX('دور ثانى'!#REF!,$D19,43))) -> 
D20: 10 | F20: =_xlfn.SINGLE(IF(G20=0,"",INDEX('دور ثانى'!#REF!,$D20,2))) ->  | G20: =_xlfn.SINGLE(INDEX('دور ثانى'!#REF!,$D20,3)) ->  | H20: =_xlfn.SINGLE(IF(G20=0,"",INDEX('دور ثانى'!#REF!,$D20,43))) -> 
D21: 11 | F21: =_xlfn.SINGLE(IF(G21=0,"",INDEX('دور ثانى'!#REF!,$D21,2))) ->  | G21: =_xlfn.SINGLE(INDEX('دور ثانى'!#REF!,$D21,3)) ->  | H21: =_xlfn.SINGLE(IF(G21=0,"",INDEX('دور ثانى'!#REF!,$D21,43))) -> 
D22: 12 | F22: =_xlfn.SINGLE(IF(G22=0,"",INDEX('دور ثانى'!#REF!,$D22,2))) ->  | G22: =_xlfn.SINGLE(INDEX('دور ثانى'!#REF!,$D22,3)) ->  | H22: =_xlfn.SINGLE(IF(G22=0,"",INDEX('دور ثانى'!#REF!,$D22,43))) -> 
D23: 13 | F23: =_xlfn.SINGLE(IF(G23=0,"",INDEX('دور ثانى'!#REF!,$D23,2))) ->  | G23: =_xlfn.SINGLE(INDEX('دور ثانى'!#REF!,$D23,3)) ->  | H23: =_xlfn.SINGLE(IF(G23=0,"",INDEX('دور ثانى'!#REF!,$D23,43))) -> 
D24: 14 | F24: =_xlfn.SINGLE(IF(G24=0,"",INDEX('دور ثانى'!#REF!,$D24,2))) ->  | G24: =_xlfn.SINGLE(INDEX('دور ثانى'!#REF!,$D24,3)) ->  | H24: =_xlfn.SINGLE(IF(G24=0,"",INDEX('دور ثانى'!#REF!,$D24,43))) -> 
D25: 15 | F25: =_xlfn.SINGLE(IF(G25=0,"",INDEX('دور ثانى'!#REF!,$D25,2))) ->  | G25: =_xlfn.SINGLE(INDEX('دور ثانى'!#REF!,$D25,3)) ->  | H25: =_xlfn.SINGLE(IF(G25=0,"",INDEX('دور ثانى'!#REF!,$D25,43))) -> 
D26: 16 | F26: =_xlfn.SINGLE(IF(G26=0,"",INDEX('دور ثانى'!#REF!,$D26,2))) ->  | G26: =_xlfn.SINGLE(INDEX('دور ثانى'!#REF!,$D26,3)) ->  | H26: =_xlfn.SINGLE(IF(G26=0,"",INDEX('دور ثانى'!#REF!,$D26,43))) -> 
D27: 17 | F27: =_xlfn.SINGLE(IF(G27=0,"",INDEX('دور ثانى'!#REF!,$D27,2))) ->  | G27: =_xlfn.SINGLE(INDEX('دور ثانى'!#REF!,$D27,3)) ->  | H27: =_xlfn.SINGLE(IF(G27=0,"",INDEX('دور ثانى'!#REF!,$D27,43))) -> 
D28: 18 | F28: =_xlfn.SINGLE(IF(G28=0,"",INDEX('دور ثانى'!#REF!,$D28,2))) ->  | G28: =_xlfn.SINGLE(INDEX('دور ثانى'!#REF!,$D28,3)) ->  | H28: =_xlfn.SINGLE(IF(G28=0,"",INDEX('دور ثانى'!#REF!,$D28,43))) -> 
D29: 19 | F29: =_xlfn.SINGLE(IF(G29=0,"",INDEX('دور ثانى'!#REF!,$D29,2))) ->  | G29: =_xlfn.SINGLE(INDEX('دور ثانى'!#REF!,$D29,3)) ->  | H29: =_xlfn.SINGLE(IF(G29=0,"",INDEX('دور ثانى'!#REF!,$D29,43))) -> 
D30: 20 | F30: =_xlfn.SINGLE(IF(G30=0,"",INDEX('دور ثانى'!#REF!,$D30,2))) ->  | G30: =_xlfn.SINGLE(INDEX('دور ثانى'!#REF!,$D30,3)) ->  | H30: =_xlfn.SINGLE(IF(G30=0,"",INDEX('دور ثانى'!#REF!,$D30,43))) -> 
D31: 21 | F31: =_xlfn.SINGLE(IF(G31=0,"",INDEX('دور ثانى'!#REF!,$D31,2))) ->  | G31: =_xlfn.SINGLE(INDEX('دور ثانى'!#REF!,$D31,3)) ->  | H31: =_xlfn.SINGLE(IF(G31=0,"",INDEX('دور ثانى'!#REF!,$D31,43))) -> 
D32: 22 | F32: =_xlfn.SINGLE(IF(G32=0,"",INDEX('دور ثانى'!#REF!,$D32,2))) ->  | G32: =_xlfn.SINGLE(INDEX('دور ثانى'!#REF!,$D32,3)) ->  | H32: =_xlfn.SINGLE(IF(G32=0,"",INDEX('دور ثانى'!#REF!,$D32,43))) -> 
E33: رئيس الكنترول | H33: شيخ المعهد
E34: =#REF! ->  | H34: =#REF! -> 

Sheet الغائبين عن الاختبار
C6: مادة | F6: الرياضيات | M6: مادة | P6: الدراسات الاجتماعية | W6: مادة | Y6: الحوسبة وتكنولوجيا المعلومات
B8: م | C8: رقم الجلوس | D8: اسم الطالب | E8: الدرجة | F8: الدرجـــــــة بالحروف | H8: ملاحظــــات | L8: م | M8: رقم الجلوس | N8: اســــم التلميذ ولقبه | O8: الدرجــــــــة بالأرقام | Q8: الدرجـــــــة بالحروف | S8: ملاحظــــات | V8: م | W8: رقم الجلوس | X8: اســــم التلميذ ولقبه | Y8: ملاحظــــــــــات
E9: 30 | O9: 50
B10: =IF(ROW($B1)<=COUNTIF(شيت!$D$11:$D$60,"غ"),ROW($B1),"") ->  | C10: =IF($B10="","",INDEX(شيت!A$11:A$60,SMALL(IF(شيت!$D$11:$D$60="غ",ROW($13:$62)-13),$B10))) ->  | D10: =IF($B10="","",INDEX(شيت!B$11:B$60,SMALL(IF(شيت!$D$11:$D$60="غ",ROW($13:$62)-13),$B10))) ->  | L10: =IF(ROW($L1)<=COUNTIF(شيت!$K$11:$K$60,"غ"),ROW($L1),"") ->  | M10: =IF($L10="","",INDEX(شيت!A$11:A$60,SMALL(IF(شيت!$K$11:$K$60="غ",ROW($13:$62)-13),$L10))) ->  | N10: =IF($L10="","",INDEX(شيت!B$11:B$60,SMALL(IF(شيت!$K$11:$K$60="غ",ROW($13:$62)-13),$L10))) ->  | V10: =IF(ROW($V1)<=COUNTIF(شيت!$E$11:$E$60,"غ"),ROW($V1),"") ->  | W10: =IF($V10="","",INDEX(شيت!A$11:A$60,SMALL(IF(شيت!$E$11:$E$60="غ",ROW($13:$62)-13),$V10))) ->  | X10: =IF($V10="","",INDEX(شيت!B$11:B$60,SMALL(IF(شيت!$E$11:$E$60="غ",ROW($13:$62)-13),$V10))) -> 
B11: =IF(ROW($B2)<=COUNTIF(شيت!$D$11:$D$60,"غ"),ROW($B2),"") ->  | C11: =IF($B11="","",INDEX(شيت!A$11:A$60,SMALL(IF(شيت!$D$11:$D$60="غ",ROW($13:$62)-13),$B11))) ->  | D11: =IF($B11="","",INDEX(شيت!B$11:B$60,SMALL(IF(شيت!$D$11:$D$60="غ",ROW($13:$62)-13),$B11))) ->  | L11: =IF(ROW($L2)<=COUNTIF(شيت!$K$11:$K$60,"غ"),ROW($L2),"") ->  | M11: =IF($L11="","",INDEX(شيت!A$11:A$60,SMALL(IF(شيت!$K$11:$K$60="غ",ROW($13:$62)-13),$L11))) ->  | N11: =IF($L11="","",INDEX(شيت!B$11:B$60,SMALL(IF(شيت!$K$11:$K$60="غ",ROW($13:$62)-13),$L11))) ->  | V11: =IF(ROW($V2)<=COUNTIF(شيت!$E$11:$E$60,"غ"),ROW($V2),"") ->  | W11: =IF($V11="","",INDEX(شيت!A$11:A$60,SMALL(IF(شيت!$E$11:$E$60="غ",ROW($13:$62)-13),$V11))) ->  | X11: =IF($V11="","",INDEX(شيت!B$11:B$60,SMALL(IF(شيت!$E$11:$E$60="غ",ROW($13:$62)-13),$V11))) -> 
B12: =IF(ROW($B3)<=COUNTIF(شيت!$D$11:$D$60,"غ"),ROW($B3),"") ->  | C12: =IF($B12="","",INDEX(شيت!A$11:A$60,SMALL(IF(شيت!$D$11:$D$60="غ",ROW($13:$62)-13),$B12))) ->  | D12: =IF($B12="","",INDEX(شيت!B$11:B$60,SMALL(IF(شيت!$D$11:$D$60="غ",ROW($13:$62)-13),$B12))) ->  | L12: =IF(ROW($L3)<=COUNTIF(شيت!$K$11:$K$60,"غ"),ROW($L3),"") ->  | M12: =IF($L12="","",INDEX(شيت!A$11:A$60,SMALL(IF(شيت!$K$11:$K$60="غ",ROW($13:$62)-13),$L12))) ->  | N12: =IF($L12="","",INDEX(شيت!B$11:B$60,SMALL(IF(شيت!$K$11:$K$60="غ",ROW($13:$62)-13),$L12))) ->  | V12: =IF(ROW($V3)<=COUNTIF(شيت!$E$11:$E$60,"غ"),ROW($V3),"") ->  | W12: =IF($V12="","",INDEX(شيت!A$11:A$60,SMALL(IF(شيت!$E$11:$E$60="غ",ROW($13:$62)-13),$V12))) ->  | X12: =IF($V12="","",INDEX(شيت!B$11:B$60,SMALL(IF(شيت!$E$11:$E$60="غ",ROW($13:$62)-13),$V12))) -> 
B13: =IF(ROW($B4)<=COUNTIF(شيت!$D$11:$D$60,"غ"),ROW($B4),"") ->  | C13: =IF($B13="","",INDEX(شيت!A$11:A$60,SMALL(IF(شيت!$D$11:$D$60="غ",ROW($13:$62)-13),$B13))) ->  | D13: =IF($B13="","",INDEX(شيت!B$11:B$60,SMALL(IF(شيت!$D$11:$D$60="غ",ROW($13:$62)-13),$B13))) ->  | L13: =IF(ROW($L4)<=COUNTIF(شيت!$K$11:$K$60,"غ"),ROW($L4),"") ->  | M13: =IF($L13="","",INDEX(شيت!A$11:A$60,SMALL(IF(شيت!$K$11:$K$60="غ",ROW($13:$62)-13),$L13))) ->  | N13: =IF($L13="","",INDEX(شيت!B$11:B$60,SMALL(IF(شيت!$K$11:$K$60="غ",ROW($13:$62)-13),$L13))) ->  | V13: =IF(ROW($V4)<=COUNTIF(شيت!$E$11:$E$60,"غ"),ROW($V4),"") ->  | W13: =IF($V13="","",INDEX(شيت!A$11:A$60,SMALL(IF(شيت!$E$11:$E$60="غ",ROW($13:$62)-13),$V13))) ->  | X13: =IF($V13="","",INDEX(شيت!B$11:B$60,SMALL(IF(شيت!$E$11:$E$60="غ",ROW($13:$62)-13),$V13))) -> 
B14: =IF(ROW($B5)<=COUNTIF(شيت!$D$11:$D$60,"غ"),ROW($B5),"") ->  | C14: =IF($B14="","",INDEX(شيت!A$11:A$60,SMALL(IF(شيت!$D$11:$D$60="غ",ROW($13:$62)-13),$B14))) ->  | D14: =IF($B14="","",INDEX(شيت!B$11:B$60,SMALL(IF(شيت!$D$11:$D$60="غ",ROW($13:$62)-13),$B14))) ->  | L14: =IF(ROW($L5)<=COUNTIF(شيت!$K$11:$K$60,"غ"),ROW($L5),"") ->  | M14: =IF($L14="","",INDEX(شيت!A$11:A$60,SMALL(IF(شيت!$K$11:$K$60="غ",ROW($13:$62)-13),$L14))) ->  | N14: =IF($L14="","",INDEX(شيت!B$11:B$60,SMALL(IF(شيت!$K$11:$K$60="غ",ROW($13:$62)-13),$L14))) ->  | V14: =IF(ROW($V5)<=COUNTIF(شيت!$E$11:$E$60,"غ"),ROW($V5),"") ->  | W14: =IF($V14="","",INDEX(شيت!A$11:A$60,SMALL(IF(شيت!$E$11:$E$60="غ",ROW($13:$62)-13),$V14))) ->  | X14: =IF($V14="","",INDEX(شيت!B$11:B$60,SMALL(IF(شيت!$E$11:$E$60="غ",ROW($13:$62)-13),$V14))) -> 
B15: =IF(ROW($B6)<=COUNTIF(شيت!$D$11:$D$60,"غ"),ROW($B6),"") ->  | C15: =IF($B15="","",INDEX(شيت!A$11:A$60,SMALL(IF(شيت!$D$11:$D$60="غ",ROW($13:$62)-13),$B15))) ->  | D15: =IF($B15="","",INDEX(شيت!B$11:B$60,SMALL(IF(شيت!$D$11:$D$60="غ",ROW($13:$62)-13),$B15))) ->  | L15: =IF(ROW($L6)<=COUNTIF(شيت!$K$11:$K$60,"غ"),ROW($L6),"") ->  | M15: =IF($L15="","",INDEX(شيت!A$11:A$60,SMALL(IF(شيت!$K$11:$K$60="غ",ROW($13:$62)-13),$L15))) ->  | N15: =IF($L15="","",INDEX(شيت!B$11:B$60,SMALL(IF(شيت!$K$11:$K$60="غ",ROW($13:$62)-13),$L15))) ->  | V15: =IF(ROW($V6)<=COUNTIF(شيت!$E$11:$E$60,"غ"),ROW($V6),"") ->  | W15: =IF($V15="","",INDEX(شيت!A$11:A$60,SMALL(IF(شيت!$E$11:$E$60="غ",ROW($13:$62)-13),$V15))) ->  | X15: =IF($V15="","",INDEX(شيت!B$11:B$60,SMALL(IF(شيت!$E$11:$E$60="غ",ROW($13:$62)-13),$V15))) -> 
B16: =IF(ROW($B7)<=COUNTIF(شيت!$D$11:$D$60,"غ"),ROW($B7),"") ->  | C16: =IF($B16="","",INDEX(شيت!A$11:A$60,SMALL(IF(شيت!$D$11:$D$60="غ",ROW($13:$62)-13),$B16))) ->  | D16: =IF($B16="","",INDEX(شيت!B$11:B$60,SMALL(IF(شيت!$D$11:$D$60="غ",ROW($13:$62)-13),$B16))) ->  | L16: =IF(ROW($L7)<=COUNTIF(شيت!$K$11:$K$60,"غ"),ROW($L7),"") ->  | M16: =IF($L16="","",INDEX(شيت!A$11:A$60,SMALL(IF(شيت!$K$11:$K$60="غ",ROW($13:$62)-13),$L16))) ->  | N16: =IF($L16="","",INDEX(شيت!B$11:B$60,SMALL(IF(شيت!$K$11:$K$60="غ",ROW($13:$62)-13),$L16))) ->  | V16: =IF(ROW($V7)<=COUNTIF(شيت!$E$11:$E$60,"غ"),ROW($V7),"") ->  | W16: =IF($V16="","",INDEX(شيت!A$11:A$60,SMALL(IF(شيت!$E$11:$E$60="غ",ROW($13:$62)-13),$V16))) ->  | X16: =IF($V16="","",INDEX(شيت!B$11:B$60,SMALL(IF(شيت!$E$11:$E$60="غ",ROW($13:$62)-13),$V16))) -> 
B17: =IF(ROW($B8)<=COUNTIF(شيت!$D$11:$D$60,"غ"),ROW($B8),"") ->  | C17: =IF($B17="","",INDEX(شيت!A$11:A$60,SMALL(IF(شيت!$D$11:$D$60="غ",ROW($13:$62)-13),$B17))) ->  | D17: =IF($B17="","",INDEX(شيت!B$11:B$60,SMALL(IF(شيت!$D$11:$D$60="غ",ROW($13:$62)-13),$B17))) ->  | L17: =IF(ROW($L8)<=COUNTIF(شيت!$K$11:$K$60,"غ"),ROW($L8),"") ->  | M17: =IF($L17="","",INDEX(شيت!A$11:A$60,SMALL(IF(شيت!$K$11:$K$60="غ",ROW($13:$62)-13),$L17))) ->  | N17: =IF($L17="","",INDEX(شيت!B$11:B$60,SMALL(IF(شيت!$K$11:$K$60="غ",ROW($13:$62)-13),$L17))) ->  | V17: =IF(ROW($V8)<=COUNTIF(شيت!$E$11:$E$60,"غ"),ROW($V8),"") ->  | W17: =IF($V17="","",INDEX(شيت!A$11:A$60,SMALL(IF(شيت!$E$11:$E$60="غ",ROW($13:$62)-13),$V17))) ->  | X17: =IF($V17="","",INDEX(شيت!B$11:B$60,SMALL(IF(شيت!$E$11:$E$60="غ",ROW($13:$62)-13),$V17))) -> 
B18: =IF(ROW($B9)<=COUNTIF(شيت!$D$11:$D$60,"غ"),ROW($B9),"") ->  | C18: =IF($B18="","",INDEX(شيت!A$11:A$60,SMALL(IF(شيت!$D$11:$D$60="غ",ROW($13:$62)-13),$B18))) ->  | D18: =IF($B18="","",INDEX(شيت!B$11:B$60,SMALL(IF(شيت!$D$11:$D$60="غ",ROW($13:$62)-13),$B18))) ->  | L18: =IF(ROW($L9)<=COUNTIF(شيت!$K$11:$K$60,"غ"),ROW($L9),"") ->  | M18: =IF($L18="","",INDEX(شيت!A$11:A$60,SMALL(IF(شيت!$K$11:$K$60="غ",ROW($13:$62)-13),$L18))) ->  | N18: =IF($L18="","",INDEX(شيت!B$11:B$60,SMALL(IF(شيت!$K$11:$K$60="غ",ROW($13:$62)-13),$L18))) ->  | V18: =IF(ROW($V9)<=COUNTIF(شيت!$E$11:$E$60,"غ"),ROW($V9),"") ->  | W18: =IF($V18="","",INDEX(شيت!A$11:A$60,SMALL(IF(شيت!$E$11:$E$60="غ",ROW($13:$62)-13),$V18))) ->  | X18: =IF($V18="","",INDEX(شيت!B$11:B$60,SMALL(IF(شيت!$E$11:$E$60="غ",ROW($13:$62)-13),$V18))) -> 
B19: =IF(ROW($B10)<=COUNTIF(شيت!$D$11:$D$60,"غ"),ROW($B10),"") ->  | C19: =IF($B19="","",INDEX(شيت!A$11:A$60,SMALL(IF(شيت!$D$11:$D$60="غ",ROW($13:$62)-13),$B19))) ->  | D19: =IF($B19="","",INDEX(شيت!B$11:B$60,SMALL(IF(شيت!$D$11:$D$60="غ",ROW($13:$62)-13),$B19))) ->  | L19: =IF(ROW($L10)<=COUNTIF(شيت!$K$11:$K$60,"غ"),ROW($L10),"") ->  | M19: =IF($L19="","",INDEX(شيت!A$11:A$60,SMALL(IF(شيت!$K$11:$K$60="غ",ROW($13:$62)-13),$L19))) ->  | N19: =IF($L19="","",INDEX(شيت!B$11:B$60,SMALL(IF(شيت!$K$11:$K$60="غ",ROW($13:$62)-13),$L19))) ->  | V19: =IF(ROW($V10)<=COUNTIF(شيت!$E$11:$E$60,"غ"),ROW($V10),"") ->  | W19: =IF($V19="","",INDEX(شيت!A$11:A$60,SMALL(IF(شيت!$E$11:$E$60="غ",ROW($13:$62)-13),$V19))) ->  | X19: =IF($V19="","",INDEX(شيت!B$11:B$60,SMALL(IF(شيت!$E$11:$E$60="غ",ROW($13:$62)-13),$V19))) -> 
B20: =IF(ROW($B11)<=COUNTIF(شيت!$D$11:$D$60,"غ"),ROW($B11),"") ->  | C20: =IF($B20="","",INDEX(شيت!A$11:A$60,SMALL(IF(شيت!$D$11:$D$60="غ",ROW($13:$62)-13),$B20))) ->  | D20: =IF($B20="","",INDEX(شيت!B$11:B$60,SMALL(IF(شيت!$D$11:$D$60="غ",ROW($13:$62)-13),$B20))) ->  | L20: =IF(ROW($L11)<=COUNTIF(شيت!$K$11:$K$60,"غ"),ROW($L11),"") ->  | M20: =IF($L20="","",INDEX(شيت!A$11:A$60,SMALL(IF(شيت!$K$11:$K$60="غ",ROW($13:$62)-13),$L20))) ->  | N20: =IF($L20="","",INDEX(شيت!B$11:B$60,SMALL(IF(شيت!$K$11:$K$60="غ",ROW($13:$62)-13),$L20))) ->  | V20: =IF(ROW($V11)<=COUNTIF(شيت!$E$11:$E$60,"غ"),ROW($V11),"") ->  | W20: =IF($V20="","",INDEX(شيت!A$11:A$60,SMALL(IF(شيت!$E$11:$E$60="غ",ROW($13:$62)-13),$V20))) ->  | X20: =IF($V20="","",INDEX(شيت!B$11:B$60,SMALL(IF(شيت!$E$11:$E$60="غ",ROW($13:$62)-13),$V20))) -> 
B21: =IF(ROW($B12)<=COUNTIF(شيت!$D$11:$D$60,"غ"),ROW($B12),"") ->  | C21: =IF($B21="","",INDEX(شيت!A$11:A$60,SMALL(IF(شيت!$D$11:$D$60="غ",ROW($13:$62)-13),$B21))) ->  | D21: =IF($B21="","",INDEX(شيت!B$11:B$60,SMALL(IF(شيت!$D$11:$D$60="غ",ROW($13:$62)-13),$B21))) ->  | L21: =IF(ROW($L12)<=COUNTIF(شيت!$K$11:$K$60,"غ"),ROW($L12),"") ->  | M21: =IF($L21="","",INDEX(شيت!A$11:A$60,SMALL(IF(شيت!$K$11:$K$60="غ",ROW($13:$62)-13),$L21))) ->  | N21: =IF($L21="","",INDEX(شيت!B$11:B$60,SMALL(IF(شيت!$K$11:$K$60="غ",ROW($13:$62)-13),$L21))) ->  | V21: =IF(ROW($V12)<=COUNTIF(شيت!$E$11:$E$60,"غ"),ROW($V12),"") ->  | W21: =IF($V21="","",INDEX(شيت!A$11:A$60,SMALL(IF(شيت!$E$11:$E$60="غ",ROW($13:$62)-13),$V21))) ->  | X21: =IF($V21="","",INDEX(شيت!B$11:B$60,SMALL(IF(شيت!$E$11:$E$60="غ",ROW($13:$62)-13),$V21))) -> 
B22: =IF(ROW($B13)<=COUNTIF(شيت!$D$11:$D$60,"غ"),ROW($B13),"") ->  | C22: =IF($B22="","",INDEX(شيت!A$11:A$60,SMALL(IF(شيت!$D$11:$D$60="غ",ROW($13:$62)-13),$B22))) ->  | D22: =IF($B22="","",INDEX(شيت!B$11:B$60,SMALL(IF(شيت!$D$11:$D$60="غ",ROW($13:$62)-13),$B22))) ->  | L22: =IF(ROW($L13)<=COUNTIF(شيت!$K$11:$K$60,"غ"),ROW($L13),"") ->  | M22: =IF($L22="","",INDEX(شيت!A$11:A$60,SMALL(IF(شيت!$K$11:$K$60="غ",ROW($13:$62)-13),$L22))) ->  | N22: =IF($L22="","",INDEX(شيت!B$11:B$60,SMALL(IF(شيت!$K$11:$K$60="غ",ROW($13:$62)-13),$L22))) ->  | V22: =IF(ROW($V13)<=COUNTIF(شيت!$E$11:$E$60,"غ"),ROW($V13),"") ->  | W22: =IF($V22="","",INDEX(شيت!A$11:A$60,SMALL(IF(شيت!$E$11:$E$60="غ",ROW($13:$62)-13),$V22))) ->  | X22: =IF($V22="","",INDEX(شيت!B$11:B$60,SMALL(IF(شيت!$E$11:$E$60="غ",ROW($13:$62)-13),$V22))) -> 
B23: =IF(ROW($B14)<=COUNTIF(شيت!$D$11:$D$60,"غ"),ROW($B14),"") ->  | C23: =IF($B23="","",INDEX(شيت!A$11:A$60,SMALL(IF(شيت!$D$11:$D$60="غ",ROW($13:$62)-13),$B23))) ->  | D23: =IF($B23="","",INDEX(شيت!B$11:B$60,SMALL(IF(شيت!$D$11:$D$60="غ",ROW($13:$62)-13),$B23))) ->  | L23: =IF(ROW($L14)<=COUNTIF(شيت!$K$11:$K$60,"غ"),ROW($L14),"") ->  | M23: =IF($L23="","",INDEX(شيت!A$11:A$60,SMALL(IF(شيت!$K$11:$K$60="غ",ROW($13:$62)-13),$L23))) ->  | N23: =IF($L23="","",INDEX(شيت!B$11:B$60,SMALL(IF(شيت!$K$11:$K$60="غ",ROW($13:$62)-13),$L23))) ->  | V23: =IF(ROW($V13)<=COUNTIF(شيت!$E$11:$E$60,"غ"),ROW($V13),"") ->  | W23: =IF($V23="","",INDEX(شيت!A$11:A$60,SMALL(IF(شيت!$E$11:$E$60="غ",ROW($13:$62)-13),$V23))) ->  | X23: =IF($V23="","",INDEX(شيت!B$11:B$60,SMALL(IF(شيت!$E$11:$E$60="غ",ROW($13:$62)-13),$V23))) -> 
B24: =IF(ROW($B15)<=COUNTIF(شيت!$D$11:$D$60,"غ"),ROW($B15),"") ->  | C24: =IF($B24="","",INDEX(شيت!A$11:A$60,SMALL(IF(شيت!$D$11:$D$60="غ",ROW($13:$62)-13),$B24))) ->  | D24: =IF($B24="","",INDEX(شيت!B$11:B$60,SMALL(IF(شيت!$D$11:$D$60="غ",ROW($13:$62)-13),$B24))) ->  | L24: =IF(ROW($L15)<=COUNTIF(شيت!$K$11:$K$60,"غ"),ROW($L15),"") ->  | M24: =IF($L24="","",INDEX(شيت!A$11:A$60,SMALL(IF(شيت!$K$11:$K$60="غ",ROW($13:$62)-13),$L24))) ->  | N24: =IF($L24="","",INDEX(شيت!B$11:B$60,SMALL(IF(شيت!$K$11:$K$60="غ",ROW($13:$62)-13),$L24))) ->  | V24: =IF(ROW($V14)<=COUNTIF(شيت!$E$11:$E$60,"غ"),ROW($V14),"") ->  | W24: =IF($V24="","",INDEX(شيت!A$11:A$60,SMALL(IF(شيت!$E$11:$E$60="غ",ROW($13:$62)-13),$V24))) ->  | X24: =IF($V24="","",INDEX(شيت!B$11:B$60,SMALL(IF(شيت!$E$11:$E$60="غ",ROW($13:$62)-13),$V24))) -> 
B25: =IF(ROW($B16)<=COUNTIF(شيت!$D$11:$D$60,"غ"),ROW($B16),"") ->  | C25: =IF($B25="","",INDEX(شيت!A$11:A$60,SMALL(IF(شيت!$D$11:$D$60="غ",ROW($13:$62)-13),$B25))) ->  | D25: =IF($B25="","",INDEX(شيت!B$11:B$60,SMALL(IF(شيت!$D$11:$D$60="غ",ROW($13:$62)-13),$B25))) ->  | L25: =IF(ROW($L16)<=COUNTIF(شيت!$K$11:$K$60,"غ"),ROW($L16),"") ->  | M25: =IF($L25="","",INDEX(شيت!A$11:A$60,SMALL(IF(شيت!$K$11:$K$60="غ",ROW($13:$62)-13),$L25))) ->  | N25: =IF($L25="","",INDEX(شيت!B$11:B$60,SMALL(IF(شيت!$K$11:$K$60="غ",ROW($13:$62)-13),$L25))) ->  | V25: =IF(ROW($V15)<=COUNTIF(شيت!$E$11:$E$60,"غ"),ROW($V15),"") ->  | W25: =IF($V25="","",INDEX(شيت!A$11:A$60,SMALL(IF(شيت!$E$11:$E$60="غ",ROW($13:$62)-13),$V25))) ->  | X25: =IF($V25="","",INDEX(شيت!B$11:B$60,SMALL(IF(شيت!$E$11:$E$60="غ",ROW($13:$62)-13),$V25))) -> 
B26: =IF(ROW($B17)<=COUNTIF(شيت!$D$11:$D$60,"غ"),ROW($B17),"") ->  | C26: =IF($B26="","",INDEX(شيت!A$11:A$60,SMALL(IF(شيت!$D$11:$D$60="غ",ROW($13:$62)-13),$B26))) ->  | D26: =IF($B26="","",INDEX(شيت!B$11:B$60,SMALL(IF(شيت!$D$11:$D$60="غ",ROW($13:$62)-13),$B26))) ->  | L26: =IF(ROW($L17)<=COUNTIF(شيت!$K$11:$K$60,"غ"),ROW($L17),"") ->  | M26: =IF($L26="","",INDEX(شيت!A$11:A$60,SMALL(IF(شيت!$K$11:$K$60="غ",ROW($13:$62)-13),$L26))) ->  | N26: =IF($L26="","",INDEX(شيت!B$11:B$60,SMALL(IF(شيت!$K$11:$K$60="غ",ROW($13:$62)-13),$L26))) ->  | V26: =IF(ROW($V16)<=COUNTIF(شيت!$E$11:$E$60,"غ"),ROW($V16),"") ->  | W26: =IF($V26="","",INDEX(شيت!A$11:A$60,SMALL(IF(شيت!$E$11:$E$60="غ",ROW($13:$62)-13),$V26))) ->  | X26: =IF($V26="","",INDEX(شيت!B$11:B$60,SMALL(IF(شيت!$E$11:$E$60="غ",ROW($13:$62)-13),$V26))) -> 
B27: =IF(ROW($B18)<=COUNTIF(شيت!$D$11:$D$60,"غ"),ROW($B18),"") ->  | C27: =IF($B27="","",INDEX(شيت!A$11:A$60,SMALL(IF(شيت!$D$11:$D$60="غ",ROW($13:$62)-13),$B27))) ->  | D27: =IF($B27="","",INDEX(شيت!B$11:B$60,SMALL(IF(شيت!$D$11:$D$60="غ",ROW($13:$62)-13),$B27))) ->  | L27: =IF(ROW($L18)<=COUNTIF(شيت!$K$11:$K$60,"غ"),ROW($L18),"") ->  | M27: =IF($L27="","",INDEX(شيت!A$11:A$60,SMALL(IF(شيت!$K$11:$K$60="غ",ROW($13:$62)-13),$L27))) ->  | N27: =IF($L27="","",INDEX(شيت!B$11:B$60,SMALL(IF(شيت!$K$11:$K$60="غ",ROW($13:$62)-13),$L27))) ->  | V27: =IF(ROW($V17)<=COUNTIF(شيت!$E$11:$E$60,"غ"),ROW($V17),"") ->  | W27: =IF($V27="","",INDEX(شيت!A$11:A$60,SMALL(IF(شيت!$E$11:$E$60="غ",ROW($13:$62)-13),$V27))) ->  | X27: =IF($V27="","",INDEX(شيت!B$11:B$60,SMALL(IF(شيت!$E$11:$E$60="غ",ROW($13:$62)-13),$V27))) -> 
B28: =IF(ROW($B19)<=COUNTIF(شيت!$D$11:$D$60,"غ"),ROW($B19),"") ->  | C28: =IF($B28="","",INDEX(شيت!A$11:A$60,SMALL(IF(شيت!$D$11:$D$60="غ",ROW($13:$62)-13),$B28))) ->  | D28: =IF($B28="","",INDEX(شيت!B$11:B$60,SMALL(IF(شيت!$D$11:$D$60="غ",ROW($13:$62)-13),$B28))) ->  | L28: =IF(ROW($L19)<=COUNTIF(شيت!$K$11:$K$60,"غ"),ROW($L19),"") ->  | M28: =IF($L28="","",INDEX(شيت!A$11:A$60,SMALL(IF(شيت!$K$11:$K$60="غ",ROW($13:$62)-13),$L28))) ->  | N28: =IF($L28="","",INDEX(شيت!B$11:B$60,SMALL(IF(شيت!$K$11:$K$60="غ",ROW($13:$62)-13),$L28))) ->  | V28: =IF(ROW($V18)<=COUNTIF(شيت!$E$11:$E$60,"غ"),ROW($V18),"") ->  | W28: =IF($V28="","",INDEX(شيت!A$11:A$60,SMALL(IF(شيت!$E$11:$E$60="غ",ROW($13:$62)-13),$V28))) ->  | X28: =IF($V28="","",INDEX(شيت!B$11:B$60,SMALL(IF(شيت!$E$11:$E$60="غ",ROW($13:$62)-13),$V28))) -> 
B29: =IF(ROW($B20)<=COUNTIF(شيت!$D$11:$D$60,"غ"),ROW($B20),"") ->  | C29: =IF($B29="","",INDEX(شيت!A$11:A$60,SMALL(IF(شيت!$D$11:$D$60="غ",ROW($13:$62)-13),$B29))) ->  | D29: =IF($B29="","",INDEX(شيت!B$11:B$60,SMALL(IF(شيت!$D$11:$D$60="غ",ROW($13:$62)-13),$B29))) ->  | L29: =IF(ROW($L20)<=COUNTIF(شيت!$K$11:$K$60,"غ"),ROW($L20),"") ->  | M29: =IF($L29="","",INDEX(شيت!A$11:A$60,SMALL(IF(شيت!$K$11:$K$60="غ",ROW($13:$62)-13),$L29))) ->  | N29: =IF($L29="","",INDEX(شيت!B$11:B$60,SMALL(IF(شيت!$K$11:$K$60="غ",ROW($13:$62)-13),$L29))) ->  | V29: =IF(ROW($V19)<=COUNTIF(شيت!$E$11:$E$60,"غ"),ROW($V19),"") ->  | W29: =IF($V29="","",INDEX(شيت!A$11:A$60,SMALL(IF(شيت!$E$11:$E$60="غ",ROW($13:$62)-13),$V29))) ->  | X29: =IF($V29="","",INDEX(شيت!B$11:B$60,SMALL(IF(شيت!$E$11:$E$60="غ",ROW($13:$62)-13),$V29))) -> 
B30: =IF(ROW($B21)<=COUNTIF(شيت!$D$11:$D$60,"غ"),ROW($B21),"") ->  | C30: =IF($B30="","",INDEX(شيت!A$11:A$60,SMALL(IF(شيت!$D$11:$D$60="غ",ROW($13:$62)-13),$B30))) ->  | D30: =IF($B30="","",INDEX(شيت!B$11:B$60,SMALL(IF(شيت!$D$11:$D$60="غ",ROW($13:$62)-13),$B30))) ->  | L30: =IF(ROW($L21)<=COUNTIF(شيت!$K$11:$K$60,"غ"),ROW($L21),"") ->  | M30: =IF($L30="","",INDEX(شيت!A$11:A$60,SMALL(IF(شيت!$K$11:$K$60="غ",ROW($13:$62)-13),$L30))) ->  | N30: =IF($L30="","",INDEX(شيت!B$11:B$60,SMALL(IF(شيت!$K$11:$K$60="غ",ROW($13:$62)-13),$L30))) ->  | V30: =IF(ROW($V20)<=COUNTIF(شيت!$E$11:$E$60,"غ"),ROW($V20),"") ->  | W30: =IF($V30="","",INDEX(شيت!A$11:A$60,SMALL(IF(شيت!$E$11:$E$60="غ",ROW($13:$62)-13),$V30))) ->  | X30: =IF($V30="","",INDEX(شيت!B$11:B$60,SMALL(IF(شيت!$E$11:$E$60="غ",ROW($13:$62)-13),$V30))) -> 
B31: =IF(ROW($B22)<=COUNTIF(شيت!$D$11:$D$60,"غ"),ROW($B22),"") ->  | C31: =IF($B31="","",INDEX(شيت!A$11:A$60,SMALL(IF(شيت!$D$11:$D$60="غ",ROW($13:$62)-13),$B31))) ->  | D31: =IF($B31="","",INDEX(شيت!B$11:B$60,SMALL(IF(شيت!$D$11:$D$60="غ",ROW($13:$62)-13),$B31))) ->  | L31: =IF(ROW($L22)<=COUNTIF(شيت!$K$11:$K$60,"غ"),ROW($L22),"") ->  | M31: =IF($L31="","",INDEX(شيت!A$11:A$60,SMALL(IF(شيت!$K$11:$K$60="غ",ROW($13:$62)-13),$L31))) ->  | N31: =IF($L31="","",INDEX(شيت!B$11:B$60,SMALL(IF(شيت!$K$11:$K$60="غ",ROW($13:$62)-13),$L31))) ->  | V31: =IF(ROW($V21)<=COUNTIF(شيت!$E$11:$E$60,"غ"),ROW($V21),"") ->  | W31: =IF($V31="","",INDEX(شيت!A$11:A$60,SMALL(IF(شيت!$E$11:$E$60="غ",ROW($13:$62)-13),$V31))) ->  | X31: =IF($V31="","",INDEX(شيت!B$11:B$60,SMALL(IF(شيت!$E$11:$E$60="غ",ROW($13:$62)-13),$V31))) -> 
B32: =IF(ROW($B23)<=COUNTIF(شيت!$D$11:$D$60,"غ"),ROW($B23),"") ->  | C32: =IF($B32="","",INDEX(شيت!A$11:A$60,SMALL(IF(شيت!$D$11:$D$60="غ",ROW($13:$62)-13),$B32))) ->  | D32: =IF($B32="","",INDEX(شيت!B$11:B$60,SMALL(IF(شيت!$D$11:$D$60="غ",ROW($13:$62)-13),$B32))) ->  | L32: =IF(ROW($L23)<=COUNTIF(شيت!$K$11:$K$60,"غ"),ROW($L23),"") ->  | M32: =IF($L32="","",INDEX(شيت!A$11:A$60,SMALL(IF(شيت!$K$11:$K$60="غ",ROW($13:$62)-13),$L32))) ->  | N32: =IF($L32="","",INDEX(شيت!B$11:B$60,SMALL(IF(شيت!$K$11:$K$60="غ",ROW($13:$62)-13),$L32))) ->  | V32: =IF(ROW($V22)<=COUNTIF(شيت!$E$11:$E$60,"غ"),ROW($V22),"") ->  | W32: =IF($V32="","",INDEX(شيت!A$11:A$60,SMALL(IF(شيت!$E$11:$E$60="غ",ROW($13:$62)-13),$V32))) ->  | X32: =IF($V32="","",INDEX(شيت!B$11:B$60,SMALL(IF(شيت!$E$11:$E$60="غ",ROW($13:$62)-13),$V32))) -> 
B33: =IF(ROW($B24)<=COUNTIF(شيت!$D$11:$D$60,"غ"),ROW($B24),"") ->  | C33: =IF($B33="","",INDEX(شيت!A$11:A$60,SMALL(IF(شيت!$D$11:$D$60="غ",ROW($13:$62)-13),$B33))) ->  | D33: =IF($B33="","",INDEX(شيت!B$11:B$60,SMALL(IF(شيت!$D$11:$D$60="غ",ROW($13:$62)-13),$B33))) ->  | L33: =IF(ROW($L24)<=COUNTIF(شيت!$K$11:$K$60,"غ"),ROW($L24),"") ->  | M33: =IF($L33="","",INDEX(شيت!A$11:A$60,SMALL(IF(شيت!$K$11:$K$60="غ",ROW($13:$62)-13),$L33))) ->  | N33: =IF($L33="","",INDEX(شيت!B$11:B$60,SMALL(IF(شيت!$K$11:$K$60="غ",ROW($13:$62)-13),$L33))) ->  | V33: =IF(ROW($V23)<=COUNTIF(شيت!$E$11:$E$60,"غ"),ROW($V23),"") ->  | W33: =IF($V33="","",INDEX(شيت!A$11:A$60,SMALL(IF(شيت!$E$11:$E$60="غ",ROW($13:$62)-13),$V33))) ->  | X33: =IF($V33="","",INDEX(شيت!B$11:B$60,SMALL(IF(شيت!$E$11:$E$60="غ",ROW($13:$62)-13),$V33))) -> 
B34: =IF(ROW($B25)<=COUNTIF(شيت!$D$11:$D$60,"غ"),ROW($B25),"") ->  | C34: =IF($B34="","",INDEX(شيت!A$11:A$60,SMALL(IF(شيت!$D$11:$D$60="غ",ROW($13:$62)-13),$B34))) ->  | D34: =IF($B34="","",INDEX(شيت!B$11:B$60,SMALL(IF(شيت!$D$11:$D$60="غ",ROW($13:$62)-13),$B34))) ->  | L34: =IF(ROW($L25)<=COUNTIF(شيت!$K$11:$K$60,"غ"),ROW($L25),"") ->  | M34: =IF($L34="","",INDEX(شيت!A$11:A$60,SMALL(IF(شيت!$K$11:$K$60="غ",ROW($13:$62)-13),$L34))) ->  | N34: =IF($L34="","",INDEX(شيت!B$11:B$60,SMALL(IF(شيت!$K$11:$K$60="غ",ROW($13:$62)-13),$L34))) ->  | V34: =IF(ROW($V24)<=COUNTIF(شيت!$E$11:$E$60,"غ"),ROW($V24),"") ->  | W34: =IF($V34="","",INDEX(شيت!A$11:A$60,SMALL(IF(شيت!$E$11:$E$60="غ",ROW($13:$62)-13),$V34))) ->  | X34: =IF($V34="","",INDEX(شيت!B$11:B$60,SMALL(IF(شيت!$E$11:$E$60="غ",ROW($13:$62)-13),$V34))) -> 

Sheet كشوف الدور الثاني
C5: مادة | F5: الرياضيات | M5: مادة | P5: الدراسات الاجتماعية
B8: م | C8: رقم الجلوس | D8: اسم الطالب | E8: الدرجــــــــة بالأرقام | F8: الدرجـــــــة بالحروف | H8: ملاحظــــات | L8: م | M8: رقم الجلوس | N8: اسم الطالب | O8: الدرجــــــــة بالأرقام | P8: الدرجـــــــة بالحروف | R8: ملاحظــــات
E9: 30 | O9: 30
B10: =IF(ROW($B1)<=COUNTIF(شيت!$T$11:$T$60,"x"),ROW($B1),"") -> 1 | C10: =IF($B10="","",INDEX(شيت!A$11:A$60,SMALL(IF(شيت!$T$11:$T$60="x",ROW($13:$62)-13),$B10))) -> 12 | D10: =IF($B10="","",INDEX(شيت!B$11:B$60,SMALL(IF(شيت!$T$11:$T$60="x",ROW($13:$62)-13),$B10))) -> عبدالرحمن قارى محمد اقبال
B11: =IF(ROW($B2)<=COUNTIF(شيت!$T$11:$T$60,"x"),ROW($B2),"") -> 2 | C11: =IF($B11="","",INDEX(شيت!A$11:A$60,SMALL(IF(شيت!$T$11:$T$60="x",ROW($13:$62)-13),$B11))) -> 30 | D11: =IF($B11="","",INDEX(شيت!B$11:B$60,SMALL(IF(شيت!$T$11:$T$60="x",ROW($13:$62)-13),$B11))) -> معتز احمد كامل على خوالده
B12: =IF(ROW($B3)<=COUNTIF(شيت!$T$11:$T$60,"x"),ROW($B3),"") -> 3 | C12: =IF($B12="","",INDEX(شيت!A$11:A$60,SMALL(IF(شيت!$T$11:$T$60="x",ROW($13:$62)-13),$B12))) -> 32 | D12: =IF($B12="","",INDEX(شيت!B$11:B$60,SMALL(IF(شيت!$T$11:$T$60="x",ROW($13:$62)-13),$B12))) -> مؤمن شريف محمد التاج
B13: =IF(ROW($B4)<=COUNTIF(شيت!$T$11:$T$60,"x"),ROW($B4),"") -> 4 | C13: =IF($B13="","",INDEX(شيت!A$11:A$60,SMALL(IF(شيت!$T$11:$T$60="x",ROW($13:$62)-13),$B13))) -> 42 | D13: =IF($B13="","",INDEX(شيت!B$11:B$60,SMALL(IF(شيت!$T$11:$T$60="x",ROW($13:$62)-13),$B13))) -> حمد ناجى مسعد احمد الطيرى
B14: =IF(ROW($B5)<=COUNTIF(شيت!$T$11:$T$60,"x"),ROW($B5),"") -> 5 | C14: =IF($B14="","",INDEX(شيت!A$11:A$60,SMALL(IF(شيت!$T$11:$T$60="x",ROW($13:$62)-13),$B14))) -> 43 | D14: =IF($B14="","",INDEX(شيت!B$11:B$60,SMALL(IF(شيت!$T$11:$T$60="x",ROW($13:$62)-13),$B14))) -> خالد طارق عبدالرحمن فوزي رامون
B15: =IF(ROW($B6)<=COUNTIF(شيت!$T$11:$T$60,"x"),ROW($B6),"") -> 6 | C15: =IF($B15="","",INDEX(شيت!A$11:A$60,SMALL(IF(شيت!$T$11:$T$60="x",ROW($13:$62)-13),$B15))) -> 48 | D15: =IF($B15="","",INDEX(شيت!B$11:B$60,SMALL(IF(شيت!$T$11:$T$60="x",ROW($13:$62)-13),$B15))) -> زيد محمود احمد خشان
B16: =IF(ROW($B7)<=COUNTIF(شيت!$T$11:$T$60,"x"),ROW($B7),"") ->  | C16: =IF($B16="","",INDEX(شيت!A$11:A$60,SMALL(IF(شيت!$T$11:$T$60="x",ROW($13:$62)-13),$B16))) ->  | D16: =IF($B16="","",INDEX(شيت!B$11:B$60,SMALL(IF(شيت!$T$11:$T$60="x",ROW($13:$62)-13),$B16))) -> 
B17: =IF(ROW($B8)<=COUNTIF(شيت!$T$11:$T$60,"x"),ROW($B8),"") ->  | C17: =IF($B17="","",INDEX(شيت!A$11:A$60,SMALL(IF(شيت!$T$11:$T$60="x",ROW($13:$62)-13),$B17))) ->  | D17: =IF($B17="","",INDEX(شيت!B$11:B$60,SMALL(IF(شيت!$T$11:$T$60="x",ROW($13:$62)-13),$B17))) -> 
B18: =IF(ROW($B9)<=COUNTIF(شيت!$T$11:$T$60,"x"),ROW($B9),"") ->  | C18: =IF($B18="","",INDEX(شيت!A$11:A$60,SMALL(IF(شيت!$T$11:$T$60="x",ROW($13:$62)-13),$B18))) ->  | D18: =IF($B18="","",INDEX(شيت!B$11:B$60,SMALL(IF(شيت!$T$11:$T$60="x",ROW($13:$62)-13),$B18))) -> 
B19: =IF(ROW($B10)<=COUNTIF(شيت!$T$11:$T$60,"x"),ROW($B10),"") ->  | C19: =IF($B19="","",INDEX(شيت!A$11:A$60,SMALL(IF(شيت!$T$11:$T$60="x",ROW($13:$62)-13),$B19))) ->  | D19: =IF($B19="","",INDEX(شيت!B$11:B$60,SMALL(IF(شيت!$T$11:$T$60="x",ROW($13:$62)-13),$B19))) -> 
B20: =IF(ROW($B11)<=COUNTIF(شيت!$T$11:$T$60,"x"),ROW($B11),"") ->  | C20: =IF($B20="","",INDEX(شيت!A$11:A$60,SMALL(IF(شيت!$T$11:$T$60="x",ROW($13:$62)-13),$B20))) ->  | D20: =IF($B20="","",INDEX(شيت!B$11:B$60,SMALL(IF(شيت!$T$11:$T$60="x",ROW($13:$62)-13),$B20))) -> 
B21: =IF(ROW($B11)<=COUNTIF(شيت!$T$11:$T$60,"x"),ROW($B11),"") ->  | C21: =IF($B21="","",INDEX(شيت!A$11:A$60,SMALL(IF(شيت!$T$11:$T$60="x",ROW($13:$62)-13),$B21))) ->  | D21: =IF($B21="","",INDEX(شيت!B$11:B$60,SMALL(IF(شيت!$T$11:$T$60="x",ROW($13:$62)-13),$B21))) -> 
B22: =IF(ROW($B12)<=COUNTIF(شيت!$T$11:$T$60,"x"),ROW($B12),"") ->  | C22: =IF($B22="","",INDEX(شيت!A$11:A$60,SMALL(IF(شيت!$T$11:$T$60="x",ROW($13:$62)-13),$B22))) ->  | D22: =IF($B22="","",INDEX(شيت!B$11:B$60,SMALL(IF(شيت!$T$11:$T$60="x",ROW($13:$62)-13),$B22))) -> 
B23: =IF(ROW($B13)<=COUNTIF(شيت!$T$11:$T$60,"x"),ROW($B13),"") ->  | C23: =IF($B23="","",INDEX(شيت!A$11:A$60,SMALL(IF(شيت!$T$11:$T$60="x",ROW($13:$62)-13),$B23))) ->  | D23: =IF($B23="","",INDEX(شيت!B$11:B$60,SMALL(IF(شيت!$T$11:$T$60="x",ROW($13:$62)-13),$B23))) -> 
B24: =IF(ROW($B14)<=COUNTIF(شيت!$T$11:$T$60,"x"),ROW($B14),"") ->  | C24: =IF($B24="","",INDEX(شيت!A$11:A$60,SMALL(IF(شيت!$T$11:$T$60="x",ROW($13:$62)-13),$B24))) ->  | D24: =IF($B24="","",INDEX(شيت!B$11:B$60,SMALL(IF(شيت!$T$11:$T$60="x",ROW($13:$62)-13),$B24))) -> 
B25: =IF(ROW($B15)<=COUNTIF(شيت!$T$11:$T$60,"x"),ROW($B15),"") ->  | C25: =IF($B25="","",INDEX(شيت!A$11:A$60,SMALL(IF(شيت!$T$11:$T$60="x",ROW($13:$62)-13),$B25))) ->  | D25: =IF($B25="","",INDEX(شيت!B$11:B$60,SMALL(IF(شيت!$T$11:$T$60="x",ROW($13:$62)-13),$B25))) -> 
B26: =IF(ROW($B16)<=COUNTIF(شيت!$T$11:$T$60,"x"),ROW($B16),"") ->  | C26: =IF($B26="","",INDEX(شيت!A$11:A$60,SMALL(IF(شيت!$T$11:$T$60="x",ROW($13:$62)-13),$B26))) ->  | D26: =IF($B26="","",INDEX(شيت!B$11:B$60,SMALL(IF(شيت!$T$11:$T$60="x",ROW($13:$62)-13),$B26))) -> 
B27: =IF(ROW($B17)<=COUNTIF(شيت!$T$11:$T$60,"x"),ROW($B17),"") ->  | C27: =IF($B27="","",INDEX(شيت!A$11:A$60,SMALL(IF(شيت!$T$11:$T$60="x",ROW($13:$62)-13),$B27))) ->  | D27: =IF($B27="","",INDEX(شيت!B$11:B$60,SMALL(IF(شيت!$T$11:$T$60="x",ROW($13:$62)-13),$B27))) -> 
B28: =IF(ROW($B18)<=COUNTIF(شيت!$T$11:$T$60,"x"),ROW($B18),"") ->  | C28: =IF($B28="","",INDEX(شيت!A$11:A$60,SMALL(IF(شيت!$T$11:$T$60="x",ROW($13:$62)-13),$B28))) ->  | D28: =IF($B28="","",INDEX(شيت!B$11:B$60,SMALL(IF(شيت!$T$11:$T$60="x",ROW($13:$62)-13),$B28))) -> 
B29: =IF(ROW($B19)<=COUNTIF(شيت!$T$11:$T$60,"x"),ROW($B19),"") ->  | C29: =IF($B29="","",INDEX(شيت!A$11:A$60,SMALL(IF(شيت!$T$11:$T$60="x",ROW($13:$62)-13),$B29))) ->  | D29: =IF($B29="","",INDEX(شيت!B$11:B$60,SMALL(IF(شيت!$T$11:$T$60="x",ROW($13:$62)-13),$B29))) -> 
B30: =IF(ROW($B20)<=COUNTIF(شيت!$T$11:$T$60,"x"),ROW($B20),"") ->  | C30: =IF($B30="","",INDEX(شيت!A$11:A$60,SMALL(IF(شيت!$T$11:$T$60="x",ROW($13:$62)-13),$B30))) ->  | D30: =IF($B30="","",INDEX(شيت!B$11:B$60,SMALL(IF(شيت!$T$11:$T$60="x",ROW($13:$62)-13),$B30))) -> 
B31: =IF(ROW($B21)<=COUNTIF(شيت!$T$11:$T$60,"x"),ROW($B21),"") ->  | C31: =IF($B31="","",INDEX(شيت!A$11:A$60,SMALL(IF(شيت!$T$11:$T$60="x",ROW($13:$62)-13),$B31))) ->  | D31: =IF($B31="","",INDEX(شيت!B$11:B$60,SMALL(IF(شيت!$T$11:$T$60="x",ROW($13:$62)-13),$B31))) -> 
B32: =IF(ROW($B22)<=COUNTIF(شيت!$T$11:$T$60,"x"),ROW($B22),"") ->  | C32: =IF($B32="","",INDEX(شيت!A$11:A$60,SMALL(IF(شيت!$T$11:$T$60="x",ROW($13:$62)-13),$B32))) ->  | D32: =IF($B32="","",INDEX(شيت!B$11:B$60,SMALL(IF(شيت!$T$11:$T$60="x",ROW($13:$62)-13),$B32))) -> 
B33: =IF(ROW($B23)<=COUNTIF(شيت!$T$11:$T$60,"x"),ROW($B23),"") ->  | C33: =IF($B33="","",INDEX(شيت!A$11:A$60,SMALL(IF(شيت!$T$11:$T$60="x",ROW($13:$62)-13),$B33))) ->  | D33: =IF($B33="","",INDEX(شيت!B$11:B$60,SMALL(IF(شيت!$T$11:$T$60="x",ROW($13:$62)-13),$B33))) -> 
B34: =IF(ROW($B24)<=COUNTIF(شيت!$T$11:$T$60,"x"),ROW($B24),"") ->  | C34: =IF($B34="","",INDEX(شيت!A$11:A$60,SMALL(IF(شيت!$T$11:$T$60="x",ROW($13:$62)-13),$B34))) ->  | D34: =IF($B34="","",INDEX(شيت!B$11:B$60,SMALL(IF(شيت!$T$11:$T$60="x",ROW($13:$62)-13),$B34))) -> 

Sheet إحصاء نتيجة الدور الأول جميع ال
G8: إحصاء نتيجة جميع المواد
E9: القرآن الكريم | F9: التربية الدينية | G9: لغة عربية | H9: خط عربي | I9: الرياضيات | J9: التربية الفنية | K9: الأنشطة | L9: اللغة الانجليزية | M9: ملاحظات
D10: عدد الطلاب | E10: =#REF! ->  | F10: =#REF! ->  | G10: =#REF! ->  | I10: =#REF! ->  | J10: =#REF! ->  | K10: =#REF! ->  | L10: =#REF! -> 
D11: حاضر | E11: =E10-E12 -> 
D12: غائب | E12: =IF(شيت!B11="","",COUNTIF(شيت!#REF!,"غ")) ->  | F12: =IF(شيت!B11="","",COUNTIF(شيت!#REF!,"غ")) ->  | G12: =IF(شيت!B11="","",COUNTIF(شيت!#REF!,"غ")) ->  | I12: =IF(شيت!B11="","",COUNTIF(شيت!#REF!,"غ")) ->  | J12: =IF(شيت!B11="","",COUNTIF(شيت!#REF!,"غ")) ->  | K12: =IF(شيت!B11="","",COUNTIF(شيت!#REF!,"غ")) ->  | L12: =IF(شيت!B11="","",COUNTIF(شيت!#REF!,"غ")) -> 
D13: ناجح | E13: =E10-E14 -> 
D14: دور ثان | E14: =شيت!T8 -> 6 | F14: =شيت!U8 -> 3 | G14: =شيت!V8 -> 3 | I14: =شيت!W8 -> 6 | J14: =شيت!X8 -> 3 | K14: =شيت!Y8 -> 5 | L14: =شيت!Z8 -> 3
D15: نسبة النجاح | E15: =E13/E10*100/100 -> 
D16: نسبة الدور الثاني | E16: =E14/E10*100/100 -> 
F24: إحصاء نتيجة الـــدور الثاني
E26: عدد الطلاب | F26: حاضر | G26: غائب | H26: ناجح | I26: دور ثان | J26: نسبة الناجحين | K26: نسبة الدور الثان
E27: 237 | F27: =E27-G27 -> 237 | G27: =COUNTIF(شيت!M11:M60,"غ") -> 0 | H27: =COUNTIF(شيت!N11:N60,"ناجح") -> 39 | I27: =COUNTIF(شيت!N11:N60,"دور ثانى") -> 11 | J27: =H27/E27*100/100 -> 0.164556962 | K27: =I27/E27*100/100 -> 0.04641350211

Sheet الأوائل العشرة
C7: نتيجة العشرة الأوائل
C10: م | D10: رقم الجلوس | E10: اسم الطالب | F10: المجموع | G10: الترتيب | H10: المركـــز
C11: =IF(E11=0,"",ROW()-10) ->  | D11: =_xlfn.SINGLE(IF(E11=0,"",INDEX(الجلوس,SUMPRODUCT(--(رابعه+(1/ROW(رابعه))=LARGE(رابعه+(1/ROW(رابعه)),ROW()-ROW(D$11)+1)),--(ROW(رابعه)))-_xlfn.SINGLE(ROW(رابعه))+1,1))) ->  | E11: =_xlfn.SINGLE(INDEX(رابع,SUMPRODUCT(--(رابعه+(1/ROW(رابعه))=LARGE(رابعه+(1/ROW(رابعه)),ROW()-ROW(E$11)+1)),--(ROW(رابعه)))-_xlfn.SINGLE(ROW(رابعه))+1,1)) ->  | F11: =_xlfn.SINGLE(IF(E11=0,"",INDEX(رابعه,SUMPRODUCT(--(رابعه+(1/ROW(رابعه))=LARGE(رابعه+(1/ROW(رابعه)),ROW()-ROW(F$11)+1)),--(ROW(رابعه)))-_xlfn.SINGLE(ROW(رابعه))+1,1))) ->  | G11: =IF(E11=0,"",RANK(F11,$F$11:$F$25)) ->  | H11: =IF(E11=0,"",IF(G11=1,"الأول","")) -> 
C12: =IF(E12=0,"",ROW()-10) ->  | G12: =IF(E12=0,"",RANK(F12,$F$11:$F$25)) ->  | H12: =IF(E12=0,"",IF(G12=G11,H11&" مكرر ",IF(G12=2,"الثاني ",""))) -> 
H13: =IF(E13=0,"",IF(G13=G12,H12&"مكرر ",IF(G13=3," الثالث ",""))) -> 
H14: =IF(E14=0,"",IF(G14=G13,H13&" "&"مكرر ",IF(G14=4,"الرابع ",""))) -> 
H15: =IF(E15=0,"",IF(G15=G14,H14&""&"مكرر ",IF(G15=5,"الخامس ",""))) -> 
H16: =IF(E16=0,"",IF(G16=G15,H15&" "&"مكرر ",IF(G16=6," السادس ",""))) -> 
H17: =IF(E17=0,"",IF(G17=G16,H16&""&" مكرر ",IF(G17=7," السابع ",""))) -> 
H18: =IF(E18=0,"",IF(G18=G17,H17&"مكرر ",IF(G18=8,"الثامن",""))) -> 
H19: =IF(E19=0,"",IF(G19=G18,H18&"مكرر ",IF(G19=9,"التاسع",""))) -> 
H20: =IF(E20=0,"",IF(G20=G19,H19&" مكرر ",IF(G20=10,"العاشر ",""))) -> 
H21: =IF(E21=0,"",IF(G21=G20,H20&" مكرر ",IF(G21=11,"الحادى عشر ",""))) -> 
H22: =IF(E22=0,"",IF(G22=G21,H21&" مكرر ",IF(G22=12,"الثانى عشر",""))) -> 
H23: =IF(E23=0,"",IF(G23=G22,H22&" مكرر ",IF(G23=13,"الثالث عشر",""))) -> 
H24: =IF(E24=0,"",IF(G24=G23,H23&" مكرر",IF(G24=14,"الرابع عشر",""))) -> 
H25: =IF(E25=0,"",IF(G25=G24,H24&" مكرر",IF(G25=15,"الخامس عشر",""))) -> 
H26: =IF(E26=0,"",IF(G26=G25,H25&" مكرر ",IF(G26=16,"السادس عشر",""))) -> 
H27: =IF(E27=0,"",IF(G27=G26,H26&" مكرر",IF(G27=17,"السابع عشر",""))) -> 
H28: =IF(E28=0,"",IF(G28=G27,H27&" مكرر ",IF(G28=18,"الثامن عشر",""))) -> 
H29: =IF(E29=0,"",IF(G29=G28,H28&"مكرر ",IF(G29=19,"التاسع عشر",""))) -> 
H30: =IF(E30=0,"",IF(G30=G29,H29&"مكرر ",IF(G30=20,"العشرون",""))) -> 
